Workbook

Sheet راسب
A1: وزارة التربية والتعليم | L1: كشف رصد درجات الطلاب للصف الثانى الثانوى(القسم العلمى) الدور الثانى 2017/ 2018م
A2: محافظة القليوبية
A3: إدارة غرب شبرا الخيمة التعليمية | L3: أولاً: طلبــــــــــة ناجحــــــــون ومنقولون للصف الثالث الثانوى(مدرسة)
A4: مدرسة شبرا الخيمة الثانوية بنون | H4: =NOW() -> 2019-05-20T21:39:40.450
A5: مسلسل | B5: رقم الجلوس | C5: تاريخ الالتحاق بالمرحلة | D5: تاريخ الميلاد | E5: السن فى أول أكتوبر | H5: اســــــــــــماء الطلاب | I5: مدة البقاء بالصف الثانى الثانوى | J5: اللغة الثانية | K5: الرقم السرى | L5: اللغة العربية | S5: اللغات الاجنبية | AG5: الرياضيات | AU5: المجموعـــــة العلمية | CF5: السلوك والإنضباط | CG5: المجموع الكلى | CI5: الحاسب الالى | CR5: التربية الدينية | CY5: المواطنة وحقوق الانسان | DF5: الأنشطة التربوية | DL5: التربية الرياضية | DR5: التربية المهنية
L6: اعمال السنة | M6: الفصل الدراسى الاول | N6: الفصل الدراسى الثانى | P6: الدرجة الكلية | S6: اللغة الاولى | Z6: اللغة الثانية | AG6: الجــــــــــــــــــــــبر | AN6: التفاضل والمثلثات | AU6: الاحياء | BE6: الكيمياء | BO6: تطبيقات الرياضيات | BV6: الفيزياء | DR6: تكنولوجيا الصناعة + الزراعة + إدارة الأعمال
S7: اعمال السنة | T7: الفصل الدراسى الاول | U7: الفصل الدراسى الثانى | W7: الدرجة الكلية | Z7: اعمال السنة | AA7: الفصل الدراسى الاول | AB7: الفصل الدراسى الثانى | AD7: الدرجة الكلية | AG7: اعمال السنة | AH7: الفصل الدراسى الاول | AI7: الفصل الدراسى الثانى | AK7: الدرجة الكلية | AN7: اعمال السنة | AO7: الفصل الدراسى الاول | AP7: الفصل الدراسى الثانى | AR7: الدرجة الكلية | AU7: اعمال السنة | AV7: الفصل الأول | AX7: الفصل الثانى | BA7: الدرجة الكلية | BE7: اعمال السنة | BF7: الفصل الأول | BH7: الفصل الثانى | BK7: الدرجة الكلية | BO7: اعمال السنة | BP7: الفصل الأول | BQ7: الفصل الثانى | BS7: الدرجة الكلية | BV7: اعمال السنة | BW7: الفصل الأول | BY7: الفصل الثانى | CB7: الدرجة الكلية | CI7: اعمال السنة | CJ7: الفصل الدراسى الاول | CL7: الفصل الدراسى الثانى | CO7: الدرجة الكلية | CR7: اعمال السنة | CS7: اختبار الفصل الاول | CT7: اختبار الفصل الثانى | CV7: الدرجة الكلية | CY7: اعمال السنة | CZ7: اختبار الفصل الاول | DA7: اختبار الفصل الثانى | DC7: الدرجة الكلية | DF7: اعمال السنة | DG7: اختبار الفصل الاول | DH7: اختبار الفصل الثانى | DJ7: الدرجة الكلية | DL7: اعمال السنة | DM7: اختبار الفصل الاول | DN7: اختبار الفصل الثانى | DP7: الدرجة الكلية | DR7: اعمال السنة | DS7: الفصل الدراسى الاول | DU7: الفصل الدراسى الثانى | DX7: الدرجة الكلية
AV8: عملى | AW8: تحريرى | AX8: عملى | AY8: تحريرى | BF8: عملى | BG8: تحريرى | BH8: عملى | BI8: تحريرى | BW8: عملى | BX8: تحريرى | BY8: عملى | BZ8: تحريرى | CJ8: عملى | CK8: تحريرى | CL8: عملى | CM8: تحريرى | DS8: عملى | DT8: تحريرى | DU8: عملى | DV8: تحريرى
EC9: نتيجة الطالب
E10: 2018-10-01 | K10: النهاية الكبرى | L10: 12 | M10: 24 | N10: 24 | P10: 60 | S10: 10 | T10: 20 | U10: 20 | W10: 50 | Z10: 6 | AA10: 12 | AB10: 12 | AD10: 30 | AG10: 4 | AH10: 8 | AI10: 8 | AK10: 20 | AN10: 4 | AO10: 8 | AP10: 8 | AR10: 20 | AU10: 4 | AV10: 2 | AW10: 6 | AX10: 2 | AY10: 6 | BA10: 20 | BE10: 4 | BF10: 2 | BG10: 6 | BH10: 2 | BI10: 6 | BK10: 20 | BO10: 4 | BP10: 8 | BQ10: 8 | BS10: 20 | BV10: 4 | BW10: 2 | BX10: 6 | BY10: 2 | BZ10: 6 | CB10: 20 | CF10: 5 | CG10: 265 | CI10: 4 | CJ10: 3 | CK10: 5 | CL10: 3 | CM10: 5 | CO10: 20 | CR10: 4 | CS10: 8 | CT10: 8 | CV10: 20 | CY10: 4 | CZ10: 8 | DA10: 8 | DC10: 20 | DF10: 4 | DG10: 8 | DH10: 8 | DJ10: 20 | DL10: 4 | DM10: 8 | DN10: 8 | DP10: 20 | DR10: 4 | DS10: 3 | DT10: 5 | DU10: 3 | DV10: 5 | DX10: 20 | EH10: عربى | EK10: E | EN10: F | EQ10: جبر | ET10: تفاضل | EW10: أحياء | EZ10: كيمياء | FC10: ميكانيكا | FF10: فيزياء | FJ10: حاسب | FM10: دين | FP10: وطنية | FS10: نشاط | FV10: العاب | FY10: تربية مهنية
E11: يوم | F11: شهر | G11: سنة | K11: النهاية الصغرى | L11: ـ | M11: ـ | N11: 6 | P11: 30 | S11: ـ | T11: ـ | U11: 5 | W11: 20 | Z11: ـ | AA11: ـ | AB11: 3 | AD11: 12 | AG11: ـ | AH11: ـ | AI11: 2 | AK11: 8 | AN11: ـ | AO11: ـ | AP11: 2 | AR11: 8 | AU11: ـ | AV11: - | AW11: - | AX11: 0.5 | AY11: 1.5 | BA11: 8 | BE11: ـ | BF11: - | BG11: - | BH11: 0.5 | BI11: 1.5 | BK11: 8 | BO11: ـ | BP11: - | BQ11: 2 | BS11: 8 | BV11: ـ | BW11: - | BX11: - | BY11: 0.5 | BZ11: 1.5 | CB11: 8 | CF11: 2.5 | CG11: 132.5 | CI11: ـ | CJ11: ـ | CK11: ـ | CL11: ـ | CM11: 1.25 | CO11: 8 | CR11: ـ | CS11: ـ | CT11: 2 | CV11: 10 | CY11: ـ | CZ11: ـ | DA11: 2 | DC11: 8 | DF11: ـ | DG11: ـ | DH11: 2 | DJ11: 8 | DL11: ـ | DM11: ـ | DN11: 2 | DP11: 8 | DR11: ـ | DS11: ـ | DT11: 1.25 | DU11: ـ | DV11: 1.25 | DX11: 8 | EB11: نتيجة الطالب | EC11: مواد الرسوب | EG11: قبل | EH11: بعد | EI11: نتيجة | EJ11: قبل | EK11: بعد | EL11: نتيجة | EM11: قبل | EN11: بعد | EO11: نتيجة | EP11: قبل | EQ11: بعد | ER11: نتيجة | ES11: قبل | ET11: بعد | EU11: نتيجة | EV11: قبل | EW11: بعد | EX11: نتيجة | EY11: قبل | EZ11: بعد | FA11: نتيجة | FB11: قبل | FC11: بعد | FD11: نتيجة | FE11: قبل | FF11: بعد | FG11: نتيجة | FH11: مجموع | FI11: قبل | FJ11: بعد | FK11: نتيجة | FL11: قبل | FM11: بعد | FN11: نتيجة | FO11: قبل | FP11: بعد | FQ11: نتيجة | FR11: قبل | FS11: بعد | FT11: نتيجة | FU11: قبل | FV11: بعد | FW11: نتيجة | FX11: قبل | FY11: بعد | FZ11: نتيجة | GA11: SUM | GB11: عربي | GC11: E | GD11: F | GE11: جبر | GF11: تفاضل | GG11: أحياء | GH11: كيمياء | GI11: ميكانيكا | GJ11: فيزياء | GK11: مجموع | GL11: حاسب | GM11: دين | GN11: وطنية | GO11: نشاط | GP11: العاب | GQ11: تربية مهنية | GS11: عربي | GT11: E | GU11: F | GV11: جبر | GW11: تفاضل | GX11: أحياء | GY11: كيمياء | GZ11: ميكانيكا | HA11: فيزياء | HB11: حاسب | HC11: دين | HD11: وطنية | HE11: نشاط | HF11: العاب | HG11: تربية مهنية | HH11: SUM | HI11: TOTAL
CG12: =IF(HI13>=132.5,132.5,HI13) -> 132.5
A13: 1 | B13: 2183 | C13: 2018-09-23 | D13: 2002-04-19 | E13: =IF(D13>1,DATEDIF(D13,$E$10,"md"),"") -> 12 | F13: =IF(D13>1,DATEDIF(D13,$E$10,"ym"),"") -> 5 | G13: =IF(D13>1,DATEDIF(D13,$E$10,"y"),"") -> 16 | H13: احمد حسين علام حسين | I13: مستجد | J13: F | L13: 8.8 | M13: 11.8 | N13: 9 | O13: =SUM(L13:N13) -> 29.6 | P13: =IF(INT(O13)+0.5=O13,O13,IF(O13-INT(O13)<0.5,INT(O13),INT(O13)+1)) -> 30 | Q13: =COUNTIF(N13,"<6") -> 0 | R13: =COUNTIF(P13,"<30") -> 0 | S13: 9.8 | T13: 12 | U13: 9.8 | V13: =SUM(S13:U13) -> 31.6 | W13: =IF(INT(V13)+0.5=V13,V13,IF(V13-INT(V13)<0.5,INT(V13),INT(V13)+1)) -> 32 | X13: =COUNTIF(U13,"<5") -> 0 | Y13: =COUNTIF(W13,"<20") -> 0 | Z13: 5.5 | AA13: 9.6 | AB13: 6.4 | AC13: =SUM(Z13:AB13) -> 21.5 | AD13: =IF(INT(AC13)+0.5=AC13,AC13,IF(AC13-INT(AC13)<0.5,INT(AC13),INT(AC13)+1)) -> 21.5 | AE13: =COUNTIF(AB13,"<3") -> 0 | AF13: =COUNTIF(AD13,"<12") -> 0 | AG13: 3 | AH13: 0.6 | AI13: 1.6 | AJ13: =SUM(AG13:AI13) -> 5.2 | AK13: =IF(INT(AJ13)+0.5=AJ13,AJ13,IF(AJ13-INT(AJ13)<0.5,INT(AJ13),INT(AJ13)+1)) -> 5 | AL13: =COUNTIF(AI13,"<2") -> 1 | AM13: =COUNTIF(AK13,"<8") -> 1 | AN13: 3.3 | AO13: 0.6 | AP13: 2.4 | AQ13: =SUM(AN13:AP13) -> 6.3 | AR13: =IF(INT(AQ13)+0.5=AQ13,AQ13,IF(AQ13-INT(AQ13)<0.5,INT(AQ13),INT(AQ13)+1)) -> 6 | AS13: =COUNTIF(AP13,"<2") -> 0 | AT13: =COUNTIF(AR13,"<8") -> 1 | AU13: 2.3 | AV13: 2 | AW13: 4.3 | AX13: 2 | AY13: 1.8 | AZ13: =SUM(AU13:AY13) -> 12.4 | BA13: =IF(INT(AZ13)+0.5=AZ13,AZ13,IF(AZ13-INT(AZ13)<0.5,INT(AZ13),INT(AZ13)+1)) -> 12 | BB13: =COUNTIF(AX13,"<-1") -> 0 | BC13: =COUNTIF(AY13,"<1.5") -> 0 | BD13: =COUNTIF(BA13,"<8") -> 0 | BE13: 3.5 | BF13: 0.5 | BG13: 1.1 | BH13: 2 | BI13: 1.5 | BJ13: =SUM(BE13:BI13) -> 8.6 | BK13: =IF(INT(BJ13)+0.5=BJ13,BJ13,IF(BJ13-INT(BJ13)<0.5,INT(BJ13),INT(BJ13)+1)) -> 9 | BL13: =COUNTIF(BH13,"<0.5") -> 0 | BM13: =COUNTIF(BI13,"<1.5") -> 0 | BN13: =COUNTIF(BK13,"<8") -> 0 | BO13: 3.2 | BP13: 3.6 | BQ13: 2.8 | BR13: =SUM(BO13:BQ13) -> 9.6 | BS13: =IF(INT(BR13)+0.5=BR13,BR13,IF(BR13-INT(BR13)<0.5,INT(BR13),INT(BR13)+1)) -> 10 | BT13: =COUNTIF(BQ13,"<2") -> 0 | BU13: =COUNTIF(BS13,"<8") -> 0 | BV13: 2.8 | BW13: 1.5 | BX13: 0.3 | BY13: 1 | BZ13: 0.6 | CA13: =SUM(BV13:BZ13) -> 6.2 | CB13: =IF(INT(CA13)+0.5=CA13,CA13,IF(CA13-INT(CA13)<0.5,INT(CA13),INT(CA13)+1)) -> 6 | CC13: =COUNTIF(BY13,"<0.5") -> 0 | CD13: =COUNTIF(BZ13,"<1.5") -> 1 | CE13: =COUNTIF(CB13,"<8") -> 1 | CF13: 3 | CG13: =SUM(P13,W13,AD13,AK13,AR13,BA13,BK13,BS13,CB13,CF13) -> 134.5 | CH13: =COUNTIF(CG13,"<130") -> 0 | CI13: 1.4 | CJ13: 1 | CK13: 4.3 | CL13: 1 | CM13: 4.5 | CN13: =SUM(CI13:CM13) -> 12.2 | CO13: =IF(INT(CN13)+0.5=CN13,CN13,IF(CN13-INT(CN13)<0.5,INT(CN13),INT(CN13)+1)) -> 12 | CP13: =COUNTIF(CM13,"<1.3") -> 0 | CQ13: =COUNTIF(CO13,"<8") -> 0 | CR13: 3.4 | CS13: 7 | CT13: 4.5 | CU13: =SUM(CR13:CT13) -> 14.9 | CV13: =IF(INT(CU13)+0.5=CU13,CU13,IF(CU13-INT(CU13)<0.5,INT(CU13),INT(CU13)+1)) -> 15 | CW13: =COUNTIF(CT13,"<2") -> 0 | CX13: =COUNTIF(CV13,"<10") -> 0 | CY13: 3.5 | CZ13: 6.5 | DA13: 6.5 | DB13: =SUM(CY13:DA13) -> 16.5 | DC13: =IF(INT(DB13)+0.5=DB13,DB13,IF(DB13-INT(DB13)<0.5,INT(DB13),INT(DB13)+1)) -> 16.5 | DD13: =COUNTIF(DA13,"<2") -> 0 | DE13: =COUNTIF(DC13,"<8") -> 0 | DF13: 4 | DG13: 7 | DH13: 7 | DI13: =SUM(DF13:DH13) -> 18 | DJ13: =IF(INT(DI13)+0.5=DI13,DI13,IF(DI13-INT(DI13)<0.5,INT(DI13),INT(DI13)+1)) -> 18 | DK13: =COUNTIF(DJ13,"<8") -> 0 | DL13: 4 | DM13: 7 | DN13: 7 | DO13: =SUM(DL13:DN13) -> 18 | DP13: =IF(INT(DO13)+0.5=DO13,DO13,IF(DO13-INT(DO13)<0.5,INT(DO13),INT(DO13)+1)) -> 18 | DQ13: =COUNTIF(DP13,"<8") -> 0 | DR13: 4 | DS13: 3 | DT13: 4.5 | DU13: 3 | DV13: 4.5 | DW13: =SUM(DR13:DV13) -> 19 | DX13: =IF(INT(DW13)+0.5=DW13,DW13,IF(DW13-INT(DW13)<0.5,INT(DW13),INT(DW13)+1)) -> 19 | DY13: =COUNTIF(DV13,"<1.3") -> 0 | DZ13: =COUNTIF(DX13,"<8") -> 0 | EA13: =COUNTIF(DT13,"<1.3") -> 0 | EB13: =IF(GA13=0,"ناجح و منقول للصف الثالث","راسب وله حق الإعادة") -> راسب وله حق الإعادة | EC13: =GB13& " "& GC13& " "& GD13& " "& GE13& " "& GF13& " "& GG13& " "& GH13& " "& GI13& " "& GJ13& " "& GK13& " "& GL13& " "& GM13& " "& GN13& " "& GO13& " "& GP13& " "& GQ13 -> جبر تفاضل فيزياء | EG13: =IF(AND(P13>=$P$11,N13>=$N$11),0,1) -> 0 | EH13: =IF(P12>=$P$11,0,1) -> 1 | EI13: =IF(EH13=0,0,EG13) -> 0 | EJ13: =IF(AND(W13>=$W$11,U13>=$U$11),0,1) -> 0 | EK13: =IF(W12>=$W$11,0,1) -> 1 | EL13: =IF(EK13=0,0,EJ13) -> 0 | EM13: =IF(AND(AD13>=$AD$11,AB13>=$AB$11),0,1) -> 0 | EN13: =IF(AD12>=$AD$11,0,1) -> 1 | EO13: =IF(EN13=0,0,EM13) -> 0 | EP13: =IF(AND(AK13>=$AK$11,AI13>=$AI$11),0,1) -> 1 | EQ13: =IF(AK12>=$AK$11,0,1) -> 1 | ER13: =IF(EQ13=0,0,EP13) -> 1 | ES13: =IF(AND(AR13>=$AR$11,AP13>=$AP$11),0,1) -> 1 | ET13: =IF(AR12>=$AR$11,0,1) -> 1 | EU13: =IF(ET13=0,0,ES13) -> 1 | EV13: =IF(AND(BA13>=$BA$11,AY13>=$AY$11),0,1) -> 0 | EW13: =IF(BA12>=$BA$11,0,1) -> 1 | EX13: =IF(EW13=0,0,EV13) -> 0 | EY13: =IF(AND(BK13>=$BK$11,BI13>=$BI$11),0,1) -> 0 | EZ13: =IF(BK12>=$BK$11,0,1) -> 1 | FA13: =IF(EZ13=0,0,EY13) -> 0 | FB13: =IF(AND(BS13>=$BS$11,BQ13>=$BQ$11),0,1) -> 0 | FC13: =IF(BS12>=$BS$11,0,1) -> 1 | FD13: =IF(FC13=0,0,FB13) -> 0 | FE13: =IF(AND(CB13>=$CB$11,BZ13>=$BZ$11),0,1) -> 1 | FF13: =IF(CB12>=$CB$11,0,1) -> 1 | FG13: =IF(FF13=0,0,FE13) -> 1 | FH13: =IF(OR(CG13>=$CG$11,CG12>=$CG$11),0,1) -> 0 | FI13: =IF(AND(CO13>=$CO$11,CM13>=$CM$11),0,1) -> 0 | FJ13: =IF(CO12>=$CO$11,0,1) -> 1 | FK13: =IF(FJ13=0,0,FI13) -> 0 | FL13: =IF(AND(CT13>=$CT$11,CV13>=$CV$11),0,1) -> 0 | FM13: =IF(CV12>=$CV$11,0,1) -> 1 | FN13: =IF(FM13=0,0,FL13) -> 0 | FO13: =IF(AND(DC13>=$DC$11,DA13>=$DA$11),0,1) -> 0 | FP13: =IF(DC12>=$DC$11,0,1) -> 1 | FQ13: =IF(FP13=0,0,FO13) -> 0 | FR13: =IF(AND(DJ13>=$DJ$11,DH13>=$DH$11),0,1) -> 0 | FS13: =IF(DJ12>=$DJ$11,0,1) -> 1 | FT13: =IF(FS13=0,0,FR13) -> 0 | FU13: =IF(AND(DP13>=$DP$11,DN13>=$DN$11),0,1) -> 0 | FV13: =IF(DP12>=$DP$11,0,1) -> 1 | FW13: =IF(FV13=0,0,FU13) -> 0 | FX13: =IF(AND(DX13>=$DX$11,DV13>=$DV$11),0,1) -> 0 | FY13: =IF(DX12>=$DX$11,0,1) -> 1 | FZ13: =IF(FY13=0,0,FX13) -> 0 | GA13: =SUM(EI13+EL13+EO13+ER13+EU13+EX13+FA13+FD13+FG13+FH13+FK13+FN13+FQ13+FT13+FW13+FZ13) -> 3 | GB13: =IF(EI13=1,"عربي","") ->  | GC13: =IF(EL13=1,"انجليزي","") ->  | GD13: =IF(EO13=1,"فرنساوي","") ->  | GE13: =IF(ER13=1,"جبر","") -> جبر | GF13: =IF(EU13=1,"تفاضل","") -> تفاضل | GG13: =IF(EX13=1,"أحياء","") ->  | GH13: =IF(FA13=1,"كيمياء","") ->  | GI13: =IF(FD13=1,"ميكانيكا","") ->  | GJ13: =IF(FG13=1,"فيزياء","") -> فيزياء | GK13: =IF(FH13=1,"مجموع","") ->  | GL13: =IF(FK13=1,"حاسب","") ->  | GM13: =IF(FN13=1,"دين","") ->  | GN13: =IF(FQ13=1,"وطنية","") ->  | GO13: =IF(FT13=1,"نشاط","") ->  | GP13: =IF(FW13=1,"العاب","") ->  | GQ13: =IF(FX13=1,"تربية مهنية","") ->  | GS13: =IF(P12<P13,0,P12-P13) -> 0 | GT13: =IF(W12<W13,0,W12-W13) -> 0 | GU13: =IF(AD12<AD13,0,AD12-AD13) -> 0 | GV13: =IF(AK12<AK13,0,AK12-AK13) -> 0 | GW13: =IF(AR12<AR13,0,AR12-AR13) -> 0 | GX13: =IF(BA12<BA13,0,BA12-BA13) -> 0 | GY13: =IF(BK12<BK13,0,BK12-BK13) -> 0 | GZ13: =IF(BS12<BS13,0,BS12-BS13) -> 0 | HA13: =IF(CB12<CB13,0,CB12-CB13) -> 0 | HB13: =IF(CO12<CO13,0,CO12-CO13) -> 0 | HC13: =IF(CV12<CV13,0,CV12-CV13) -> 0 | HD13: =IF(DC12<DC13,0,DC12-DC13) -> 0 | HE13: =IF(DJ12<DJ13,0,DJ12-DJ13) -> 0 | HF13: =IF(DP12<DP13,0,DP12-DP13) -> 0 | HG13: =IF(DX12<DX13,0,DX12-DX13) -> 0 | HH13: =SUM(GS13:HA13) -> 0 | HI13: =HH13+CG13 -> 134.5
CG14: =IF(HI15>=132.5,132.5,HI15) -> 132.5
A15: 2 | B15: 2201 | C15: 2018-09-23 | D15: 2002-04-07 | E15: 24 | F15: 5 | G15: 16 | H15: بيومي محمد بيومي متولي | I15: مستجد | J15: F | L15: 9.6 | M15: 20 | N15: 16.8 | O15: 46.4 | P15: 46 | Q15: 0 | R15: 0 | S15: 9.9 | T15: 13.2 | U15: 12.6 | V15: 35.7 | W15: 36 | X15: 0 | Y15: 0 | Z15: 5.5 | AA15: 10.4 | AB15: 10.4 | AC15: 26.3 | AD15: 26 | AE15: 0 | AF15: 0 | AG15: 3.7 | AH15: 1.1 | AI15: 2.8 | AJ15: 7.6 | AK15: 8 | AL15: 0 | AM15: 0 | AN15: 3 | AO15: 1.2 | AP15: 2 | AQ15: 6.2 | AR15: 6 | AS15: 0 | AT15: 1 | AU15: 2.8 | AV15: 2 | AW15: 4 | AX15: 1.5 | AY15: 3.8 | AZ15: 14.1 | BA15: 14 | BB15: 0 | BC15: 0 | BD15: 0 | BE15: 3.9 | BF15: 2 | BG15: 2.6 | BH15: 2 | BI15: 0.3 | BJ15: 10.8 | BK15: 11 | BL15: 0 | BM15: 1 | BN15: 0 | BO15: 3.1 | BP15: 0.8 | BQ15: 3.7 | BR15: 7.6 | BS15: 8 | BT15: 0 | BU15: 0 | BV15: 2.8 | BW15: 1.5 | BX15: 1.3 | BY15: 1.5 | BZ15: 2.1 | CA15: 9.2 | CB15: 9 | CC15: 0 | CD15: 0 | CE15: 0 | CF15: 3 | CG15: =SUM(P15,W15,AD15,AK15,AR15,BA15,BK15,BS15,CB15,CF15) -> 167 | CH15: 0 | CI15: 3.2 | CJ15: 3 | CK15: 3.5 | CL15: 2 | CM15: 3.8 | CN15: 15.5 | CO15: 15.5 | CP15: 0 | CQ15: 0 | CR15: 3.5 | CS15: 6.5 | CT15: 5.8 | CU15: 15.8 | CV15: 16 | CW15: 0 | CX15: 0 | CY15: 3.3 | CZ15: 5.5 | DA15: 7 | DB15: 15.8 | DC15: 16 | DD15: 0 | DE15: 0 | DF15: 4 | DG15: 7 | DH15: 7 | DI15: 18 | DJ15: 18 | DK15: 0 | DL15: 4 | DM15: 7 | DN15: 7 | DO15: 18 | DP15: 18 | DQ15: 0 | DR15: 4 | DS15: 3 | DT15: 5 | DU15: 3 | DV15: 5 | DW15: 20 | DX15: 20 | DY15: =COUNTIF(DV15,"<1.3") -> 0 | DZ15: =COUNTIF(DX15,"<8") -> 0 | EA15: =COUNTIF(DT15,"<1.3") -> 0 | EB15: =IF(GA15=0,"ناجح و منقول للصف الثالث","راسب وله حق الإعادة") -> راسب وله حق الإعادة | EC15: =GB15& " "& GC15& " "& GD15& " "& GE15& " "& GF15& " "& GG15& " "& GH15& " "& GI15& " "& GJ15& " "& GK15& " "& GL15& " "& GM15& " "& GN15& " "& GO15& " "& GP15& " "& GQ15 -> تفاضل كيمياء | EG15: =IF(AND(P15>=$P$11,N15>=$N$11),0,1) -> 0 | EH15: =IF(P14>=$P$11,0,1) -> 1 | EI15: =IF(EH15=0,0,EG15) -> 0 | EJ15: =IF(AND(W15>=$W$11,U15>=$U$11),0,1) -> 0 | EK15: =IF(W14>=$W$11,0,1) -> 1 | EL15: =IF(EK15=0,0,EJ15) -> 0 | EM15: =IF(AND(AD15>=$AD$11,AB15>=$AB$11),0,1) -> 0 | EN15: =IF(AD14>=$AD$11,0,1) -> 1 | EO15: =IF(EN15=0,0,EM15) -> 0 | EP15: =IF(AND(AK15>=$AK$11,AI15>=$AI$11),0,1) -> 0 | EQ15: =IF(AK14>=$AK$11,0,1) -> 1 | ER15: =IF(EQ15=0,0,EP15) -> 0 | ES15: =IF(AND(AR15>=$AR$11,AP15>=$AP$11),0,1) -> 1 | ET15: =IF(AR14>=$AR$11,0,1) -> 1 | EU15: =IF(ET15=0,0,ES15) -> 1 | EV15: =IF(AND(BA15>=$BA$11,AY15>=$AY$11),0,1) -> 0 | EW15: =IF(BA14>=$BA$11,0,1) -> 1 | EX15: =IF(EW15=0,0,EV15) -> 0 | EY15: =IF(AND(BK15>=$BK$11,BI15>=$BI$11),0,1) -> 1 | EZ15: =IF(BK14>=$BK$11,0,1) -> 1 | FA15: =IF(EZ15=0,0,EY15) -> 1 | FB15: =IF(AND(BS15>=$BS$11,BQ15>=$BQ$11),0,1) -> 0 | FC15: =IF(BS14>=$BS$11,0,1) -> 1 | FD15: =IF(FC15=0,0,FB15) -> 0 | FE15: =IF(AND(CB15>=$CB$11,BZ15>=$BZ$11),0,1) -> 0 | FF15: =IF(CB14>=$CB$11,0,1) -> 1 | FG15: =IF(FF15=0,0,FE15) -> 0 | FH15: =IF(OR(CG15>=$CG$11,CG14>=$CG$11),0,1) -> 0 | FI15: =IF(AND(CO15>=$CO$11,CM15>=$CM$11),0,1) -> 0 | FJ15: =IF(CO14>=$CO$11,0,1) -> 1 | FK15: =IF(FJ15=0,0,FI15) -> 0 | FL15: =IF(AND(CT15>=$CT$11,CV15>=$CV$11),0,1) -> 0 | FM15: =IF(CV14>=$CV$11,0,1) -> 1 | FN15: =IF(FM15=0,0,FL15) -> 0 | FO15: =IF(AND(DC15>=$DC$11,DA15>=$DA$11),0,1) -> 0 | FP15: =IF(DC14>=$DC$11,0,1) -> 1 | FQ15: =IF(FP15=0,0,FO15) -> 0 | FR15: =IF(AND(DJ15>=$DJ$11,DH15>=$DH$11),0,1) -> 0 | FS15: =IF(DJ14>=$DJ$11,0,1) -> 1 | FT15: =IF(FS15=0,0,FR15) -> 0 | FU15: =IF(AND(DP15>=$DP$11,DN15>=$DN$11),0,1) -> 0 | FV15: =IF(DP14>=$DP$11,0,1) -> 1 | FW15: =IF(FV15=0,0,FU15) -> 0 | FX15: =IF(AND(DX15>=$DX$11,DV15>=$DV$11),0,1) -> 0 | FY15: =IF(DX14>=$DX$11,0,1) -> 1 | FZ15: =IF(FY15=0,0,FX15) -> 0 | GA15: =SUM(EI15+EL15+EO15+ER15+EU15+EX15+FA15+FD15+FG15+FH15+FK15+FN15+FQ15+FT15+FW15+FZ15) -> 2 | GB15: =IF(EI15=1,"عربي","") ->  | GC15: =IF(EL15=1,"انجليزي","") ->  | GD15: =IF(EO15=1,"فرنساوي","") ->  | GE15: =IF(ER15=1,"جبر","") ->  | GF15: =IF(EU15=1,"تفاضل","") -> تفاضل | GG15: =IF(EX15=1,"أحياء","") ->  | GH15: =IF(FA15=1,"كيمياء","") -> كيمياء | GI15: =IF(FD15=1,"ميكانيكا","") ->  | GJ15: =IF(FG15=1,"فيزياء","") ->  | GK15: =IF(FH15=1,"مجموع","") ->  | GL15: =IF(FK15=1,"حاسب","") ->  | GM15: =IF(FN15=1,"دين","") ->  | GN15: =IF(FQ15=1,"وطنية","") ->  | GO15: =IF(FT15=1,"نشاط","") ->  | GP15: =IF(FW15=1,"العاب","") ->  | GQ15: =IF(FX15=1,"تربية مهنية","") ->  | GS15: =IF(P14<P15,0,P14-P15) -> 0 | GT15: =IF(W14<W15,0,W14-W15) -> 0 | GU15: =IF(AD14<AD15,0,AD14-AD15) -> 0 | GV15: =IF(AK14<AK15,0,AK14-AK15) -> 0 | GW15: =IF(AR14<AR15,0,AR14-AR15) -> 0 | GX15: =IF(BA14<BA15,0,BA14-BA15) -> 0 | GY15: =IF(BK14<BK15,0,BK14-BK15) -> 0 | GZ15: =IF(BS14<BS15,0,BS14-BS15) -> 0 | HA15: =IF(CB14<CB15,0,CB14-CB15) -> 0 | HB15: =IF(CO14<CO15,0,CO14-CO15) -> 0 | HC15: =IF(CV14<CV15,0,CV14-CV15) -> 0 | HD15: =IF(DC14<DC15,0,DC14-DC15) -> 0 | HE15: =IF(DJ14<DJ15,0,DJ14-DJ15) -> 0 | HF15: =IF(DP14<DP15,0,DP14-DP15) -> 0 | HG15: =IF(DX14<DX15,0,DX14-DX15) -> 0 | HH15: =SUM(GS15:HA15) -> 0 | HI15: =HH15+CG15 -> 167
CG16: =IF(HI17>=132.5,132.5,HI17) -> 132.5
A17: 3 | B17: 2220 | C17: 2018-09-23 | D17: 2002-12-10 | E17: 21 | F17: 9 | G17: 15 | H17: عبد الله رضا الشبراوى ابراهيم | I17: مستجد | J17: F | L17: 11.1 | M17: 17.5 | N17: 19 | O17: 47.6 | P17: 48 | Q17: 0 | R17: 0 | S17: 6 | T17: 12.2 | U17: 14.6 | V17: 32.8 | W17: 33 | X17: 0 | Y17: 0 | Z17: 5.5 | AA17: 11.6 | AB17: 11.2 | AC17: 28.3 | AD17: 28 | AE17: 0 | AF17: 0 | AG17: 3.3 | AH17: 4.2 | AI17: 3 | AJ17: 10.5 | AK17: 10.5 | AL17: 0 | AM17: 0 | AN17: 3.3 | AO17: 1.6 | AP17: 3.4 | AQ17: 8.3 | AR17: 8 | AS17: 0 | AT17: 0 | AU17: 3.2 | AV17: 1.5 | AW17: 4 | AX17: 1.5 | AY17: 3.3 | AZ17: 13.5 | BA17: 13.5 | BB17: 0 | BC17: 0 | BD17: 0 | BE17: 3.4 | BF17: 2 | BG17: 3.9 | BH17: 2 | BI17: 1.5 | BJ17: 12.8 | BK17: 13 | BL17: 0 | BM17: 0 | BN17: 0 | BO17: 2.9 | BP17: 3 | BQ17: 3.6 | BR17: 9.5 | BS17: 9.5 | BT17: 0 | BU17: 0 | BV17: 3.1 | BW17: 2 | BX17: 3.3 | BY17: 1.5 | BZ17: 0 | CA17: 9.9 | CB17: 10 | CC17: 0 | CD17: 1 | CE17: 0 | CF17: 3 | CG17: =SUM(P17,W17,AD17,AK17,AR17,BA17,BK17,BS17,CB17,CF17) -> 176.5 | CH17: 0 | CI17: 1.2 | CJ17: 1 | CK17: 4.8 | CL17: 1 | CM17: 4 | CN17: 12 | CO17: 12 | CP17: 0 | CQ17: 0 | CR17: 3.5 | CS17: 6.3 | CT17: 5.5 | CU17: 15.3 | CV17: 15 | CW17: 0 | CX17: 0 | CY17: 3.3 | CZ17: 5 | DA17: 8 | DB17: 16.3 | DC17: 16 | DD17: 0 | DE17: 0 | DF17: 4 | DG17: 7 | DH17: 7 | DI17: 18 | DJ17: 18 | DK17: 0 | DL17: 4 | DM17: 7 | DN17: 7 | DO17: 18 | DP17: 18 | DQ17: 0 | DR17: 4 | DS17: 3 | DT17: 4.5 | DU17: 3 | DV17: 5 | DW17: 19.5 | DX17: 19.5 | DY17: =COUNTIF(DV17,"<1.3") -> 0 | DZ17: =COUNTIF(DX17,"<8") -> 0 | EA17: =COUNTIF(DT17,"<1.3") -> 0 | EB17: =IF(GA17=0,"ناجح و منقول للصف الثالث","راسب وله حق الإعادة") -> راسب وله حق الإعادة | EC17: =GB17& " "& GC17& " "& GD17& " "& GE17& " "& GF17& " "& GG17& " "& GH17& " "& GI17& " "& GJ17& " "& GK17& " "& GL17& " "& GM17& " "& GN17& " "& GO17& " "& GP17& " "& GQ17 -> فيزياء | EG17: =IF(AND(P17>=$P$11,N17>=$N$11),0,1) -> 0 | EH17: =IF(P16>=$P$11,0,1) -> 1 | EI17: =IF(EH17=0,0,EG17) -> 0 | EJ17: =IF(AND(W17>=$W$11,U17>=$U$11),0,1) -> 0 | EK17: =IF(W16>=$W$11,0,1) -> 1 | EL17: =IF(EK17=0,0,EJ17) -> 0 | EM17: =IF(AND(AD17>=$AD$11,AB17>=$AB$11),0,1) -> 0 | EN17: =IF(AD16>=$AD$11,0,1) -> 1 | EO17: =IF(EN17=0,0,EM17) -> 0 | EP17: =IF(AND(AK17>=$AK$11,AI17>=$AI$11),0,1) -> 0 | EQ17: =IF(AK16>=$AK$11,0,1) -> 1 | ER17: =IF(EQ17=0,0,EP17) -> 0 | ES17: =IF(AND(AR17>=$AR$11,AP17>=$AP$11),0,1) -> 0 | ET17: =IF(AR16>=$AR$11,0,1) -> 1 | EU17: =IF(ET17=0,0,ES17) -> 0 | EV17: =IF(AND(BA17>=$BA$11,AY17>=$AY$11),0,1) -> 0 | EW17: =IF(BA16>=$BA$11,0,1) -> 1 | EX17: =IF(EW17=0,0,EV17) -> 0 | EY17: =IF(AND(BK17>=$BK$11,BI17>=$BI$11),0,1) -> 0 | EZ17: =IF(BK16>=$BK$11,0,1) -> 1 | FA17: =IF(EZ17=0,0,EY17) -> 0 | FB17: =IF(AND(BS17>=$BS$11,BQ17>=$BQ$11),0,1) -> 0 | FC17: =IF(BS16>=$BS$11,0,1) -> 1 | FD17: =IF(FC17=0,0,FB17) -> 0 | FE17: =IF(AND(CB17>=$CB$11,BZ17>=$BZ$11),0,1) -> 1 | FF17: =IF(CB16>=$CB$11,0,1) -> 1 | FG17: =IF(FF17=0,0,FE17) -> 1 | FH17: =IF(OR(CG17>=$CG$11,CG16>=$CG$11),0,1) -> 0 | FI17: =IF(AND(CO17>=$CO$11,CM17>=$CM$11),0,1) -> 0 | FJ17: =IF(CO16>=$CO$11,0,1) -> 1 | FK17: =IF(FJ17=0,0,FI17) -> 0 | FL17: =IF(AND(CT17>=$CT$11,CV17>=$CV$11),0,1) -> 0 | FM17: =IF(CV16>=$CV$11,0,1) -> 1 | FN17: =IF(FM17=0,0,FL17) -> 0 | FO17: =IF(AND(DC17>=$DC$11,DA17>=$DA$11),0,1) -> 0 | FP17: =IF(DC16>=$DC$11,0,1) -> 1 | FQ17: =IF(FP17=0,0,FO17) -> 0 | FR17: =IF(AND(DJ17>=$DJ$11,DH17>=$DH$11),0,1) -> 0 | FS17: =IF(DJ16>=$DJ$11,0,1) -> 1 | FT17: =IF(FS17=0,0,FR17) -> 0 | FU17: =IF(AND(DP17>=$DP$11,DN17>=$DN$11),0,1) -> 0 | FV17: =IF(DP16>=$DP$11,0,1) -> 1 | FW17: =IF(FV17=0,0,FU17) -> 0 | FX17: =IF(AND(DX17>=$DX$11,DV17>=$DV$11),0,1) -> 0 | FY17: =IF(DX16>=$DX$11,0,1) -> 1 | FZ17: =IF(FY17=0,0,FX17) -> 0 | GA17: =SUM(EI17+EL17+EO17+ER17+EU17+EX17+FA17+FD17+FG17+FH17+FK17+FN17+FQ17+FT17+FW17+FZ17) -> 1 | GB17: =IF(EI17=1,"عربي","") ->  | GC17: =IF(EL17=1,"انجليزي","") ->  | GD17: =IF(EO17=1,"فرنساوي","") ->  | GE17: =IF(ER17=1,"جبر","") ->  | GF17: =IF(EU17=1,"تفاضل","") ->  | GG17: =IF(EX17=1,"أحياء","") ->  | GH17: =IF(FA17=1,"كيمياء","") ->  | GI17: =IF(FD17=1,"ميكانيكا","") ->  | GJ17: =IF(FG17=1,"فيزياء","") -> فيزياء | GK17: =IF(FH17=1,"مجموع","") ->  | GL17: =IF(FK17=1,"حاسب","") ->  | GM17: =IF(FN17=1,"دين","") ->  | GN17: =IF(FQ17=1,"وطنية","") ->  | GO17: =IF(FT17=1,"نشاط","") ->  | GP17: =IF(FW17=1,"العاب","") ->  | GQ17: =IF(FX17=1,"تربية مهنية","") ->  | GS17: =IF(P16<P17,0,P16-P17) -> 0 | GT17: =IF(W16<W17,0,W16-W17) -> 0 | GU17: =IF(AD16<AD17,0,AD16-AD17) -> 0 | GV17: =IF(AK16<AK17,0,AK16-AK17) -> 0 | GW17: =IF(AR16<AR17,0,AR16-AR17) -> 0 | GX17: =IF(BA16<BA17,0,BA16-BA17) -> 0 | GY17: =IF(BK16<BK17,0,BK16-BK17) -> 0 | GZ17: =IF(BS16<BS17,0,BS16-BS17) -> 0 | HA17: =IF(CB16<CB17,0,CB16-CB17) -> 0 | HB17: =IF(CO16<CO17,0,CO16-CO17) -> 0 | HC17: =IF(CV16<CV17,0,CV16-CV17) -> 0 | HD17: =IF(DC16<DC17,0,DC16-DC17) -> 0 | HE17: =IF(DJ16<DJ17,0,DJ16-DJ17) -> 0 | HF17: =IF(DP16<DP17,0,DP16-DP17) -> 0 | HG17: =IF(DX16<DX17,0,DX16-DX17) -> 0 | HH17: =SUM(GS17:HA17) -> 0 | HI17: =HH17+CG17 -> 176.5
CG18: =IF(HI19>=132.5,132.5,HI19) -> 132.5
A19: 4 | B19: 2233 | C19: 2018-09-23 | D19: 2001-02-24 | E19: 7 | F19: 7 | G19: 17 | H19: كريم عباس فاروق ابراهيم | I19: مستجد | J19: F | L19: 10.6 | M19: 14.5 | N19: 13 | O19: 38.1 | P19: 38 | Q19: 0 | R19: 0 | S19: 8 | T19: 5.2 | U19: 12.8 | V19: 26 | W19: 26 | X19: 0 | Y19: 0 | Z19: 5.5 | AA19: 8 | AB19: 5.2 | AC19: 18.7 | AD19: 19 | AE19: 0 | AF19: 0 | AG19: 3.3 | AH19: 1.2 | AI19: 1.2 | AJ19: 5.7 | AK19: 6 | AL19: 1 | AM19: 1 | AN19: 3.4 | AO19: 1.2 | AP19: 3.8 | AQ19: 8.4 | AR19: 8 | AS19: 0 | AT19: 0 | AU19: 3.3 | AV19: 2 | AW19: 1 | AX19: 1 | AY19: 2.8 | AZ19: 10.1 | BA19: 10 | BB19: 0 | BC19: 0 | BD19: 0 | BE19: 3.1 | BF19: 2 | BG19: 4.3 | BH19: 1.5 | BI19: 0.5 | BJ19: 11.4 | BK19: 11 | BL19: 0 | BM19: 1 | BN19: 0 | BO19: 2.8 | BP19: 1.8 | BQ19: 3.2 | BR19: 7.8 | BS19: 8 | BT19: 0 | BU19: 0 | BV19: 2.9 | BW19: 2 | BX19: 1 | BY19: 1 | BZ19: 2.7 | CA19: 9.6 | CB19: 10 | CC19: 0 | CD19: 0 | CE19: 0 | CF19: 3 | CG19: =SUM(P19,W19,AD19,AK19,AR19,BA19,BK19,BS19,CB19,CF19) -> 139 | CH19: 0 | CI19: 1.9 | CJ19: 1 | CK19: 3.8 | CL19: 1 | CM19: 3.5 | CN19: 11.2 | CO19: 11 | CP19: 0 | CQ19: 0 | CR19: 3.4 | CS19: 6 | CT19: 3.3 | CU19: 12.7 | CV19: 13 | CW19: 0 | CX19: 0 | CY19: 3.3 | CZ19: 7 | DA19: 7 | DB19: 17.3 | DC19: 17 | DD19: 0 | DE19: 0 | DF19: 4 | DG19: 7 | DH19: 7 | DI19: 18 | DJ19: 18 | DK19: 0 | DL19: 4 | DM19: 7 | DN19: 7 | DO19: 18 | DP19: 18 | DQ19: 0 | DR19: 4 | DS19: 3 | DT19: 5 | DU19: 3 | DV19: 5 | DW19: 20 | DX19: 20 | DY19: =COUNTIF(DV19,"<1.3") -> 0 | DZ19: =COUNTIF(DX19,"<8") -> 0 | EA19: =COUNTIF(DT19,"<1.3") -> 0 | EB19: =IF(GA19=0,"ناجح و منقول للصف الثالث","راسب وله حق الإعادة") -> راسب وله حق الإعادة | EC19: =GB19& " "& GC19& " "& GD19& " "& GE19& " "& GF19& " "& GG19& " "& GH19& " "& GI19& " "& GJ19& " "& GK19& " "& GL19& " "& GM19& " "& GN19& " "& GO19& " "& GP19& " "& GQ19 -> جبر كيمياء | EG19: =IF(AND(P19>=$P$11,N19>=$N$11),0,1) -> 0 | EH19: =IF(P18>=$P$11,0,1) -> 1 | EI19: =IF(EH19=0,0,EG19) -> 0 | EJ19: =IF(AND(W19>=$W$11,U19>=$U$11),0,1) -> 0 | EK19: =IF(W18>=$W$11,0,1) -> 1 | EL19: =IF(EK19=0,0,EJ19) -> 0 | EM19: =IF(AND(AD19>=$AD$11,AB19>=$AB$11),0,1) -> 0 | EN19: =IF(AD18>=$AD$11,0,1) -> 1 | EO19: =IF(EN19=0,0,EM19) -> 0 | EP19: =IF(AND(AK19>=$AK$11,AI19>=$AI$11),0,1) -> 1 | EQ19: =IF(AK18>=$AK$11,0,1) -> 1 | ER19: =IF(EQ19=0,0,EP19) -> 1 | ES19: =IF(AND(AR19>=$AR$11,AP19>=$AP$11),0,1) -> 0 | ET19: =IF(AR18>=$AR$11,0,1) -> 1 | EU19: =IF(ET19=0,0,ES19) -> 0 | EV19: =IF(AND(BA19>=$BA$11,AY19>=$AY$11),0,1) -> 0 | EW19: =IF(BA18>=$BA$11,0,1) -> 1 | EX19: =IF(EW19=0,0,EV19) -> 0 | EY19: =IF(AND(BK19>=$BK$11,BI19>=$BI$11),0,1) -> 1 | EZ19: =IF(BK18>=$BK$11,0,1) -> 1 | FA19: =IF(EZ19=0,0,EY19) -> 1 | FB19: =IF(AND(BS19>=$BS$11,BQ19>=$BQ$11),0,1) -> 0 | FC19: =IF(BS18>=$BS$11,0,1) -> 1 | FD19: =IF(FC19=0,0,FB19) -> 0 | FE19: =IF(AND(CB19>=$CB$11,BZ19>=$BZ$11),0,1) -> 0 | FF19: =IF(CB18>=$CB$11,0,1) -> 1 | FG19: =IF(FF19=0,0,FE19) -> 0 | FH19: =IF(OR(CG19>=$CG$11,CG18>=$CG$11),0,1) -> 0 | FI19: =IF(AND(CO19>=$CO$11,CM19>=$CM$11),0,1) -> 0 | FJ19: =IF(CO18>=$CO$11,0,1) -> 1 | FK19: =IF(FJ19=0,0,FI19) -> 0 | FL19: =IF(AND(CT19>=$CT$11,CV19>=$CV$11),0,1) -> 0 | FM19: =IF(CV18>=$CV$11,0,1) -> 1 | FN19: =IF(FM19=0,0,FL19) -> 0 | FO19: =IF(AND(DC19>=$DC$11,DA19>=$DA$11),0,1) -> 0 | FP19: =IF(DC18>=$DC$11,0,1) -> 1 | FQ19: =IF(FP19=0,0,FO19) -> 0 | FR19: =IF(AND(DJ19>=$DJ$11,DH19>=$DH$11),0,1) -> 0 | FS19: =IF(DJ18>=$DJ$11,0,1) -> 1 | FT19: =IF(FS19=0,0,FR19) -> 0 | FU19: =IF(AND(DP19>=$DP$11,DN19>=$DN$11),0,1) -> 0 | FV19: =IF(DP18>=$DP$11,0,1) -> 1 | FW19: =IF(FV19=0,0,FU19) -> 0 | FX19: =IF(AND(DX19>=$DX$11,DV19>=$DV$11),0,1) -> 0 | FY19: =IF(DX18>=$DX$11,0,1) -> 1 | FZ19: =IF(FY19=0,0,FX19) -> 0 | GA19: =SUM(EI19+EL19+EO19+ER19+EU19+EX19+FA19+FD19+FG19+FH19+FK19+FN19+FQ19+FT19+FW19+FZ19) -> 2 | GB19: =IF(EI19=1,"عربي","") ->  | GC19: =IF(EL19=1,"انجليزي","") ->  | GD19: =IF(EO19=1,"فرنساوي","") ->  | GE19: =IF(ER19=1,"جبر","") -> جبر | GF19: =IF(EU19=1,"تفاضل","") ->  | GG19: =IF(EX19=1,"أحياء","") ->  | GH19: =IF(FA19=1,"كيمياء","") -> كيمياء | GI19: =IF(FD19=1,"ميكانيكا","") ->  | GJ19: =IF(FG19=1,"فيزياء","") ->  | GK19: =IF(FH19=1,"مجموع","") ->  | GL19: =IF(FK19=1,"حاسب","") ->  | GM19: =IF(FN19=1,"دين","") ->  | GN19: =IF(FQ19=1,"وطنية","") ->  | GO19: =IF(FT19=1,"نشاط","") ->  | GP19: =IF(FW19=1,"العاب","") ->  | GQ19: =IF(FX19=1,"تربية مهنية","") ->  | GS19: =IF(P18<P19,0,P18-P19) -> 0 | GT19: =IF(W18<W19,0,W18-W19) -> 0 | GU19: =IF(AD18<AD19,0,AD18-AD19) -> 0 | GV19: =IF(AK18<AK19,0,AK18-AK19) -> 0 | GW19: =IF(AR18<AR19,0,AR18-AR19) -> 0 | GX19: =IF(BA18<BA19,0,BA18-BA19) -> 0 | GY19: =IF(BK18<BK19,0,BK18-BK19) -> 0 | GZ19: =IF(BS18<BS19,0,BS18-BS19) -> 0 | HA19: =IF(CB18<CB19,0,CB18-CB19) -> 0 | HB19: =IF(CO18<CO19,0,CO18-CO19) -> 0 | HC19: =IF(CV18<CV19,0,CV18-CV19) -> 0 | HD19: =IF(DC18<DC19,0,DC18-DC19) -> 0 | HE19: =IF(DJ18<DJ19,0,DJ18-DJ19) -> 0 | HF19: =IF(DP18<DP19,0,DP18-DP19) -> 0 | HG19: =IF(DX18<DX19,0,DX18-DX19) -> 0 | HH19: =SUM(GS19:HA19) -> 0 | HI19: =HH19+CG19 -> 139
CG20: =IF(HI21>=132.5,132.5,HI21) -> 132.5
A21: 5 | B21: 2271 | C21: 2018-09-23 | D21: 2002-09-26 | E21: 5 | F21: 0 | G21: 16 | H21: مصطفى محمود عبد الحليم الورداني | I21: مستجد | J21: F | L21: 11.8 | M21: 14 | N21: 13.8 | O21: 39.6 | P21: 40 | Q21: 0 | R21: 0 | S21: 7.5 | T21: 8.8 | U21: 9.2 | V21: 25.5 | W21: 25.5 | X21: 0 | Y21: 0 | Z21: 4.2 | AA21: 8.8 | AB21: 6.4 | AC21: 19.4 | AD21: 19 | AE21: 0 | AF21: 0 | AG21: 2.9 | AH21: 1 | AI21: 3.9 | AJ21: 7.8 | AK21: 8 | AL21: 0 | AM21: 0 | AN21: 2.9 | AO21: 2.6 | AP21: 1.2 | AQ21: 6.7 | AR21: 7 | AS21: 1 | AT21: 1 | AU21: 2 | AV21: 1.8 | AW21: 0.8 | AX21: 1.5 | AY21: 0.3 | AZ21: 6.4 | BA21: 6 | BB21: 0 | BC21: 1 | BD21: 1 | BE21: 2.9 | BF21: 2 | BG21: 1.4 | BH21: 1 | BI21: 0.4 | BJ21: 7.7 | BK21: 8 | BL21: 0 | BM21: 1 | BN21: 0 | BO21: 3 | BP21: 3.2 | BQ21: 2.4 | BR21: 8.6 | BS21: 9 | BT21: 0 | BU21: 0 | BV21: 2.8 | BW21: 1.5 | BX21: 1.3 | BY21: 0.5 | BZ21: 0.6 | CA21: 6.7 | CB21: 7 | CC21: 0 | CD21: 1 | CE21: 1 | CF21: 3 | CG21: =SUM(P21,W21,AD21,AK21,AR21,BA21,BK21,BS21,CB21,CF21) -> 132.5 | CH21: 0 | CI21: 1.8 | CJ21: 1 | CK21: 1.8 | CL21: 1 | CM21: 4 | CN21: 9.6 | CO21: 10 | CP21: 0 | CQ21: 0 | CR21: 3.5 | CS21: 7 | CT21: 5.8 | CU21: 16.3 | CV21: 16 | CW21: 0 | CX21: 0 | CY21: 3.5 | CZ21: 6 | DA21: 6 | DB21: 15.5 | DC21: 15.5 | DD21: 0 | DE21: 0 | DF21: 4 | DG21: 7 | DH21: 7 | DI21: 18 | DJ21: 18 | DK21: 0 | DL21: 4 | DM21: 7 | DN21: 7 | DO21: 18 | DP21: 18 | DQ21: 0 | DR21: 4 | DS21: 3 | DT21: 4 | DU21: 3 | DV21: 5 | DW21: 19 | DX21: 19 | DY21: =COUNTIF(DV21,"<1.3") -> 0 | DZ21: =COUNTIF(DX21,"<8") -> 0 | EA21: =COUNTIF(DT21,"<1.3") -> 0 | EB21: =IF(GA21=0,"ناجح و منقول للصف الثالث","راسب وله حق الإعادة") -> راسب وله حق الإعادة | EC21: =GB21& " "& GC21& " "& GD21& " "& GE21& " "& GF21& " "& GG21& " "& GH21& " "& GI21& " "& GJ21& " "& GK21& " "& GL21& " "& GM21& " "& GN21& " "& GO21& " "& GP21& " "& GQ21 -> تفاضل أحياء كيمياء فيزياء | EG21: =IF(AND(P21>=$P$11,N21>=$N$11),0,1) -> 0 | EH21: =IF(P20>=$P$11,0,1) -> 1 | EI21: =IF(EH21=0,0,EG21) -> 0 | EJ21: =IF(AND(W21>=$W$11,U21>=$U$11),0,1) -> 0 | EK21: =IF(W20>=$W$11,0,1) -> 1 | EL21: =IF(EK21=0,0,EJ21) -> 0 | EM21: =IF(AND(AD21>=$AD$11,AB21>=$AB$11),0,1) -> 0 | EN21: =IF(AD20>=$AD$11,0,1) -> 1 | EO21: =IF(EN21=0,0,EM21) -> 0 | EP21: =IF(AND(AK21>=$AK$11,AI21>=$AI$11),0,1) -> 0 | EQ21: =IF(AK20>=$AK$11,0,1) -> 1 | ER21: =IF(EQ21=0,0,EP21) -> 0 | ES21: =IF(AND(AR21>=$AR$11,AP21>=$AP$11),0,1) -> 1 | ET21: =IF(AR20>=$AR$11,0,1) -> 1 | EU21: =IF(ET21=0,0,ES21) -> 1 | EV21: =IF(AND(BA21>=$BA$11,AY21>=$AY$11),0,1) -> 1 | EW21: =IF(BA20>=$BA$11,0,1) -> 1 | EX21: =IF(EW21=0,0,EV21) -> 1 | EY21: =IF(AND(BK21>=$BK$11,BI21>=$BI$11),0,1) -> 1 | EZ21: =IF(BK20>=$BK$11,0,1) -> 1 | FA21: =IF(EZ21=0,0,EY21) -> 1 | FB21: =IF(AND(BS21>=$BS$11,BQ21>=$BQ$11),0,1) -> 0 | FC21: =IF(BS20>=$BS$11,0,1) -> 1 | FD21: =IF(FC21=0,0,FB21) -> 0 | FE21: =IF(AND(CB21>=$CB$11,BZ21>=$BZ$11),0,1) -> 1 | FF21: =IF(CB20>=$CB$11,0,1) -> 1 | FG21: =IF(FF21=0,0,FE21) -> 1 | FH21: =IF(OR(CG21>=$CG$11,CG20>=$CG$11),0,1) -> 0 | FI21: =IF(AND(CO21>=$CO$11,CM21>=$CM$11),0,1) -> 0 | FJ21: =IF(CO20>=$CO$11,0,1) -> 1 | FK21: =IF(FJ21=0,0,FI21) -> 0 | FL21: =IF(AND(CT21>=$CT$11,CV21>=$CV$11),0,1) -> 0 | FM21: =IF(CV20>=$CV$11,0,1) -> 1 | FN21: =IF(FM21=0,0,FL21) -> 0 | FO21: =IF(AND(DC21>=$DC$11,DA21>=$DA$11),0,1) -> 0 | FP21: =IF(DC20>=$DC$11,0,1) -> 1 | FQ21: =IF(FP21=0,0,FO21) -> 0 | FR21: =IF(AND(DJ21>=$DJ$11,DH21>=$DH$11),0,1) -> 0 | FS21: =IF(DJ20>=$DJ$11,0,1) -> 1 | FT21: =IF(FS21=0,0,FR21) -> 0 | FU21: =IF(AND(DP21>=$DP$11,DN21>=$DN$11),0,1) -> 0 | FV21: =IF(DP20>=$DP$11,0,1) -> 1 | FW21: =IF(FV21=0,0,FU21) -> 0 | FX21: =IF(AND(DX21>=$DX$11,DV21>=$DV$11),0,1) -> 0 | FY21: =IF(DX20>=$DX$11,0,1) -> 1 | FZ21: =IF(FY21=0,0,FX21) -> 0 | GA21: =SUM(EI21+EL21+EO21+ER21+EU21+EX21+FA21+FD21+FG21+FH21+FK21+FN21+FQ21+FT21+FW21+FZ21) -> 4 | GB21: =IF(EI21=1,"عربي","") ->  | GC21: =IF(EL21=1,"انجليزي","") ->  | GD21: =IF(EO21=1,"فرنساوي","") ->  | GE21: =IF(ER21=1,"جبر","") ->  | GF21: =IF(EU21=1,"تفاضل","") -> تفاضل | GG21: =IF(EX21=1,"أحياء","") -> أحياء | GH21: =IF(FA21=1,"كيمياء","") -> كيمياء | GI21: =IF(FD21=1,"ميكانيكا","") ->  | GJ21: =IF(FG21=1,"فيزياء","") -> فيزياء | GK21: =IF(FH21=1,"مجموع","") ->  | GL21: =IF(FK21=1,"حاسب","") ->  | GM21: =IF(FN21=1,"دين","") ->  | GN21: =IF(FQ21=1,"وطنية","") ->  | GO21: =IF(FT21=1,"نشاط","") ->  | GP21: =IF(FW21=1,"العاب","") ->  | GQ21: =IF(FX21=1,"تربية مهنية","") ->  | GS21: =IF(P20<P21,0,P20-P21) -> 0 | GT21: =IF(W20<W21,0,W20-W21) -> 0 | GU21: =IF(AD20<AD21,0,AD20-AD21) -> 0 | GV21: =IF(AK20<AK21,0,AK20-AK21) -> 0 | GW21: =IF(AR20<AR21,0,AR20-AR21) -> 0 | GX21: =IF(BA20<BA21,0,BA20-BA21) -> 0 | GY21: =IF(BK20<BK21,0,BK20-BK21) -> 0 | GZ21: =IF(BS20<BS21,0,BS20-BS21) -> 0 | HA21: =IF(CB20<CB21,0,CB20-CB21) -> 0 | HB21: =IF(CO20<CO21,0,CO20-CO21) -> 0 | HC21: =IF(CV20<CV21,0,CV20-CV21) -> 0 | HD21: =IF(DC20<DC21,0,DC20-DC21) -> 0 | HE21: =IF(DJ20<DJ21,0,DJ20-DJ21) -> 0 | HF21: =IF(DP20<DP21,0,DP20-DP21) -> 0 | HG21: =IF(DX20<DX21,0,DX20-DX21) -> 0 | HH21: =SUM(GS21:HA21) -> 0 | HI21: =HH21+CG21 -> 132.5
CG22: =IF(HI23>=132.5,132.5,HI23) -> 132.5
A23: 6 | B23: 2290 | C23: 2018-09-23 | D23: 2002-03-30 | E23: 1 | F23: 6 | G23: 16 | H23: اسامة منشاوى عثمان يوسف | I23: مستجد | J23: G | L23: 10.1 | M23: 21 | N23: 21.3 | O23: 52.4 | P23: 52 | Q23: 0 | R23: 0 | S23: 8 | T23: 14.6 | U23: 18 | V23: 40.6 | W23: 41 | X23: 0 | Y23: 0 | Z23: 4.9 | AA23: 10.8 | AB23: 8.4 | AC23: 24.1 | AD23: 24 | AE23: 0 | AF23: 0 | AG23: 2.6 | AH23: 6.4 | AI23: 8 | AJ23: 17 | AK23: 17 | AL23: 0 | AM23: 0 | AN23: 2.8 | AO23: 7 | AP23: 6.8 | AQ23: 16.6 | AR23: 17 | AS23: 0 | AT23: 0 | AU23: 3.6 | AV23: 2 | AW23: 5.3 | AX23: 2 | AY23: 5.5 | AZ23: 18.4 | BA23: 18 | BB23: 0 | BC23: 0 | BD23: 0 | BE23: 2.3 | BF23: 2 | BG23: 5.9 | BH23: 2 | BI23: 5.3 | BJ23: 17.5 | BK23: 17.5 | BL23: 0 | BM23: 0 | BN23: 0 | BO23: 2.8 | BP23: 6.4 | BQ23: 7 | BR23: 16.2 | BS23: 16 | BT23: 0 | BU23: 0 | BV23: 0.5 | BW23: 1.5 | BX23: 4.6 | BY23: 0.5 | BZ23: 5.8 | CA23: 12.9 | CB23: 13 | CC23: 0 | CD23: 0 | CE23: 0 | CF23: 5 | CG23: =SUM(P23,W23,AD23,AK23,AR23,BA23,BK23,BS23,CB23,CF23) -> 220.5 | CH23: 0 | CI23: 1.7 | CJ23: 1 | CK23: 2.5 | CL23: 1 | CM23: 4.8 | CN23: 11 | CO23: 11 | CP23: 0 | CQ23: 0 | CR23: 3.4 | CS23: 7 | CT23: 5.5 | CU23: 15.9 | CV23: 16 | CW23: 0 | CX23: 0 | CY23: 3.4 | CZ23: 6.5 | DA23: 8 | DB23: 17.9 | DC23: 18 | DD23: 0 | DE23: 0 | DF23: 4 | DG23: 7 | DH23: 7 | DI23: 18 | DJ23: 18 | DK23: 0 | DL23: 4 | DM23: 7 | DN23: 7 | DO23: 18 | DP23: 18 | DQ23: 0 | DR23: 4 | DS23: 3 | DT23: 4 | DU23: 3 | DV23: 0 | DW23: 14 | DX23: 14 | DY23: =COUNTIF(DV23,"<1.3") -> 1 | DZ23: =COUNTIF(DX23,"<8") -> 0 | EA23: =COUNTIF(DT23,"<1.3") -> 0 | EB23: =IF(GA23=0,"ناجح و منقول للصف الثالث","راسب وله حق الإعادة") -> راسب وله حق الإعادة | EC23: =GB23& " "& GC23& " "& GD23& " "& GE23& " "& GF23& " "& GG23& " "& GH23& " "& GI23& " "& GJ23& " "& GK23& " "& GL23& " "& GM23& " "& GN23& " "& GO23& " "& GP23& " "& GQ23 -> تربية مهنية | EG23: =IF(AND(P23>=$P$11,N23>=$N$11),0,1) -> 0 | EH23: =IF(P22>=$P$11,0,1) -> 1 | EI23: =IF(EH23=0,0,EG23) -> 0 | EJ23: =IF(AND(W23>=$W$11,U23>=$U$11),0,1) -> 0 | EK23: =IF(W22>=$W$11,0,1) -> 1 | EL23: =IF(EK23=0,0,EJ23) -> 0 | EM23: =IF(AND(AD23>=$AD$11,AB23>=$AB$11),0,1) -> 0 | EN23: =IF(AD22>=$AD$11,0,1) -> 1 | EO23: =IF(EN23=0,0,EM23) -> 0 | EP23: =IF(AND(AK23>=$AK$11,AI23>=$AI$11),0,1) -> 0 | EQ23: =IF(AK22>=$AK$11,0,1) -> 1 | ER23: =IF(EQ23=0,0,EP23) -> 0 | ES23: =IF(AND(AR23>=$AR$11,AP23>=$AP$11),0,1) -> 0 | ET23: =IF(AR22>=$AR$11,0,1) -> 1 | EU23: =IF(ET23=0,0,ES23) -> 0 | EV23: =IF(AND(BA23>=$BA$11,AY23>=$AY$11),0,1) -> 0 | EW23: =IF(BA22>=$BA$11,0,1) -> 1 | EX23: =IF(EW23=0,0,EV23) -> 0 | EY23: =IF(AND(BK23>=$BK$11,BI23>=$BI$11),0,1) -> 0 | EZ23: =IF(BK22>=$BK$11,0,1) -> 1 | FA23: =IF(EZ23=0,0,EY23) -> 0 | FB23: =IF(AND(BS23>=$BS$11,BQ23>=$BQ$11),0,1) -> 0 | FC23: =IF(BS22>=$BS$11,0,1) -> 1 | FD23: =IF(FC23=0,0,FB23) -> 0 | FE23: =IF(AND(CB23>=$CB$11,BZ23>=$BZ$11),0,1) -> 0 | FF23: =IF(CB22>=$CB$11,0,1) -> 1 | FG23: =IF(FF23=0,0,FE23) -> 0 | FH23: =IF(OR(CG23>=$CG$11,CG22>=$CG$11),0,1) -> 0 | FI23: =IF(AND(CO23>=$CO$11,CM23>=$CM$11),0,1) -> 0 | FJ23: =IF(CO22>=$CO$11,0,1) -> 1 | FK23: =IF(FJ23=0,0,FI23) -> 0 | FL23: =IF(AND(CT23>=$CT$11,CV23>=$CV$11),0,1) -> 0 | FM23: =IF(CV22>=$CV$11,0,1) -> 1 | FN23: =IF(FM23=0,0,FL23) -> 0 | FO23: =IF(AND(DC23>=$DC$11,DA23>=$DA$11),0,1) -> 0 | FP23: =IF(DC22>=$DC$11,0,1) -> 1 | FQ23: =IF(FP23=0,0,FO23) -> 0 | FR23: =IF(AND(DJ23>=$DJ$11,DH23>=$DH$11),0,1) -> 0 | FS23: =IF(DJ22>=$DJ$11,0,1) -> 1 | FT23: =IF(FS23=0,0,FR23) -> 0 | FU23: =IF(AND(DP23>=$DP$11,DN23>=$DN$11),0,1) -> 0 | FV23: =IF(DP22>=$DP$11,0,1) -> 1 | FW23: =IF(FV23=0,0,FU23) -> 0 | FX23: =IF(AND(DX23>=$DX$11,DV23>=$DV$11),0,1) -> 1 | FY23: =IF(DX22>=$DX$11,0,1) -> 1 | FZ23: =IF(FY23=0,0,FX23) -> 1 | GA23: =SUM(EI23+EL23+EO23+ER23+EU23+EX23+FA23+FD23+FG23+FH23+FK23+FN23+FQ23+FT23+FW23+FZ23) -> 1 | GB23: =IF(EI23=1,"عربي","") ->  | GC23: =IF(EL23=1,"انجليزي","") ->  | GD23: =IF(EO23=1,"فرنساوي","") ->  | GE23: =IF(ER23=1,"جبر","") ->  | GF23: =IF(EU23=1,"تفاضل","") ->  | GG23: =IF(EX23=1,"أحياء","") ->  | GH23: =IF(FA23=1,"كيمياء","") ->  | GI23: =IF(FD23=1,"ميكانيكا","") ->  | GJ23: =IF(FG23=1,"فيزياء","") ->  | GK23: =IF(FH23=1,"مجموع","") ->  | GL23: =IF(FK23=1,"حاسب","") ->  | GM23: =IF(FN23=1,"دين","") ->  | GN23: =IF(FQ23=1,"وطنية","") ->  | GO23: =IF(FT23=1,"نشاط","") ->  | GP23: =IF(FW23=1,"العاب","") ->  | GQ23: =IF(FX23=1,"تربية مهنية","") -> تربية مهنية | GS23: =IF(P22<P23,0,P22-P23) -> 0 | GT23: =IF(W22<W23,0,W22-W23) -> 0 | GU23: =IF(AD22<AD23,0,AD22-AD23) -> 0 | GV23: =IF(AK22<AK23,0,AK22-AK23) -> 0 | GW23: =IF(AR22<AR23,0,AR22-AR23) -> 0 | GX23: =IF(BA22<BA23,0,BA22-BA23) -> 0 | GY23: =IF(BK22<BK23,0,BK22-BK23) -> 0 | GZ23: =IF(BS22<BS23,0,BS22-BS23) -> 0 | HA23: =IF(CB22<CB23,0,CB22-CB23) -> 0 | HB23: =IF(CO22<CO23,0,CO22-CO23) -> 0 | HC23: =IF(CV22<CV23,0,CV22-CV23) -> 0 | HD23: =IF(DC22<DC23,0,DC22-DC23) -> 0 | HE23: =IF(DJ22<DJ23,0,DJ22-DJ23) -> 0 | HF23: =IF(DP22<DP23,0,DP22-DP23) -> 0 | HG23: =IF(DX22<DX23,0,DX22-DX23) -> 0 | HH23: =SUM(GS23:HA23) -> 0 | HI23: =HH23+CG23 -> 220.5
CG24: =IF(HI25>=132.5,132.5,HI25) -> 132.5
A25: 7 | B25: 2301 | C25: 2018-09-23 | D25: 2002-07-14 | E25: 17 | F25: 2 | G25: 16 | H25: محمد احمد إبراهيم حسن | I25: مستجد | J25: G | L25: 10.7 | M25: 14 | N25: 15 | O25: 39.7 | P25: 40 | Q25: 0 | R25: 0 | S25: 7.5 | T25: 10.6 | U25: 12.4 | V25: 30.5 | W25: 30.5 | X25: 0 | Y25: 0 | Z25: 4.9 | AA25: 8 | AB25: 4.8 | AC25: 17.7 | AD25: 18 | AE25: 0 | AF25: 0 | AG25: 3 | AH25: 1.8 | AI25: 2.8 | AJ25: 7.6 | AK25: 8 | AL25: 0 | AM25: 0 | AN25: 2.7 | AO25: 3 | AP25: 6 | AQ25: 11.7 | AR25: 12 | AS25: 0 | AT25: 0 | AU25: 2.9 | AV25: 1.5 | AW25: 1.5 | AX25: 1.5 | AY25: 4 | AZ25: 11.4 | BA25: 11 | BB25: 0 | BC25: 0 | BD25: 0 | BE25: 1 | BF25: 2 | BG25: 4.4 | BH25: 1.5 | BI25: 2.5 | BJ25: 11.4 | BK25: 11 | BL25: 0 | BM25: 0 | BN25: 0 | BO25: 2.8 | BP25: 1.2 | BQ25: 3.6 | BR25: 7.6 | BS25: 8 | BT25: 0 | BU25: 0 | BV25: 2.9 | BW25: 0 | BX25: 3.1 | BY25: 0.5 | BZ25: 1.8 | CA25: 8.3 | CB25: 8 | CC25: 0 | CD25: 0 | CE25: 0 | CF25: 3 | CG25: =SUM(P25,W25,AD25,AK25,AR25,BA25,BK25,BS25,CB25,CF25) -> 149.5 | CH25: 0 | CI25: 1.9 | CJ25: 1 | CK25: 2.8 | CL25: 0 | CM25: 4.5 | CN25: 10.2 | CO25: 10 | CP25: 0 | CQ25: 0 | CR25: 3.3 | CS25: 7 | CT25: 6.3 | CU25: 16.6 | CV25: 17 | CW25: 0 | CX25: 0 | CY25: 3.5 | CZ25: 6.5 | DA25: 6.5 | DB25: 16.5 | DC25: 16.5 | DD25: 0 | DE25: 0 | DF25: 4 | DG25: 7 | DH25: 7 | DI25: 18 | DJ25: 18 | DK25: 0 | DL25: 4 | DM25: 7 | DN25: 7 | DO25: 18 | DP25: 18 | DQ25: 0 | DR25: 0 | DS25: 0 | DT25: 0 | DU25: 0 | DV25: 0 | DW25: 0 | DX25: 0 | DY25: =COUNTIF(DV25,"<1.3") -> 1 | DZ25: =COUNTIF(DX25,"<8") -> 1 | EA25: =COUNTIF(DT25,"<1.3") -> 1 | EB25: =IF(GA25=0,"ناجح و منقول للصف الثالث","راسب وله حق الإعادة") -> راسب وله حق الإعادة | EC25: =GB25& " "& GC25& " "& GD25& " "& GE25& " "& GF25& " "& GG25& " "& GH25& " "& GI25& " "& GJ25& " "& GK25& " "& GL25& " "& GM25& " "& GN25& " "& GO25& " "& GP25& " "& GQ25 -> تربية مهنية | EG25: =IF(AND(P25>=$P$11,N25>=$N$11),0,1) -> 0 | EH25: =IF(P24>=$P$11,0,1) -> 1 | EI25: =IF(EH25=0,0,EG25) -> 0 | EJ25: =IF(AND(W25>=$W$11,U25>=$U$11),0,1) -> 0 | EK25: =IF(W24>=$W$11,0,1) -> 1 | EL25: =IF(EK25=0,0,EJ25) -> 0 | EM25: =IF(AND(AD25>=$AD$11,AB25>=$AB$11),0,1) -> 0 | EN25: =IF(AD24>=$AD$11,0,1) -> 1 | EO25: =IF(EN25=0,0,EM25) -> 0 | EP25: =IF(AND(AK25>=$AK$11,AI25>=$AI$11),0,1) -> 0 | EQ25: =IF(AK24>=$AK$11,0,1) -> 1 | ER25: =IF(EQ25=0,0,EP25) -> 0 | ES25: =IF(AND(AR25>=$AR$11,AP25>=$AP$11),0,1) -> 0 | ET25: =IF(AR24>=$AR$11,0,1) -> 1 | EU25: =IF(ET25=0,0,ES25) -> 0 | EV25: =IF(AND(BA25>=$BA$11,AY25>=$AY$11),0,1) -> 0 | EW25: =IF(BA24>=$BA$11,0,1) -> 1 | EX25: =IF(EW25=0,0,EV25) -> 0 | EY25: =IF(AND(BK25>=$BK$11,BI25>=$BI$11),0,1) -> 0 | EZ25: =IF(BK24>=$BK$11,0,1) -> 1 | FA25: =IF(EZ25=0,0,EY25) -> 0 | FB25: =IF(AND(BS25>=$BS$11,BQ25>=$BQ$11),0,1) -> 0 | FC25: =IF(BS24>=$BS$11,0,1) -> 1 | FD25: =IF(FC25=0,0,FB25) -> 0 | FE25: =IF(AND(CB25>=$CB$11,BZ25>=$BZ$11),0,1) -> 0 | FF25: =IF(CB24>=$CB$11,0,1) -> 1 | FG25: =IF(FF25=0,0,FE25) -> 0 | FH25: =IF(OR(CG25>=$CG$11,CG24>=$CG$11),0,1) -> 0 | FI25: =IF(AND(CO25>=$CO$11,CM25>=$CM$11),0,1) -> 0 | FJ25: =IF(CO24>=$CO$11,0,1) -> 1 | FK25: =IF(FJ25=0,0,FI25) -> 0 | FL25: =IF(AND(CT25>=$CT$11,CV25>=$CV$11),0,1) -> 0 | FM25: =IF(CV24>=$CV$11,0,1) -> 1 | FN25: =IF(FM25=0,0,FL25) -> 0 | FO25: =IF(AND(DC25>=$DC$11,DA25>=$DA$11),0,1) -> 0 | FP25: =IF(DC24>=$DC$11,0,1) -> 1 | FQ25: =IF(FP25=0,0,FO25) -> 0 | FR25: =IF(AND(DJ25>=$DJ$11,DH25>=$DH$11),0,1) -> 0 | FS25: =IF(DJ24>=$DJ$11,0,1) -> 1 | FT25: =IF(FS25=0,0,FR25) -> 0 | FU25: =IF(AND(DP25>=$DP$11,DN25>=$DN$11),0,1) -> 0 | FV25: =IF(DP24>=$DP$11,0,1) -> 1 | FW25: =IF(FV25=0,0,FU25) -> 0 | FX25: =IF(AND(DX25>=$DX$11,DV25>=$DV$11),0,1) -> 1 | FY25: =IF(DX24>=$DX$11,0,1) -> 1 | FZ25: =IF(FY25=0,0,FX25) -> 1 | GA25: =SUM(EI25+EL25+EO25+ER25+EU25+EX25+FA25+FD25+FG25+FH25+FK25+FN25+FQ25+FT25+FW25+FZ25) -> 1 | GB25: =IF(EI25=1,"عربي","") ->  | GC25: =IF(EL25=1,"انجليزي","") ->  | GD25: =IF(EO25=1,"فرنساوي","") ->  | GE25: =IF(ER25=1,"جبر","") ->  | GF25: =IF(EU25=1,"تفاضل","") ->  | GG25: =IF(EX25=1,"أحياء","") ->  | GH25: =IF(FA25=1,"كيمياء","") ->  | GI25: =IF(FD25=1,"ميكانيكا","") ->  | GJ25: =IF(FG25=1,"فيزياء","") ->  | GK25: =IF(FH25=1,"مجموع","") ->  | GL25: =IF(FK25=1,"حاسب","") ->  | GM25: =IF(FN25=1,"دين","") ->  | GN25: =IF(FQ25=1,"وطنية","") ->  | GO25: =IF(FT25=1,"نشاط","") ->  | GP25: =IF(FW25=1,"العاب","") ->  | GQ25: =IF(FX25=1,"تربية مهنية","") -> تربية مهنية | GS25: =IF(P24<P25,0,P24-P25) -> 0 | GT25: =IF(W24<W25,0,W24-W25) -> 0 | GU25: =IF(AD24<AD25,0,AD24-AD25) -> 0 | GV25: =IF(AK24<AK25,0,AK24-AK25) -> 0 | GW25: =IF(AR24<AR25,0,AR24-AR25) -> 0 | GX25: =IF(BA24<BA25,0,BA24-BA25) -> 0 | GY25: =IF(BK24<BK25,0,BK24-BK25) -> 0 | GZ25: =IF(BS24<BS25,0,BS24-BS25) -> 0 | HA25: =IF(CB24<CB25,0,CB24-CB25) -> 0 | HB25: =IF(CO24<CO25,0,CO24-CO25) -> 0 | HC25: =IF(CV24<CV25,0,CV24-CV25) -> 0 | HD25: =IF(DC24<DC25,0,DC24-DC25) -> 0 | HE25: =IF(DJ24<DJ25,0,DJ24-DJ25) -> 0 | HF25: =IF(DP24<DP25,0,DP24-DP25) -> 0 | HG25: =IF(DX24<DX25,0,DX24-DX25) -> 0 | HH25: =SUM(GS25:HA25) -> 0 | HI25: =HH25+CG25 -> 149.5
CG26: =IF(HI27>=132.5,132.5,HI27) -> 125
A27: 8 | B27: 2321 | C27: 2018-09-23 | D27: 2002-10-18 | E27: 13 | F27: 11 | G27: 15 | H27: يوسف سعد عبد الفتاح سيد ابراهيم | I27: مستجد | J27: G | L27: 10.8 | M27: 10.3 | N27: 11 | O27: 32.1 | P27: 32 | Q27: 0 | R27: 0 | S27: 7.9 | T27: 5.2 | U27: 6.6 | V27: 19.7 | W27: 20 | X27: 0 | Y27: 0 | Z27: 4.8 | AA27: 9.2 | AB27: 5.6 | AC27: 19.6 | AD27: 20 | AE27: 0 | AF27: 0 | AG27: 2.7 | AH27: 1.6 | AI27: 8 | AJ27: 12.3 | AK27: 12 | AL27: 0 | AM27: 0 | AN27: 2.7 | AO27: 0.8 | AP27: 1.2 | AQ27: 4.7 | AR27: 5 | AS27: 1 | AT27: 1 | AU27: 2.7 | AV27: 1.5 | AW27: 1 | AX27: 2 | AY27: 2.5 | AZ27: 9.7 | BA27: 10 | BB27: 0 | BC27: 0 | BD27: 0 | BE27: 3.4 | BF27: 2 | BG27: 1.9 | BH27: 1 | BI27: 0.5 | BJ27: 8.8 | BK27: 9 | BL27: 0 | BM27: 1 | BN27: 0 | BO27: 2.7 | BP27: 3.2 | BQ27: 2 | BR27: 7.9 | BS27: 8 | BT27: 0 | BU27: 0 | BV27: 1.5 | BW27: 2 | BX27: 0.3 | BY27: 1 | BZ27: 0.8 | CA27: 5.6 | CB27: 6 | CC27: 0 | CD27: 1 | CE27: 1 | CF27: 3 | CG27: =SUM(P27,W27,AD27,AK27,AR27,BA27,BK27,BS27,CB27,CF27) -> 125 | CH27: 1 | CI27: 1.3 | CJ27: 1 | CK27: 4 | CL27: 0 | CM27: 4.8 | CN27: 11.1 | CO27: 11 | CP27: 0 | CQ27: 0 | CR27: 3.5 | CS27: 6.8 | CT27: 4 | CU27: 14.3 | CV27: 14 | CW27: 0 | CX27: 0 | CY27: 3.4 | CZ27: 4.5 | DA27: 8 | DB27: 15.9 | DC27: 16 | DD27: 0 | DE27: 0 | DF27: 4 | DG27: 7 | DH27: 7 | DI27: 18 | DJ27: 18 | DK27: 0 | DL27: 4 | DM27: 7 | DN27: 7 | DO27: 18 | DP27: 18 | DQ27: 0 | DR27: 4 | DS27: 3 | DT27: 5 | DU27: 3 | DV27: 5 | DW27: 20 | DX27: 20 | DY27: =COUNTIF(DV27,"<1.3") -> 0 | DZ27: =COUNTIF(DX27,"<8") -> 0 | EA27: =COUNTIF(DT27,"<1.3") -> 0 | EB27: =IF(GA27=0,"ناجح و منقول للصف الثالث","راسب وله حق الإعادة") -> راسب وله حق الإعادة | EC27: =GB27&" "&GC27&" "&GD27&" "&GE27&" "&GF27&" "&GG27&" "&GH27&" "&GI27&" "&GJ27&" "&GK27&" "&GM27&" "&GN27&" " -> تفاضل كيمياء فيزياء مجموع | EG27: =IF(AND(P27>=$P$11,N27>=$N$11),0,1) -> 0 | EH27: =IF(P26>=$P$11,0,1) -> 1 | EI27: =IF(EH27=0,0,EG27) -> 0 | EJ27: =IF(AND(W27>=$W$11,U27>=$U$11),0,1) -> 0 | EK27: =IF(W26>=$W$11,0,1) -> 1 | EL27: =IF(EK27=0,0,EJ27) -> 0 | EM27: =IF(AND(AD27>=$AD$11,AB27>=$AB$11),0,1) -> 0 | EN27: =IF(AD26>=$AD$11,0,1) -> 1 | EO27: =IF(EN27=0,0,EM27) -> 0 | EP27: =IF(AND(AK27>=$AK$11,AI27>=$AI$11),0,1) -> 0 | EQ27: =IF(AK26>=$AK$11,0,1) -> 1 | ER27: =IF(EQ27=0,0,EP27) -> 0 | ES27: =IF(AND(AR27>=$AR$11,AP27>=$AP$11),0,1) -> 1 | ET27: =IF(AR26>=$AR$11,0,1) -> 1 | EU27: =IF(ET27=0,0,ES27) -> 1 | EV27: =IF(AND(BA27>=$BA$11,AY27>=$AY$11),0,1) -> 0 | EW27: =IF(BA26>=$BA$11,0,1) -> 1 | EX27: =IF(EW27=0,0,EV27) -> 0 | EY27: =IF(AND(BK27>=$BK$11,BI27>=$BI$11),0,1) -> 1 | EZ27: =IF(BK26>=$BK$11,0,1) -> 1 | FA27: =IF(EZ27=0,0,EY27) -> 1 | FB27: =IF(AND(BS27>=$BS$11,BQ27>=$BQ$11),0,1) -> 0 | FC27: =IF(BS26>=$BS$11,0,1) -> 1 | FD27: =IF(FC27=0,0,FB27) -> 0 | FE27: =IF(AND(CB27>=$CB$11,BZ27>=$BZ$11),0,1) -> 1 | FF27: =IF(CB26>=$CB$11,0,1) -> 1 | FG27: =IF(FF27=0,0,FE27) -> 1 | FH27: =IF(OR(CG27>=$CG$11,CG26>=$CG$11),0,1) -> 1 | FI27: =IF(AND(CO27>=$CO$11,CM27>=$CM$11),0,1) -> 0 | FJ27: =IF(CO26>=$CO$11,0,1) -> 1 | FK27: =IF(FJ27=0,0,FI27) -> 0 | FL27: =IF(AND(CT27>=$CT$11,CV27>=$CV$11),0,1) -> 0 | FM27: =IF(CV26>=$CV$11,0,1) -> 1 | FN27: =IF(FM27=0,0,FL27) -> 0 | FO27: =IF(AND(DC27>=$DC$11,DA27>=$DA$11),0,1) -> 0 | FP27: =IF(DC26>=$DC$11,0,1) -> 1 | FQ27: =IF(FP27=0,0,FO27) -> 0 | FR27: =IF(AND(DJ27>=$DJ$11,DH27>=$DH$11),0,1) -> 0 | FS27: =IF(DJ26>=$DJ$11,0,1) -> 1 | FT27: =IF(FS27=0,0,FR27) -> 0 | FU27: =IF(AND(DP27>=$DP$11,DN27>=$DN$11),0,1) -> 0 | FV27: =IF(DP26>=$DP$11,0,1) -> 1 | FW27: =IF(FV27=0,0,FU27) -> 0 | FX27: =IF(AND(DX27>=$DX$11,DV27>=$DV$11),0,1) -> 0 | FY27: =IF(DX26>=$DX$11,0,1) -> 1 | FZ27: =IF(FY27=0,0,FX27) -> 0 | GA27: =SUM(EI27+EL27+EO27+ER27+EU27+EX27+FA27+FD27+FG27+FH27+FN27+FQ27) -> 4 | GB27: =IF(EI27=1,"عربي","") ->  | GC27: =IF(EL27=1,"انجليزي","") ->  | GD27: =IF(EO27=1,"فرنساوي","") ->  | GE27: =IF(ER27=1,"جبر","") ->  | GF27: =IF(EU27=1,"تفاضل","") -> تفاضل | GG27: =IF(EX27=1,"أحياء","") ->  | GH27: =IF(FA27=1,"كيمياء","") -> كيمياء | GI27: =IF(FD27=1,"ميكانيكا","") ->  | GJ27: =IF(FG27=1,"فيزياء","") -> فيزياء | GK27: =IF(FH27=1,"مجموع","") -> مجموع | GL27: =IF(FK27=1,"حاسب","") ->  | GM27: =IF(FN27=1,"دين","") ->  | GN27: =IF(FQ27=1,"وطنية","") ->  | GO27: =IF(FT27=1,"نشاط","") ->  | GP27: =IF(FW27=1,"العاب","") ->  | GQ27: =IF(FX27=1,"تربية مهنية","") ->  | GS27: =IF(P26<P27,0,P26-P27) -> 0 | GT27: =IF(W26<W27,0,W26-W27) -> 0 | GU27: =IF(AD26<AD27,0,AD26-AD27) -> 0 | GV27: =IF(AK26<AK27,0,AK26-AK27) -> 0 | GW27: =IF(AR26<AR27,0,AR26-AR27) -> 0 | GX27: =IF(BA26<BA27,0,BA26-BA27) -> 0 | GY27: =IF(BK26<BK27,0,BK26-BK27) -> 0 | GZ27: =IF(BS26<BS27,0,BS26-BS27) -> 0 | HA27: =IF(CB26<CB27,0,CB26-CB27) -> 0 | HB27: =IF(CO26<CO27,0,CO26-CO27) -> 0 | HC27: =IF(CV26<CV27,0,CV26-CV27) -> 0 | HD27: =IF(DC26<DC27,0,DC26-DC27) -> 0 | HE27: =IF(DJ26<DJ27,0,DJ26-DJ27) -> 0 | HF27: =IF(DP26<DP27,0,DP26-DP27) -> 0 | HG27: =IF(DX26<DX27,0,DX26-DX27) -> 0 | HH27: =SUM(GS27:HA27) -> 0 | HI27: =HH27+CG27 -> 125
CG28: =IF(HI29>=130,130,HI29) -> 116.5
A29: 9 | B29: 2601 | C29: 2018-09-30 | D29: 2002-11-04 | E29: =IF(D29>1,DATEDIF(D29,$E$10,"md"),"") -> 27 | F29: =IF(D29>1,DATEDIF(D29,$E$10,"ym"),"") -> 10 | G29: =IF(D29>1,DATEDIF(D29,$E$10,"y"),"") -> 15 | H29: احمد سمير صابر عبد السيد سالم | I29: خدمات | J29: F | M29: 16.3 | N29: 18.5 | O29: =SUM(L29:N29) -> 34.8 | P29: =IF(INT(O29)+0.5=O29,O29,IF(O29-INT(O29)<0.5,INT(O29),INT(O29)+1)) -> 35 | Q29: =COUNTIF(N29,"<6") -> 0 | R29: =COUNTIF(P29,"<30") -> 0 | T29: 6.5 | U29: 14.5 | V29: =SUM(S29:U29) -> 21 | W29: =IF(INT(V29)+0.5=V29,V29,IF(V29-INT(V29)<0.5,INT(V29),INT(V29)+1)) -> 21 | X29: =COUNTIF(U29,"<5") -> 0 | Y29: =COUNTIF(W29,"<20") -> 0 | AA29: 10 | AB29: 9.5 | AC29: =SUM(Z29:AB29) -> 19.5 | AD29: =IF(INT(AC29)+0.5=AC29,AC29,IF(AC29-INT(AC29)<0.5,INT(AC29),INT(AC29)+1)) -> 19.5 | AE29: =COUNTIF(AB29,"<3") -> 0 | AF29: =COUNTIF(AD29,"<12") -> 0 | AH29: 2.8 | AI29: 2.8 | AJ29: =SUM(AG29:AI29) -> 5.6 | AK29: =IF(INT(AJ29)+0.5=AJ29,AJ29,IF(AJ29-INT(AJ29)<0.5,INT(AJ29),INT(AJ29)+1)) -> 6 | AL29: =COUNTIF(AI29,"<2") -> 0 | AM29: =COUNTIF(AK29,"<8") -> 1 | AO29: 2.3 | AP29: 5.5 | AQ29: =SUM(AN29:AP29) -> 7.8 | AR29: =IF(INT(AQ29)+0.5=AQ29,AQ29,IF(AQ29-INT(AQ29)<0.5,INT(AQ29),INT(AQ29)+1)) -> 8 | AS29: =COUNTIF(AP29,"<2") -> 0 | AT29: =COUNTIF(AR29,"<8") -> 0 | AW29: 3 | AY29: 4.7 | AZ29: =SUM(AU29:AY29) -> 7.7 | BA29: =IF(INT(AZ29)+0.5=AZ29,AZ29,IF(AZ29-INT(AZ29)<0.5,INT(AZ29),INT(AZ29)+1)) -> 8 | BB29: 0 | BC29: =COUNTIF(AY29,"<1.5") -> 0 | BD29: =COUNTIF(BA29,"<8") -> 0 | BG29: 3.3 | BI29: 3 | BJ29: =SUM(BE29:BI29) -> 6.3 | BK29: =IF(INT(BJ29)+0.5=BJ29,BJ29,IF(BJ29-INT(BJ29)<0.5,INT(BJ29),INT(BJ29)+1)) -> 6 | BL29: =COUNTIF(BH29,"<-1") -> 0 | BM29: =COUNTIF(BI29,"<1.5") -> 0 | BN29: =COUNTIF(BK29,"<8") -> 1 | BP29: 1.5 | BQ29: 3.3 | BR29: =SUM(BO29:BQ29) -> 4.8 | BS29: =IF(INT(BR29)+0.5=BR29,BR29,IF(BR29-INT(BR29)<0.5,INT(BR29),INT(BR29)+1)) -> 5 | BT29: =COUNTIF(BQ29,"<2") -> 0 | BU29: =COUNTIF(BS29,"<8") -> 1 | BX29: 1 | BZ29: 7.2 | CA29: =SUM(BV29:BZ29) -> 8.2 | CB29: =IF(INT(CA29)+0.5=CA29,CA29,IF(CA29-INT(CA29)<0.5,INT(CA29),INT(CA29)+1)) -> 8 | CC29: =COUNTIF(BY29,"<-1") -> 0 | CD29: =COUNTIF(BZ29,"<1.5") -> 0 | CE29: =COUNTIF(CB29,"<8") -> 0 | CG29: =SUM(P29,W29,AD29,AK29,AR29,BA29,BK29,BS29,CB29) -> 116.5 | CH29: =COUNTIF(CG29,"<130") -> 1 | CN29: =SUM(CI29:CM29) -> 0 | CO29: =IF(INT(CN29)+0.5=CN29,CN29,IF(CN29-INT(CN29)<0.5,INT(CN29),INT(CN29)+1)) -> 0 | CP29: =COUNTIF(CM29,"<-1") -> 0 | CQ29: =COUNTIF(CO29,"<-1") -> 0 | CS29: 7.5 | CT29: 6.3 | CU29: =SUM(CR29:CT29) -> 13.8 | CV29: =IF(INT(CU29)+0.5=CU29,CU29,IF(CU29-INT(CU29)<0.5,INT(CU29),INT(CU29)+1)) -> 14 | CW29: =COUNTIF(CT29,"<2") -> 0 | CX29: =COUNTIF(CV29,"<10") -> 0 | CZ29: 6.9 | DA29: 10 | DB29: =SUM(CY29:DA29) -> 16.9 | DC29: =IF(INT(DB29)+0.5=DB29,DB29,IF(DB29-INT(DB29)<0.5,INT(DB29),INT(DB29)+1)) -> 17 | DD29: =COUNTIF(DA29,"<2") -> 0 | DE29: =COUNTIF(DC29,"<8") -> 0 | DI29: =SUM(DF29:DH29) -> 0 | DJ29: =IF(INT(DI29)+0.5=DI29,DI29,IF(DI29-INT(DI29)<0.5,INT(DI29),INT(DI29)+1)) -> 0 | DK29: =COUNTIF(DJ29,"<-1") -> 0 | DO29: =SUM(DL29:DN29) -> 0 | DP29: =IF(INT(DO29)+0.5=DO29,DO29,IF(DO29-INT(DO29)<0.5,INT(DO29),INT(DO29)+1)) -> 0 | DQ29: =COUNTIF(DP29,"<-1") -> 0 | DW29: =SUM(DR29:DV29) -> 0 | DX29: =IF(INT(DW29)+0.5=DW29,DW29,IF(DW29-INT(DW29)<0.5,INT(DW29),INT(DW29)+1)) -> 0 | DY29: =COUNTIF(DV29,"<1.3") -> 0 | DZ29: =COUNTIF(DX29,"<8") -> 1 | EA29: =COUNTIF(DT29,"<1.3") -> 0 | EB29: =IF(GA29=0,"ناجح و منقول للصف الثالث","راسب وله حق الإعادة") -> راسب وله حق الإعادة | EC29: =GB29&" "&GC29&" "&GD29&" "&GE29&" "&GF29&" "&GG29&" "&GH29&" "&GI29&" "&GJ29&" "&GK29&" "&GM29&" "&GN29&" " -> جبر أحياء كيمياء ميكانيكا فيزياء مجموع | EG29: =IF(AND(P29>=$P$11,N29>=$N$11),0,1) -> 0 | EH29: =IF(P28>=$P$11,0,1) -> 1 | EI29: =IF(EH29=0,0,EG29) -> 0 | EJ29: =IF(AND(W29>=$W$11,U29>=$U$11),0,1) -> 0 | EK29: =IF(W28>=$W$11,0,1) -> 1 | EL29: =IF(EK29=0,0,EJ29) -> 0 | EM29: =IF(AND(AD29>=$AD$11,AB29>=$AB$11),0,1) -> 0 | EN29: =IF(AD28>=$AD$11,0,1) -> 1 | EO29: =IF(EN29=0,0,EM29) -> 0 | EP29: =IF(AND(AK29>=$AK$11,AI29>=$AI$11),0,1) -> 1 | EQ29: =IF(AK28>=$AK$11,0,1) -> 1 | ER29: =IF(EQ29=0,0,EP29) -> 1 | ES29: =IF(AND(AR29>=$AR$11,AP29>=$AP$11),0,1) -> 0 | ET29: =IF(AR28>=$AR$11,0,1) -> 1 | EU29: =IF(ET29=0,0,ES29) -> 0 | EV29: =IF(AND(BA29>=$BA$11,AW29>=$AW$11),0,1) -> 1 | EW29: =IF(BA28>=$BA$11,0,1) -> 1 | EX29: =IF(EW29=0,0,EV29) -> 1 | EY29: =IF(AND(BK29>=$BK$11,BG29>=$BG$11),0,1) -> 1 | EZ29: =IF(BK28>=$BK$11,0,1) -> 1 | FA29: =IF(EZ29=0,0,EY29) -> 1 | FB29: =IF(AND(BS29>=$BS$11,BP29>=$BP$11),0,1) -> 1 | FC29: =IF(BS28>=$BS$11,0,1) -> 1 | FD29: =IF(FC29=0,0,FB29) -> 1 | FE29: =IF(AND(CB29>=$CB$11,BX29>=$BX$11),0,1) -> 1 | FF29: =IF(CB28>=$CB$11,0,1) -> 1 | FG29: =IF(FF29=0,0,FE29) -> 1 | FH29: =IF(OR(CG29>=$CG$11,CG28>=$CG$11),0,1) -> 1 | FI29: =IF(AND(CO29>=$CO$11,CM29>=$CM$11),0,1) -> 1 | FJ29: =IF(CO28>=$CO$11,0,1) -> 1 | FK29: =IF(FJ29=0,0,FI29) -> 1 | FL29: =IF(AND(CT29>=$CT$11,CV29>=$CV$11),0,1) -> 0 | FM29: =IF(CV28>=$CV$11,0,1) -> 1 | FN29: =IF(FM29=0,0,FL29) -> 0 | FO29: =IF(AND(DC29>=$DC$11,DA29>=$DA$11),0,1) -> 0 | FP29: =IF(DC28>=$DC$11,0,1) -> 1 | FQ29: =IF(FP29=0,0,FO29) -> 0 | FR29: =IF(AND(DJ29>=$DJ$11,DH29>=$DH$11),0,1) -> 1 | FS29: =IF(DJ28>=$DJ$11,0,1) -> 1 | FT29: =IF(FS29=0,0,FR29) -> 1 | FU29: =IF(AND(DP29>=$DP$11,DN29>=$DN$11),0,1) -> 1 | FV29: =IF(DP28>=$DP$11,0,1) -> 1 | FW29: =IF(FV29=0,0,FU29) -> 1 | FX29: =IF(AND(DX29>=$DX$11,DV29>=$DV$11),0,1) -> 1 | FY29: =IF(DX28>=$DX$11,0,1) -> 1 | FZ29: =IF(FY29=0,0,FX29) -> 1 | GA29: =SUM(EI29+EL29+EO29+ER29+EU29+EX29+FA29+FD29+FG29+FH29+FN29+FQ29) -> 6 | GB29: =IF(EI29=1,"عربي","") ->  | GC29: =IF(EL29=1,"انجليزي","") ->  | GD29: =IF(EO29=1,"فرنساوي","") ->  | GE29: =IF(ER29=1,"جبر","") -> جبر | GF29: =IF(EU29=1,"تفاضل","") ->  | GG29: =IF(EX29=1,"أحياء","") -> أحياء | GH29: =IF(FA29=1,"كيمياء","") -> كيمياء | GI29: =IF(FD29=1,"ميكانيكا","") -> ميكانيكا | GJ29: =IF(FG29=1,"فيزياء","") -> فيزياء | GK29: =IF(FH29=1,"مجموع","") -> مجموع | GL29: =IF(FK29=1,"حاسب","") -> حاسب | GM29: =IF(FN29=1,"دين","") ->  | GN29: =IF(FQ29=1,"وطنية","") ->  | GO29: =IF(FT29=1,"نشاط","") -> نشاط | GP29: =IF(FW29=1,"العاب","") -> العاب | GQ29: =IF(FX29=1,"تربية مهنية","") -> تربية مهنية | GS29: =IF(P28<P29,0,P28-P29) -> 0 | GT29: =IF(W28<W29,0,W28-W29) -> 0 | GU29: =IF(AD28<AD29,0,AD28-AD29) -> 0 | GV29: =IF(AK28<AK29,0,AK28-AK29) -> 0 | GW29: =IF(AR28<AR29,0,AR28-AR29) -> 0 | GX29: =IF(BA28<BA29,0,BA28-BA29) -> 0 | GY29: =IF(BK28<BK29,0,BK28-BK29) -> 0 | GZ29: =IF(BS28<BS29,0,BS28-BS29) -> 0 | HA29: =IF(CB28<CB29,0,CB28-CB29) -> 0 | HB29: =IF(CO28<CO29,0,CO28-CO29) -> 0 | HC29: =IF(CV28<CV29,0,CV28-CV29) -> 0 | HD29: =IF(DC28<DC29,0,DC28-DC29) -> 0 | HE29: =IF(DJ28<DJ29,0,DJ28-DJ29) -> 0 | HF29: =IF(DP28<DP29,0,DP28-DP29) -> 0 | HG29: =IF(DX28<DX29,0,DX28-DX29) -> 0 | HH29: =SUM(GS29:HA29) -> 0 | HI29: =HH29+CG29 -> 116.5
CG30: =IF(HI31>=130,130,HI31) -> 84.5
A31: 10 | B31: 2603 | C31: 2018-10-30 | D31: 2000-12-17 | E31: 14 | F31: 9 | G31: 17 | H31: حسين فرحات فايز احمد | I31: خدمات | J31: F | M31: 16.6 | N31: 14.4 | O31: 31 | P31: 31 | Q31: 0 | R31: 0 | T31: 4.5 | U31: 6 | V31: 10.5 | W31: 10.5 | X31: 0 | Y31: 1 | AA31: 5.5 | AB31: 10.5 | AC31: 16 | AD31: 16 | AE31: 0 | AF31: 0 | AH31: 1 | AI31: 1.5 | AJ31: 2.5 | AK31: 2.5 | AL31: 1 | AM31: 1 | AO31: 4 | AP31: 0.5 | AQ31: 4.5 | AR31: 4.5 | AS31: 1 | AT31: 1 | AW31: 3.8 | AY31: 4.2 | AZ31: 8 | BA31: 8 | BB31: =COUNTIF(AX31,"<-1") -> 0 | BC31: 0 | BD31: 0 | BG31: 2.2 | BI31: 2.7 | BJ31: 4.9 | BK31: 5 | BL31: 0 | BM31: 0 | BN31: 1 | BP31: 1.3 | BQ31: 1.8 | BR31: 3.1 | BS31: 3 | BT31: 1 | BU31: 1 | BX31: 1.5 | BZ31: 2.5 | CA31: 4 | CB31: 4 | CC31: 0 | CD31: 0 | CE31: 1 | CG31: 84.5 | CH31: 1 | CN31: 0 | CO31: 0 | CP31: 0 | CQ31: 0 | CS31: 6.9 | CT31: 6.3 | CU31: 13.2 | CV31: 13 | CW31: 0 | CX31: 0 | CZ31: 6.3 | DA31: 8.8 | DB31: 15.1 | DC31: 15 | DD31: 0 | DE31: 0 | DI31: 0 | DJ31: 0 | DK31: 0 | DO31: 0 | DP31: 0 | DQ31: 0 | DW31: 0 | DX31: 0 | DY31: =COUNTIF(DV31,"<1.3") -> 0 | DZ31: =COUNTIF(DX31,"<8") -> 1 | EA31: =COUNTIF(DT31,"<1.3") -> 0 | EB31: =IF(GA31=0,"ناجح و منقول للصف الثالث","راسب وله حق الإعادة") -> راسب وله حق الإعادة | EC31: =GB31&" "&GC31&" "&GD31&" "&GE31&" "&GF31&" "&GG31&" "&GH31&" "&GI31&" "&GJ31&" "&GK31&" "&GM31&" "&GN31&" " -> انجليزي جبر تفاضل أحياء كيمياء ميكانيكا فيزياء مجموع | EG31: =IF(AND(P31>=$P$11,N31>=$N$11),0,1) -> 0 | EH31: =IF(P30>=$P$11,0,1) -> 1 | EI31: =IF(EH31=0,0,EG31) -> 0 | EJ31: =IF(AND(W31>=$W$11,U31>=$U$11),0,1) -> 1 | EK31: =IF(W30>=$W$11,0,1) -> 1 | EL31: =IF(EK31=0,0,EJ31) -> 1 | EM31: =IF(AND(AD31>=$AD$11,AB31>=$AB$11),0,1) -> 0 | EN31: =IF(AD30>=$AD$11,0,1) -> 1 | EO31: =IF(EN31=0,0,EM31) -> 0 | EP31: =IF(AND(AK31>=$AK$11,AI31>=$AI$11),0,1) -> 1 | EQ31: =IF(AK30>=$AK$11,0,1) -> 1 | ER31: =IF(EQ31=0,0,EP31) -> 1 | ES31: =IF(AND(AR31>=$AR$11,AP31>=$AP$11),0,1) -> 1 | ET31: =IF(AR30>=$AR$11,0,1) -> 1 | EU31: =IF(ET31=0,0,ES31) -> 1 | EV31: =IF(AND(BA31>=$BA$11,AW31>=$AW$11),0,1) -> 1 | EW31: =IF(BA30>=$BA$11,0,1) -> 1 | EX31: =IF(EW31=0,0,EV31) -> 1 | EY31: =IF(AND(BK31>=$BK$11,BG31>=$BG$11),0,1) -> 1 | EZ31: =IF(BK30>=$BK$11,0,1) -> 1 | FA31: =IF(EZ31=0,0,EY31) -> 1 | FB31: =IF(AND(BS31>=$BS$11,BP31>=$BP$11),0,1) -> 1 | FC31: =IF(BS30>=$BS$11,0,1) -> 1 | FD31: =IF(FC31=0,0,FB31) -> 1 | FE31: =IF(AND(CB31>=$CB$11,BX31>=$BX$11),0,1) -> 1 | FF31: =IF(CB30>=$CB$11,0,1) -> 1 | FG31: =IF(FF31=0,0,FE31) -> 1 | FH31: =IF(OR(CG31>=$CG$11,CG30>=$CG$11),0,1) -> 1 | FI31: =IF(AND(CO31>=$CO$11,CM31>=$CM$11),0,1) -> 1 | FJ31: =IF(CO30>=$CO$11,0,1) -> 1 | FK31: =IF(FJ31=0,0,FI31) -> 1 | FL31: =IF(AND(CT31>=$CT$11,CV31>=$CV$11),0,1) -> 0 | FM31: =IF(CV30>=$CV$11,0,1) -> 1 | FN31: =IF(FM31=0,0,FL31) -> 0 | FO31: =IF(AND(DC31>=$DC$11,DA31>=$DA$11),0,1) -> 0 | FP31: =IF(DC30>=$DC$11,0,1) -> 1 | FQ31: =IF(FP31=0,0,FO31) -> 0 | FR31: =IF(AND(DJ31>=$DJ$11,DH31>=$DH$11),0,1) -> 1 | FS31: =IF(DJ30>=$DJ$11,0,1) -> 1 | FT31: =IF(FS31=0,0,FR31) -> 1 | FU31: =IF(AND(DP31>=$DP$11,DN31>=$DN$11),0,1) -> 1 | FV31: =IF(DP30>=$DP$11,0,1) -> 1 | FW31: =IF(FV31=0,0,FU31) -> 1 | FX31: =IF(AND(DX31>=$DX$11,DV31>=$DV$11),0,1) -> 1 | FY31: =IF(DX30>=$DX$11,0,1) -> 1 | FZ31: =IF(FY31=0,0,FX31) -> 1 | GA31: =SUM(EI31+EL31+EO31+ER31+EU31+EX31+FA31+FD31+FG31+FH31+FN31+FQ31) -> 8 | GB31: =IF(EI31=1,"عربي","") ->  | GC31: =IF(EL31=1,"انجليزي","") -> انجليزي | GD31: =IF(EO31=1,"فرنساوي","") ->  | GE31: =IF(ER31=1,"جبر","") -> جبر | GF31: =IF(EU31=1,"تفاضل","") -> تفاضل | GG31: =IF(EX31=1,"أحياء","") -> أحياء | GH31: =IF(FA31=1,"كيمياء","") -> كيمياء | GI31: =IF(FD31=1,"ميكانيكا","") -> ميكانيكا | GJ31: =IF(FG31=1,"فيزياء","") -> فيزياء | GK31: =IF(FH31=1,"مجموع","") -> مجموع | GL31: =IF(FK31=1,"حاسب","") -> حاسب | GM31: =IF(FN31=1,"دين","") ->  | GN31: =IF(FQ31=1,"وطنية","") ->  | GO31: =IF(FT31=1,"نشاط","") -> نشاط | GP31: =IF(FW31=1,"العاب","") -> العاب | GQ31: =IF(FX31=1,"تربية مهنية","") -> تربية مهنية | GS31: =IF(P30<P31,0,P30-P31) -> 0 | GT31: =IF(W30<W31,0,W30-W31) -> 0 | GU31: =IF(AD30<AD31,0,AD30-AD31) -> 0 | GV31: =IF(AK30<AK31,0,AK30-AK31) -> 0 | GW31: =IF(AR30<AR31,0,AR30-AR31) -> 0 | GX31: =IF(BA30<BA31,0,BA30-BA31) -> 0 | GY31: =IF(BK30<BK31,0,BK30-BK31) -> 0 | GZ31: =IF(BS30<BS31,0,BS30-BS31) -> 0 | HA31: =IF(CB30<CB31,0,CB30-CB31) -> 0 | HB31: =IF(CO30<CO31,0,CO30-CO31) -> 0 | HC31: =IF(CV30<CV31,0,CV30-CV31) -> 0 | HD31: =IF(DC30<DC31,0,DC30-DC31) -> 0 | HE31: =IF(DJ30<DJ31,0,DJ30-DJ31) -> 0 | HF31: =IF(DP30<DP31,0,DP30-DP31) -> 0 | HG31: =IF(DX30<DX31,0,DX30-DX31) -> 0 | HH31: =SUM(GS31:HA31) -> 0 | HI31: =HH31+CG31 -> 84.5
CG32: =IF(HI33>=130,130,HI33) -> 122
A33: 11 | B33: 2607 | C33: 2018-10-30 | D33: 2002-01-19 | E33: 12 | F33: 8 | G33: 16 | H33: علي صلاح الدين علي ابراهيم | I33: خدمات | J33: F | M33: 11.6 | N33: 18.8 | O33: 30.4 | P33: 30 | Q33: 0 | R33: 0 | T33: 5.8 | U33: 11.5 | V33: 17.3 | W33: 17 | X33: 0 | Y33: 1 | AA33: 13 | AB33: 11.5 | AC33: 24.5 | AD33: 24.5 | AE33: 0 | AF33: 0 | AH33: 1 | AI33: 4.5 | AJ33: 5.5 | AK33: 5.5 | AL33: 0 | AM33: 1 | AO33: 3.5 | AP33: 4.5 | AQ33: 8 | AR33: 8 | AS33: 0 | AT33: 0 | AW33: 5 | AY33: 3.8 | AZ33: 8.8 | BA33: 9 | BB33: 0 | BC33: 0 | BD33: 0 | BG33: 4.2 | BI33: 3.8 | BJ33: 8 | BK33: 8 | BL33: 0 | BM33: 0 | BN33: 0 | BP33: 3.5 | BQ33: 5.5 | BR33: 9 | BS33: 9 | BT33: 0 | BU33: 0 | BX33: 6.5 | BZ33: 4.2 | CA33: 10.7 | CB33: 11 | CC33: 0 | CD33: 0 | CE33: 0 | CG33: 122 | CH33: 1 | CN33: 0 | CO33: 0 | CP33: 0 | CQ33: 0 | CS33: 6.6 | CT33: 5.4 | CU33: 12 | CV33: 12 | CW33: 0 | CX33: 0 | CZ33: 6.9 | DA33: 8.1 | DB33: 15 | DC33: 15 | DD33: 0 | DE33: 0 | DI33: 0 | DJ33: 0 | DK33: 0 | DO33: 0 | DP33: 0 | DQ33: 0 | DW33: 0 | DX33: 0 | DY33: =COUNTIF(DV33,"<1.3") -> 0 | DZ33: =COUNTIF(DX33,"<8") -> 1 | EA33: =COUNTIF(DT33,"<1.3") -> 0 | EB33: =IF(GA33=0,"ناجح و منقول للصف الثالث","راسب وله حق الإعادة") -> راسب وله حق الإعادة | EC33: =GB33&" "&GC33&" "&GD33&" "&GE33&" "&GF33&" "&GG33&" "&GH33&" "&GI33&" "&GJ33&" "&GK33&" "&GM33&" "&GN33&" " -> انجليزي جبر أحياء كيمياء ميكانيكا فيزياء مجموع | EG33: =IF(AND(P33>=$P$11,N33>=$N$11),0,1) -> 0 | EH33: =IF(P32>=$P$11,0,1) -> 1 | EI33: =IF(EH33=0,0,EG33) -> 0 | EJ33: =IF(AND(W33>=$W$11,U33>=$U$11),0,1) -> 1 | EK33: =IF(W32>=$W$11,0,1) -> 1 | EL33: =IF(EK33=0,0,EJ33) -> 1 | EM33: =IF(AND(AD33>=$AD$11,AB33>=$AB$11),0,1) -> 0 | EN33: =IF(AD32>=$AD$11,0,1) -> 1 | EO33: =IF(EN33=0,0,EM33) -> 0 | EP33: =IF(AND(AK33>=$AK$11,AI33>=$AI$11),0,1) -> 1 | EQ33: =IF(AK32>=$AK$11,0,1) -> 1 | ER33: =IF(EQ33=0,0,EP33) -> 1 | ES33: =IF(AND(AR33>=$AR$11,AP33>=$AP$11),0,1) -> 0 | ET33: =IF(AR32>=$AR$11,0,1) -> 1 | EU33: =IF(ET33=0,0,ES33) -> 0 | EV33: =IF(AND(BA33>=$BA$11,AW33>=$AW$11),0,1) -> 1 | EW33: =IF(BA32>=$BA$11,0,1) -> 1 | EX33: =IF(EW33=0,0,EV33) -> 1 | EY33: =IF(AND(BK33>=$BK$11,BG33>=$BG$11),0,1) -> 1 | EZ33: =IF(BK32>=$BK$11,0,1) -> 1 | FA33: =IF(EZ33=0,0,EY33) -> 1 | FB33: =IF(AND(BS33>=$BS$11,BP33>=$BP$11),0,1) -> 1 | FC33: =IF(BS32>=$BS$11,0,1) -> 1 | FD33: =IF(FC33=0,0,FB33) -> 1 | FE33: =IF(AND(CB33>=$CB$11,BX33>=$BX$11),0,1) -> 1 | FF33: =IF(CB32>=$CB$11,0,1) -> 1 | FG33: =IF(FF33=0,0,FE33) -> 1 | FH33: =IF(OR(CG33>=$CG$11,CG32>=$CG$11),0,1) -> 1 | FI33: =IF(AND(CO33>=$CO$11,CM33>=$CM$11),0,1) -> 1 | FJ33: =IF(CO32>=$CO$11,0,1) -> 1 | FK33: =IF(FJ33=0,0,FI33) -> 1 | FL33: =IF(AND(CT33>=$CT$11,CV33>=$CV$11),0,1) -> 0 | FM33: =IF(CV32>=$CV$11,0,1) -> 1 | FN33: =IF(FM33=0,0,FL33) -> 0 | FO33: =IF(AND(DC33>=$DC$11,DA33>=$DA$11),0,1) -> 0 | FP33: =IF(DC32>=$DC$11,0,1) -> 1 | FQ33: =IF(FP33=0,0,FO33) -> 0 | FR33: =IF(AND(DJ33>=$DJ$11,DH33>=$DH$11),0,1) -> 1 | FS33: =IF(DJ32>=$DJ$11,0,1) -> 1 | FT33: =IF(FS33=0,0,FR33) -> 1 | FU33: =IF(AND(DP33>=$DP$11,DN33>=$DN$11),0,1) -> 1 | FV33: =IF(DP32>=$DP$11,0,1) -> 1 | FW33: =IF(FV33=0,0,FU33) -> 1 | FX33: =IF(AND(DX33>=$DX$11,DV33>=$DV$11),0,1) -> 1 | FY33: =IF(DX32>=$DX$11,0,1) -> 1 | FZ33: =IF(FY33=0,0,FX33) -> 1 | GA33: =SUM(EI33+EL33+EO33+ER33+EU33+EX33+FA33+FD33+FG33+FH33+FN33+FQ33) -> 7 | GB33: =IF(EI33=1,"عربي","") ->  | GC33: =IF(EL33=1,"انجليزي","") -> انجليزي | GD33: =IF(EO33=1,"فرنساوي","") ->  | GE33: =IF(ER33=1,"جبر","") -> جبر | GF33: =IF(EU33=1,"تفاضل","") ->  | GG33: =IF(EX33=1,"أحياء","") -> أحياء | GH33: =IF(FA33=1,"كيمياء","") -> كيمياء | GI33: =IF(FD33=1,"ميكانيكا","") -> ميكانيكا | GJ33: =IF(FG33=1,"فيزياء","") -> فيزياء | GK33: =IF(FH33=1,"مجموع","") -> مجموع | GL33: =IF(FK33=1,"حاسب","") -> حاسب | GM33: =IF(FN33=1,"دين","") ->  | GN33: =IF(FQ33=1,"وطنية","") ->  | GO33: =IF(FT33=1,"نشاط","") -> نشاط | GP33: =IF(FW33=1,"العاب","") -> العاب | GQ33: =IF(FX33=1,"تربية مهنية","") -> تربية مهنية | GS33: =IF(P32<P33,0,P32-P33) -> 0 | GT33: =IF(W32<W33,0,W32-W33) -> 0 | GU33: =IF(AD32<AD33,0,AD32-AD33) -> 0 | GV33: =IF(AK32<AK33,0,AK32-AK33) -> 0 | GW33: =IF(AR32<AR33,0,AR32-AR33) -> 0 | GX33: =IF(BA32<BA33,0,BA32-BA33) -> 0 | GY33: =IF(BK32<BK33,0,BK32-BK33) -> 0 | GZ33: =IF(BS32<BS33,0,BS32-BS33) -> 0 | HA33: =IF(CB32<CB33,0,CB32-CB33) -> 0 | HB33: =IF(CO32<CO33,0,CO32-CO33) -> 0 | HC33: =IF(CV32<CV33,0,CV32-CV33) -> 0 | HD33: =IF(DC32<DC33,0,DC32-DC33) -> 0 | HE33: =IF(DJ32<DJ33,0,DJ32-DJ33) -> 0 | HF33: =IF(DP32<DP33,0,DP32-DP33) -> 0 | HG33: =IF(DX32<DX33,0,DX32-DX33) -> 0 | HH33: =SUM(GS33:HA33) -> 0 | HI33: =HH33+CG33 -> 122
CG34: =IF(HI35>=130,130,HI35) -> 76.5
A35: 12 | B35: 2608 | C35: 2018-10-30 | D35: 2002-02-02 | E35: 29 | F35: 7 | G35: 16 | H35: علي عبد الحميد علي عبد الحميد | I35: خدمات | J35: F | M35: 12.3 | N35: 11.6 | O35: 23.9 | P35: 24 | Q35: 0 | R35: 1 | T35: 2 | U35: 9 | V35: 11 | W35: 11 | X35: 0 | Y35: 1 | AA35: 13.5 | AB35: 5.5 | AC35: 19 | AD35: 19 | AE35: 0 | AF35: 0 | AH35: 1.5 | AI35: 1.8 | AJ35: 3.3 | AK35: 3 | AL35: 1 | AM35: 1 | AO35: 0.8 | AP35: 0.5 | AQ35: 1.3 | AR35: 1 | AS35: 1 | AT35: 1 | AW35: 1.7 | AY35: 0.8 | AZ35: 2.5 | BA35: 2.5 | BB35: 0 | BC35: 1 | BD35: 1 | BG35: 1.8 | BI35: 2.5 | BJ35: 4.3 | BK35: 4 | BL35: 0 | BM35: 0 | BN35: 1 | BP35: 3.8 | BQ35: 1.5 | BR35: 5.3 | BS35: 5 | BT35: 1 | BU35: 1 | BX35: 5.2 | BZ35: 1.8 | CA35: 7 | CB35: 7 | CC35: 0 | CD35: 0 | CE35: 1 | CG35: 76.5 | CH35: 1 | CN35: 0 | CO35: 0 | CP35: 0 | CQ35: 0 | CS35: 6 | CT35: 5.1 | CU35: 11.1 | CV35: 11 | CW35: 0 | CX35: 0 | CZ35: 5.6 | DA35: 8.1 | DB35: 13.7 | DC35: 14 | DD35: 0 | DE35: 0 | DI35: 0 | DJ35: 0 | DK35: 0 | DO35: 0 | DP35: 0 | DQ35: 0 | DW35: 0 | DX35: 0 | DY35: =COUNTIF(DV35,"<1.3") -> 0 | DZ35: =COUNTIF(DX35,"<8") -> 1 | EA35: =COUNTIF(DT35,"<1.3") -> 0 | EB35: =IF(GA35=0,"ناجح و منقول للصف الثالث","راسب وله حق الإعادة") -> راسب وله حق الإعادة | EC35: =GB35&" "&GC35&" "&GD35&" "&GE35&" "&GF35&" "&GG35&" "&GH35&" "&GI35&" "&GJ35&" "&GK35&" "&GM35&" "&GN35&" " -> عربي انجليزي جبر تفاضل أحياء كيمياء ميكانيكا فيزياء مجموع | EG35: =IF(AND(P35>=$P$11,N35>=$N$11),0,1) -> 1 | EH35: =IF(P34>=$P$11,0,1) -> 1 | EI35: =IF(EH35=0,0,EG35) -> 1 | EJ35: =IF(AND(W35>=$W$11,U35>=$U$11),0,1) -> 1 | EK35: =IF(W34>=$W$11,0,1) -> 1 | EL35: =IF(EK35=0,0,EJ35) -> 1 | EM35: =IF(AND(AD35>=$AD$11,AB35>=$AB$11),0,1) -> 0 | EN35: =IF(AD34>=$AD$11,0,1) -> 1 | EO35: =IF(EN35=0,0,EM35) -> 0 | EP35: =IF(AND(AK35>=$AK$11,AI35>=$AI$11),0,1) -> 1 | EQ35: =IF(AK34>=$AK$11,0,1) -> 1 | ER35: =IF(EQ35=0,0,EP35) -> 1 | ES35: =IF(AND(AR35>=$AR$11,AP35>=$AP$11),0,1) -> 1 | ET35: =IF(AR34>=$AR$11,0,1) -> 1 | EU35: =IF(ET35=0,0,ES35) -> 1 | EV35: =IF(AND(BA35>=$BA$11,AW35>=$AW$11),0,1) -> 1 | EW35: =IF(BA34>=$BA$11,0,1) -> 1 | EX35: =IF(EW35=0,0,EV35) -> 1 | EY35: =IF(AND(BK35>=$BK$11,BG35>=$BG$11),0,1) -> 1 | EZ35: =IF(BK34>=$BK$11,0,1) -> 1 | FA35: =IF(EZ35=0,0,EY35) -> 1 | FB35: =IF(AND(BS35>=$BS$11,BP35>=$BP$11),0,1) -> 1 | FC35: =IF(BS34>=$BS$11,0,1) -> 1 | FD35: =IF(FC35=0,0,FB35) -> 1 | FE35: =IF(AND(CB35>=$CB$11,BX35>=$BX$11),0,1) -> 1 | FF35: =IF(CB34>=$CB$11,0,1) -> 1 | FG35: =IF(FF35=0,0,FE35) -> 1 | FH35: =IF(OR(CG35>=$CG$11,CG34>=$CG$11),0,1) -> 1 | FI35: =IF(AND(CO35>=$CO$11,CM35>=$CM$11),0,1) -> 1 | FJ35: =IF(CO34>=$CO$11,0,1) -> 1 | FK35: =IF(FJ35=0,0,FI35) -> 1 | FL35: =IF(AND(CT35>=$CT$11,CV35>=$CV$11),0,1) -> 0 | FM35: =IF(CV34>=$CV$11,0,1) -> 1 | FN35: =IF(FM35=0,0,FL35) -> 0 | FO35: =IF(AND(DC35>=$DC$11,DA35>=$DA$11),0,1) -> 0 | FP35: =IF(DC34>=$DC$11,0,1) -> 1 | FQ35: =IF(FP35=0,0,FO35) -> 0 | FR35: =IF(AND(DJ35>=$DJ$11,DH35>=$DH$11),0,1) -> 1 | FS35: =IF(DJ34>=$DJ$11,0,1) -> 1 | FT35: =IF(FS35=0,0,FR35) -> 1 | FU35: =IF(AND(DP35>=$DP$11,DN35>=$DN$11),0,1) -> 1 | FV35: =IF(DP34>=$DP$11,0,1) -> 1 | FW35: =IF(FV35=0,0,FU35) -> 1 | FX35: =IF(AND(DX35>=$DX$11,DV35>=$DV$11),0,1) -> 1 | FY35: =IF(DX34>=$DX$11,0,1) -> 1 | FZ35: =IF(FY35=0,0,FX35) -> 1 | GA35: =SUM(EI35+EL35+EO35+ER35+EU35+EX35+FA35+FD35+FG35+FH35+FN35+FQ35) -> 9 | GB35: =IF(EI35=1,"عربي","") -> عربي | GC35: =IF(EL35=1,"انجليزي","") -> انجليزي | GD35: =IF(EO35=1,"فرنساوي","") ->  | GE35: =IF(ER35=1,"جبر","") -> جبر | GF35: =IF(EU35=1,"تفاضل","") -> تفاضل | GG35: =IF(EX35=1,"أحياء","") -> أحياء | GH35: =IF(FA35=1,"كيمياء","") -> كيمياء | GI35: =IF(FD35=1,"ميكانيكا","") -> ميكانيكا | GJ35: =IF(FG35=1,"فيزياء","") -> فيزياء | GK35: =IF(FH35=1,"مجموع","") -> مجموع | GL35: =IF(FK35=1,"حاسب","") -> حاسب | GM35: =IF(FN35=1,"دين","") ->  | GN35: =IF(FQ35=1,"وطنية","") ->  | GO35: =IF(FT35=1,"نشاط","") -> نشاط | GP35: =IF(FW35=1,"العاب","") -> العاب | GQ35: =IF(FX35=1,"تربية مهنية","") -> تربية مهنية | GS35: =IF(P34<P35,0,P34-P35) -> 0 | GT35: =IF(W34<W35,0,W34-W35) -> 0 | GU35: =IF(AD34<AD35,0,AD34-AD35) -> 0 | GV35: =IF(AK34<AK35,0,AK34-AK35) -> 0 | GW35: =IF(AR34<AR35,0,AR34-AR35) -> 0 | GX35: =IF(BA34<BA35,0,BA34-BA35) -> 0 | GY35: =IF(BK34<BK35,0,BK34-BK35) -> 0 | GZ35: =IF(BS34<BS35,0,BS34-BS35) -> 0 | HA35: =IF(CB34<CB35,0,CB34-CB35) -> 0 | HB35: =IF(CO34<CO35,0,CO34-CO35) -> 0 | HC35: =IF(CV34<CV35,0,CV34-CV35) -> 0 | HD35: =IF(DC34<DC35,0,DC34-DC35) -> 0 | HE35: =IF(DJ34<DJ35,0,DJ34-DJ35) -> 0 | HF35: =IF(DP34<DP35,0,DP34-DP35) -> 0 | HG35: =IF(DX34<DX35,0,DX34-DX35) -> 0 | HH35: =SUM(GS35:HA35) -> 0 | HI35: =HH35+CG35 -> 76.5
CG36: =IF(HI37>=130,130,HI37) -> 123
A37: 13 | B37: 2611 | C37: 2018-10-30 | D37: 2002-04-07 | E37: 24 | F37: 5 | G37: 16 | H37: كيرلس مسعود ذكرى مشرقي | I37: خدمات | J37: F | M37: 15 | N37: 21 | O37: 36 | P37: 36 | Q37: 0 | R37: 0 | T37: 12.3 | U37: 8.3 | V37: 20.6 | W37: 21 | X37: 0 | Y37: 0 | AA37: 13.5 | AB37: 11.5 | AC37: 25 | AD37: 25 | AE37: 0 | AF37: 0 | AH37: 1.5 | AI37: 3.5 | AJ37: 5 | AK37: 5 | AL37: 0 | AM37: 1 | AO37: 3.8 | AP37: 4.3 | AQ37: 8.1 | AR37: 8 | AS37: 0 | AT37: 0 | AW37: 0.8 | AY37: 2.2 | AZ37: 3 | BA37: 3 | BB37: 0 | BC37: 0 | BD37: 1 | BG37: 3.5 | BI37: 1.8 | BJ37: 5.3 | BK37: 5 | BL37: 0 | BM37: 0 | BN37: 1 | BP37: 5 | BQ37: 7.3 | BR37: 12.3 | BS37: 12 | BT37: 0 | BU37: 0 | BX37: 1.8 | BZ37: 6.3 | CA37: 8.1 | CB37: 8 | CC37: 0 | CD37: 0 | CE37: 0 | CG37: 123 | CH37: 1 | CN37: 0 | CO37: 0 | CP37: 0 | CQ37: 0 | CS37: 7.5 | CT37: 10 | CU37: 17.5 | CV37: 17.5 | CW37: 0 | CX37: 0 | CZ37: 5.6 | DA37: 6.9 | DB37: 12.5 | DC37: 12.5 | DD37: 0 | DE37: 0 | DI37: 0 | DJ37: 0 | DK37: 0 | DO37: 0 | DP37: 0 | DQ37: 0 | DW37: 0 | DX37: 0 | DY37: =COUNTIF(DV37,"<1.3") -> 0 | DZ37: =COUNTIF(DX37,"<8") -> 1 | EA37: =COUNTIF(DT37,"<1.3") -> 0 | EB37: =IF(GA37=0,"ناجح و منقول للصف الثالث","راسب وله حق الإعادة") -> راسب وله حق الإعادة | EC37: =GB37&" "&GC37&" "&GD37&" "&GE37&" "&GF37&" "&GG37&" "&GH37&" "&GI37&" "&GJ37&" "&GK37&" "&GM37&" "&GN37&" " -> جبر أحياء كيمياء ميكانيكا فيزياء مجموع | EG37: =IF(AND(P37>=$P$11,N37>=$N$11),0,1) -> 0 | EH37: =IF(P36>=$P$11,0,1) -> 1 | EI37: =IF(EH37=0,0,EG37) -> 0 | EJ37: =IF(AND(W37>=$W$11,U37>=$U$11),0,1) -> 0 | EK37: =IF(W36>=$W$11,0,1) -> 1 | EL37: =IF(EK37=0,0,EJ37) -> 0 | EM37: =IF(AND(AD37>=$AD$11,AB37>=$AB$11),0,1) -> 0 | EN37: =IF(AD36>=$AD$11,0,1) -> 1 | EO37: =IF(EN37=0,0,EM37) -> 0 | EP37: =IF(AND(AK37>=$AK$11,AI37>=$AI$11),0,1) -> 1 | EQ37: =IF(AK36>=$AK$11,0,1) -> 1 | ER37: =IF(EQ37=0,0,EP37) -> 1 | ES37: =IF(AND(AR37>=$AR$11,AP37>=$AP$11),0,1) -> 0 | ET37: =IF(AR36>=$AR$11,0,1) -> 1 | EU37: =IF(ET37=0,0,ES37) -> 0 | EV37: =IF(AND(BA37>=$BA$11,AW37>=$AW$11),0,1) -> 1 | EW37: =IF(BA36>=$BA$11,0,1) -> 1 | EX37: =IF(EW37=0,0,EV37) -> 1 | EY37: =IF(AND(BK37>=$BK$11,BG37>=$BG$11),0,1) -> 1 | EZ37: =IF(BK36>=$BK$11,0,1) -> 1 | FA37: =IF(EZ37=0,0,EY37) -> 1 | FB37: =IF(AND(BS37>=$BS$11,BP37>=$BP$11),0,1) -> 1 | FC37: =IF(BS36>=$BS$11,0,1) -> 1 | FD37: =IF(FC37=0,0,FB37) -> 1 | FE37: =IF(AND(CB37>=$CB$11,BX37>=$BX$11),0,1) -> 1 | FF37: =IF(CB36>=$CB$11,0,1) -> 1 | FG37: =IF(FF37=0,0,FE37) -> 1 | FH37: =IF(OR(CG37>=$CG$11,CG36>=$CG$11),0,1) -> 1 | FI37: =IF(AND(CO37>=$CO$11,CM37>=$CM$11),0,1) -> 1 | FJ37: =IF(CO36>=$CO$11,0,1) -> 1 | FK37: =IF(FJ37=0,0,FI37) -> 1 | FL37: =IF(AND(CT37>=$CT$11,CV37>=$CV$11),0,1) -> 0 | FM37: =IF(CV36>=$CV$11,0,1) -> 1 | FN37: =IF(FM37=0,0,FL37) -> 0 | FO37: =IF(AND(DC37>=$DC$11,DA37>=$DA$11),0,1) -> 0 | FP37: =IF(DC36>=$DC$11,0,1) -> 1 | FQ37: =IF(FP37=0,0,FO37) -> 0 | FR37: =IF(AND(DJ37>=$DJ$11,DH37>=$DH$11),0,1) -> 1 | FS37: =IF(DJ36>=$DJ$11,0,1) -> 1 | FT37: =IF(FS37=0,0,FR37) -> 1 | FU37: =IF(AND(DP37>=$DP$11,DN37>=$DN$11),0,1) -> 1 | FV37: =IF(DP36>=$DP$11,0,1) -> 1 | FW37: =IF(FV37=0,0,FU37) -> 1 | FX37: =IF(AND(DX37>=$DX$11,DV37>=$DV$11),0,1) -> 1 | FY37: =IF(DX36>=$DX$11,0,1) -> 1 | FZ37: =IF(FY37=0,0,FX37) -> 1 | GA37: =SUM(EI37+EL37+EO37+ER37+EU37+EX37+FA37+FD37+FG37+FH37+FN37+FQ37) -> 6 | GB37: =IF(EI37=1,"عربي","") ->  | GC37: =IF(EL37=1,"انجليزي","") ->  | GD37: =IF(EO37=1,"فرنساوي","") ->  | GE37: =IF(ER37=1,"جبر","") -> جبر | GF37: =IF(EU37=1,"تفاضل","") ->  | GG37: =IF(EX37=1,"أحياء","") -> أحياء | GH37: =IF(FA37=1,"كيمياء","") -> كيمياء | GI37: =IF(FD37=1,"ميكانيكا","") -> ميكانيكا | GJ37: =IF(FG37=1,"فيزياء","") -> فيزياء | GK37: =IF(FH37=1,"مجموع","") -> مجموع | GL37: =IF(FK37=1,"حاسب","") -> حاسب | GM37: =IF(FN37=1,"دين","") ->  | GN37: =IF(FQ37=1,"وطنية","") ->  | GO37: =IF(FT37=1,"نشاط","") -> نشاط | GP37: =IF(FW37=1,"العاب","") -> العاب | GQ37: =IF(FX37=1,"تربية مهنية","") -> تربية مهنية | GS37: =IF(P36<P37,0,P36-P37) -> 0 | GT37: =IF(W36<W37,0,W36-W37) -> 0 | GU37: =IF(AD36<AD37,0,AD36-AD37) -> 0 | GV37: =IF(AK36<AK37,0,AK36-AK37) -> 0 | GW37: =IF(AR36<AR37,0,AR36-AR37) -> 0 | GX37: =IF(BA36<BA37,0,BA36-BA37) -> 0 | GY37: =IF(BK36<BK37,0,BK36-BK37) -> 0 | GZ37: =IF(BS36<BS37,0,BS36-BS37) -> 0 | HA37: =IF(CB36<CB37,0,CB36-CB37) -> 0 | HB37: =IF(CO36<CO37,0,CO36-CO37) -> 0 | HC37: =IF(CV36<CV37,0,CV36-CV37) -> 0 | HD37: =IF(DC36<DC37,0,DC36-DC37) -> 0 | HE37: =IF(DJ36<DJ37,0,DJ36-DJ37) -> 0 | HF37: =IF(DP36<DP37,0,DP36-DP37) -> 0 | HG37: =IF(DX36<DX37,0,DX36-DX37) -> 0 | HH37: =SUM(GS37:HA37) -> 0 | HI37: =HH37+CG37 -> 123
CG38: =IF(HI39>=130,130,HI39) -> 107
A39: 14 | B39: 2614 | C39: 2018-10-30 | D39: 2002-10-01 | E39: 0 | F39: 0 | G39: 16 | H39: ناصر سعيد صبحي مصطفى | I39: خدمات | J39: F | M39: 16.9 | N39: 14.4 | O39: 31.3 | P39: 31 | Q39: 0 | R39: 0 | T39: 6.3 | U39: 6.5 | V39: 12.8 | W39: 13 | X39: 0 | Y39: 1 | AA39: 10 | AB39: 10 | AC39: 20 | AD39: 20 | AE39: 0 | AF39: 0 | AH39: 1.5 | AI39: 2.3 | AJ39: 3.8 | AK39: 4 | AL39: 0 | AM39: 1 | AO39: 3.5 | AP39: 7 | AQ39: 10.5 | AR39: 10.5 | AS39: 0 | AT39: 0 | AW39: 3 | AY39: 6.3 | AZ39: 9.3 | BA39: 9 | BB39: 0 | BC39: 0 | BD39: 0 | BG39: 4.8 | BI39: 0.8 | BJ39: 5.6 | BK39: 6 | BL39: 0 | BM39: 1 | BN39: 1 | BP39: 2 | BQ39: 3.5 | BR39: 5.5 | BS39: 5.5 | BT39: 0 | BU39: 1 | BX39: 3.5 | BZ39: 4.8 | CA39: 8.3 | CB39: 8 | CC39: 0 | CD39: 0 | CE39: 0 | CG39: 107 | CH39: 1 | CN39: 0 | CO39: 0 | CP39: 0 | CQ39: 0 | CS39: 7.5 | CT39: 8.1 | CU39: 15.6 | CV39: 16 | CW39: 0 | CX39: 0 | CZ39: 6.9 | DA39: 10 | DB39: 16.9 | DC39: 17 | DD39: 0 | DE39: 0 | DI39: 0 | DJ39: 0 | DK39: 0 | DO39: 0 | DP39: 0 | DQ39: 0 | DW39: 0 | DX39: 0 | DY39: =COUNTIF(DV39,"<1.3") -> 0 | DZ39: =COUNTIF(DX39,"<8") -> 1 | EA39: =COUNTIF(DT39,"<1.3") -> 0 | EB39: =IF(GA39=0,"ناجح و منقول للصف الثالث","راسب وله حق الإعادة") -> راسب وله حق الإعادة | EC39: =GB39&" "&GC39&" "&GD39&" "&GE39&" "&GF39&" "&GG39&" "&GH39&" "&GI39&" "&GJ39&" "&GK39&" "&GM39&" "&GN39&" " -> انجليزي جبر أحياء كيمياء ميكانيكا فيزياء مجموع | EG39: =IF(AND(P39>=$P$11,N39>=$N$11),0,1) -> 0 | EH39: =IF(P38>=$P$11,0,1) -> 1 | EI39: =IF(EH39=0,0,EG39) -> 0 | EJ39: =IF(AND(W39>=$W$11,U39>=$U$11),0,1) -> 1 | EK39: =IF(W38>=$W$11,0,1) -> 1 | EL39: =IF(EK39=0,0,EJ39) -> 1 | EM39: =IF(AND(AD39>=$AD$11,AB39>=$AB$11),0,1) -> 0 | EN39: =IF(AD38>=$AD$11,0,1) -> 1 | EO39: =IF(EN39=0,0,EM39) -> 0 | EP39: =IF(AND(AK39>=$AK$11,AI39>=$AI$11),0,1) -> 1 | EQ39: =IF(AK38>=$AK$11,0,1) -> 1 | ER39: =IF(EQ39=0,0,EP39) -> 1 | ES39: =IF(AND(AR39>=$AR$11,AP39>=$AP$11),0,1) -> 0 | ET39: =IF(AR38>=$AR$11,0,1) -> 1 | EU39: =IF(ET39=0,0,ES39) -> 0 | EV39: =IF(AND(BA39>=$BA$11,AW39>=$AW$11),0,1) -> 1 | EW39: =IF(BA38>=$BA$11,0,1) -> 1 | EX39: =IF(EW39=0,0,EV39) -> 1 | EY39: =IF(AND(BK39>=$BK$11,BG39>=$BG$11),0,1) -> 1 | EZ39: =IF(BK38>=$BK$11,0,1) -> 1 | FA39: =IF(EZ39=0,0,EY39) -> 1 | FB39: =IF(AND(BS39>=$BS$11,BP39>=$BP$11),0,1) -> 1 | FC39: =IF(BS38>=$BS$11,0,1) -> 1 | FD39: =IF(FC39=0,0,FB39) -> 1 | FE39: =IF(AND(CB39>=$CB$11,BX39>=$BX$11),0,1) -> 1 | FF39: =IF(CB38>=$CB$11,0,1) -> 1 | FG39: =IF(FF39=0,0,FE39) -> 1 | FH39: =IF(OR(CG39>=$CG$11,CG38>=$CG$11),0,1) -> 1 | FI39: =IF(AND(CO39>=$CO$11,CM39>=$CM$11),0,1) -> 1 | FJ39: =IF(CO38>=$CO$11,0,1) -> 1 | FK39: =IF(FJ39=0,0,FI39) -> 1 | FL39: =IF(AND(CT39>=$CT$11,CV39>=$CV$11),0,1) -> 0 | FM39: =IF(CV38>=$CV$11,0,1) -> 1 | FN39: =IF(FM39=0,0,FL39) -> 0 | FO39: =IF(AND(DC39>=$DC$11,DA39>=$DA$11),0,1) -> 0 | FP39: =IF(DC38>=$DC$11,0,1) -> 1 | FQ39: =IF(FP39=0,0,FO39) -> 0 | FR39: =IF(AND(DJ39>=$DJ$11,DH39>=$DH$11),0,1) -> 1 | FS39: =IF(DJ38>=$DJ$11,0,1) -> 1 | FT39: =IF(FS39=0,0,FR39) -> 1 | FU39: =IF(AND(DP39>=$DP$11,DN39>=$DN$11),0,1) -> 1 | FV39: =IF(DP38>=$DP$11,0,1) -> 1 | FW39: =IF(FV39=0,0,FU39) -> 1 | FX39: =IF(AND(DX39>=$DX$11,DV39>=$DV$11),0,1) -> 1 | FY39: =IF(DX38>=$DX$11,0,1) -> 1 | FZ39: =IF(FY39=0,0,FX39) -> 1 | GA39: =SUM(EI39+EL39+EO39+ER39+EU39+EX39+FA39+FD39+FG39+FH39+FN39+FQ39) -> 7 | GB39: =IF(EI39=1,"عربي","") ->  | GC39: =IF(EL39=1,"انجليزي","") -> انجليزي | GD39: =IF(EO39=1,"فرنساوي","") ->  | GE39: =IF(ER39=1,"جبر","") -> جبر | GF39: =IF(EU39=1,"تفاضل","") ->  | GG39: =IF(EX39=1,"أحياء","") -> أحياء | GH39: =IF(FA39=1,"كيمياء","") -> كيمياء | GI39: =IF(FD39=1,"ميكانيكا","") -> ميكانيكا | GJ39: =IF(FG39=1,"فيزياء","") -> فيزياء | GK39: =IF(FH39=1,"مجموع","") -> مجموع | GL39: =IF(FK39=1,"حاسب","") -> حاسب | GM39: =IF(FN39=1,"دين","") ->  | GN39: =IF(FQ39=1,"وطنية","") ->  | GO39: =IF(FT39=1,"نشاط","") -> نشاط | GP39: =IF(FW39=1,"العاب","") -> العاب | GQ39: =IF(FX39=1,"تربية مهنية","") -> تربية مهنية | GS39: =IF(P38<P39,0,P38-P39) -> 0 | GT39: =IF(W38<W39,0,W38-W39) -> 0 | GU39: =IF(AD38<AD39,0,AD38-AD39) -> 0 | GV39: =IF(AK38<AK39,0,AK38-AK39) -> 0 | GW39: =IF(AR38<AR39,0,AR38-AR39) -> 0 | GX39: =IF(BA38<BA39,0,BA38-BA39) -> 0 | GY39: =IF(BK38<BK39,0,BK38-BK39) -> 0 | GZ39: =IF(BS38<BS39,0,BS38-BS39) -> 0 | HA39: =IF(CB38<CB39,0,CB38-CB39) -> 0 | HB39: =IF(CO38<CO39,0,CO38-CO39) -> 0 | HC39: =IF(CV38<CV39,0,CV38-CV39) -> 0 | HD39: =IF(DC38<DC39,0,DC38-DC39) -> 0 | HE39: =IF(DJ38<DJ39,0,DJ38-DJ39) -> 0 | HF39: =IF(DP38<DP39,0,DP38-DP39) -> 0 | HG39: =IF(DX38<DX39,0,DX38-DX39) -> 0 | HH39: =SUM(GS39:HA39) -> 0 | HI39: =HH39+CG39 -> 107
CG40: =IF(HI41>=130,130,HI41) -> 105
A41: 15 | B41: 2616 | C41: 2018-10-30 | D41: 2002-11-11 | E41: 20 | F41: 10 | G41: 15 | H41: معاذ محمد عبد الفتاح دياب بركات | I41: خدمات | J41: G | M41: 16.6 | N41: 17.5 | O41: 34.1 | P41: 34 | Q41: 0 | R41: 0 | T41: 8 | U41: 12.3 | V41: 20.3 | W41: 20 | X41: 0 | Y41: 0 | AA41: 9.5 | AB41: 7 | AC41: 16.5 | AD41: 16.5 | AE41: 0 | AF41: 0 | AH41: 3 | AI41: 3.5 | AJ41: 6.5 | AK41: 6.5 | AL41: 0 | AM41: 1 | AO41: 3.3 | AP41: 2.5 | AQ41: 5.8 | AR41: 6 | AS41: 0 | AT41: 1 | AW41: 5.5 | AY41: 4.2 | AZ41: 9.7 | BA41: 10 | BB41: 0 | BC41: 0 | BD41: 0 | BG41: 1.3 | BI41: 2.5 | BJ41: 3.8 | BK41: 4 | BL41: 0 | BM41: 0 | BN41: 1 | BP41: 2.3 | BQ41: 2.5 | BR41: 4.8 | BS41: 5 | BT41: 0 | BU41: 1 | BX41: 1.8 | BZ41: 1.5 | CA41: 3.3 | CB41: 3 | CC41: 0 | CD41: 0 | CE41: 1 | CG41: 105 | CH41: 1 | CN41: 0 | CO41: 0 | CP41: 0 | CQ41: 0 | CS41: 6 | CT41: 8.1 | CU41: 14.1 | CV41: 14 | CW41: 0 | CX41: 0 | CZ41: 4.4 | DA41: 7.5 | DB41: 11.9 | DC41: 12 | DD41: 0 | DE41: 0 | DI41: 0 | DJ41: 0 | DK41: 0 | DO41: 0 | DP41: 0 | DQ41: 0 | DW41: 0 | DX41: 0 | DY41: =COUNTIF(DV41,"<1.3") -> 0 | DZ41: =COUNTIF(DX41,"<8") -> 1 | EA41: =COUNTIF(DT41,"<1.3") -> 0 | EB41: =IF(GA41=0,"ناجح و منقول للصف الثالث","راسب وله حق الإعادة") -> راسب وله حق الإعادة | EC41: =GB41&" "&GC41&" "&GD41&" "&GE41&" "&GF41&" "&GG41&" "&GH41&" "&GI41&" "&GJ41&" "&GK41&" "&GM41&" "&GN41&" " -> جبر تفاضل أحياء كيمياء ميكانيكا فيزياء مجموع | EG41: =IF(AND(P41>=$P$11,N41>=$N$11),0,1) -> 0 | EH41: =IF(P40>=$P$11,0,1) -> 1 | EI41: =IF(EH41=0,0,EG41) -> 0 | EJ41: =IF(AND(W41>=$W$11,U41>=$U$11),0,1) -> 0 | EK41: =IF(W40>=$W$11,0,1) -> 1 | EL41: =IF(EK41=0,0,EJ41) -> 0 | EM41: =IF(AND(AD41>=$AD$11,AB41>=$AB$11),0,1) -> 0 | EN41: =IF(AD40>=$AD$11,0,1) -> 1 | EO41: =IF(EN41=0,0,EM41) -> 0 | EP41: =IF(AND(AK41>=$AK$11,AI41>=$AI$11),0,1) -> 1 | EQ41: =IF(AK40>=$AK$11,0,1) -> 1 | ER41: =IF(EQ41=0,0,EP41) -> 1 | ES41: =IF(AND(AR41>=$AR$11,AP41>=$AP$11),0,1) -> 1 | ET41: =IF(AR40>=$AR$11,0,1) -> 1 | EU41: =IF(ET41=0,0,ES41) -> 1 | EV41: =IF(AND(BA41>=$BA$11,AW41>=$AW$11),0,1) -> 1 | EW41: =IF(BA40>=$BA$11,0,1) -> 1 | EX41: =IF(EW41=0,0,EV41) -> 1 | EY41: =IF(AND(BK41>=$BK$11,BG41>=$BG$11),0,1) -> 1 | EZ41: =IF(BK40>=$BK$11,0,1) -> 1 | FA41: =IF(EZ41=0,0,EY41) -> 1 | FB41: =IF(AND(BS41>=$BS$11,BP41>=$BP$11),0,1) -> 1 | FC41: =IF(BS40>=$BS$11,0,1) -> 1 | FD41: =IF(FC41=0,0,FB41) -> 1 | FE41: =IF(AND(CB41>=$CB$11,BX41>=$BX$11),0,1) -> 1 | FF41: =IF(CB40>=$CB$11,0,1) -> 1 | FG41: =IF(FF41=0,0,FE41) -> 1 | FH41: =IF(OR(CG41>=$CG$11,CG40>=$CG$11),0,1) -> 1 | FI41: =IF(AND(CO41>=$CO$11,CM41>=$CM$11),0,1) -> 1 | FJ41: =IF(CO40>=$CO$11,0,1) -> 1 | FK41: =IF(FJ41=0,0,FI41) -> 1 | FL41: =IF(AND(CT41>=$CT$11,CV41>=$CV$11),0,1) -> 0 | FM41: =IF(CV40>=$CV$11,0,1) -> 1 | FN41: =IF(FM41=0,0,FL41) -> 0 | FO41: =IF(AND(DC41>=$DC$11,DA41>=$DA$11),0,1) -> 0 | FP41: =IF(DC40>=$DC$11,0,1) -> 1 | FQ41: =IF(FP41=0,0,FO41) -> 0 | FR41: =IF(AND(DJ41>=$DJ$11,DH41>=$DH$11),0,1) -> 1 | FS41: =IF(DJ40>=$DJ$11,0,1) -> 1 | FT41: =IF(FS41=0,0,FR41) -> 1 | FU41: =IF(AND(DP41>=$DP$11,DN41>=$DN$11),0,1) -> 1 | FV41: =IF(DP40>=$DP$11,0,1) -> 1 | FW41: =IF(FV41=0,0,FU41) -> 1 | FX41: =IF(AND(DX41>=$DX$11,DV41>=$DV$11),0,1) -> 1 | FY41: =IF(DX40>=$DX$11,0,1) -> 1 | FZ41: =IF(FY41=0,0,FX41) -> 1 | GA41: =SUM(EI41+EL41+EO41+ER41+EU41+EX41+FA41+FD41+FG41+FH41+FN41+FQ41) -> 7 | GB41: =IF(EI41=1,"عربي","") ->  | GC41: =IF(EL41=1,"انجليزي","") ->  | GD41: =IF(EO41=1,"فرنساوي","") ->  | GE41: =IF(ER41=1,"جبر","") -> جبر | GF41: =IF(EU41=1,"تفاضل","") -> تفاضل | GG41: =IF(EX41=1,"أحياء","") -> أحياء | GH41: =IF(FA41=1,"كيمياء","") -> كيمياء | GI41: =IF(FD41=1,"ميكانيكا","") -> ميكانيكا | GJ41: =IF(FG41=1,"فيزياء","") -> فيزياء | GK41: =IF(FH41=1,"مجموع","") -> مجموع | GL41: =IF(FK41=1,"حاسب","") -> حاسب | GM41: =IF(FN41=1,"دين","") ->  | GN41: =IF(FQ41=1,"وطنية","") ->  | GO41: =IF(FT41=1,"نشاط","") -> نشاط | GP41: =IF(FW41=1,"العاب","") -> العاب | GQ41: =IF(FX41=1,"تربية مهنية","") -> تربية مهنية | GS41: =IF(P40<P41,0,P40-P41) -> 0 | GT41: =IF(W40<W41,0,W40-W41) -> 0 | GU41: =IF(AD40<AD41,0,AD40-AD41) -> 0 | GV41: =IF(AK40<AK41,0,AK40-AK41) -> 0 | GW41: =IF(AR40<AR41,0,AR40-AR41) -> 0 | GX41: =IF(BA40<BA41,0,BA40-BA41) -> 0 | GY41: =IF(BK40<BK41,0,BK40-BK41) -> 0 | GZ41: =IF(BS40<BS41,0,BS40-BS41) -> 0 | HA41: =IF(CB40<CB41,0,CB40-CB41) -> 0 | HB41: =IF(CO40<CO41,0,CO40-CO41) -> 0 | HC41: =IF(CV40<CV41,0,CV40-CV41) -> 0 | HD41: =IF(DC40<DC41,0,DC40-DC41) -> 0 | HE41: =IF(DJ40<DJ41,0,DJ40-DJ41) -> 0 | HF41: =IF(DP40<DP41,0,DP40-DP41) -> 0 | HG41: =IF(DX40<DX41,0,DX40-DX41) -> 0 | HH41: =SUM(GS41:HA41) -> 0 | HI41: =HH41+CG41 -> 105
CG42: =IF(HI43>=130,130,HI43) -> 79
A43: 16 | B43: 2617 | C43: 2018-10-30 | H43: كيرلس ماهر حليم | I43: منازل | J43: F | M43: 6 | N43: 0 | O43: 6 | P43: 6 | Q43: 1 | R43: 1 | T43: 3.8 | U43: 19.3 | V43: 23.1 | W43: 23 | X43: 0 | Y43: 0 | AA43: 12 | AB43: 8.5 | AC43: 20.5 | AD43: 20.5 | AE43: 0 | AF43: 0 | AH43: 2.5 | AI43: 0 | AJ43: 2.5 | AK43: 2.5 | AL43: 1 | AM43: 1 | AO43: 1.3 | AP43: 0.5 | AQ43: 1.8 | AR43: 2 | AS43: 1 | AT43: 1 | AW43: 1.7 | AY43: 2.5 | AZ43: 4.2 | BA43: 4 | BB43: 0 | BC43: 0 | BD43: 1 | BG43: 2.5 | BI43: 2.8 | BJ43: 5.3 | BK43: 5 | BL43: 0 | BM43: 0 | BN43: 1 | BP43: 5.8 | BQ43: 2.1 | BR43: 7.9 | BS43: 8 | BT43: 0 | BU43: 0 | BX43: 5.8 | BZ43: 2.5 | CA43: 8.3 | CB43: 8 | CC43: 0 | CD43: 0 | CE43: 0 | CG43: 79 | CH43: 1 | CN43: 0 | CO43: 0 | CP43: 0 | CQ43: 0 | CS43: 8.8 | CT43: 8.8 | CU43: 17.6 | CV43: 18 | CW43: 0 | CX43: 0 | CZ43: 4.4 | DA43: 7.5 | DB43: 11.9 | DC43: 12 | DD43: 0 | DE43: 0 | DI43: 0 | DJ43: 0 | DK43: 0 | DO43: 0 | DP43: 0 | DQ43: 0 | DW43: 0 | DX43: 0 | DY43: =COUNTIF(DV43,"<1.3") -> 0 | DZ43: =COUNTIF(DX43,"<8") -> 1 | EA43: =COUNTIF(DT43,"<1.3") -> 0 | EB43: =IF(GA43=0,"ناجح و منقول للصف الثالث","راسب وله حق الإعادة") -> راسب وله حق الإعادة | EC43: =GB43&" "&GC43&" "&GD43&" "&GE43&" "&GF43&" "&GG43&" "&GH43&" "&GI43&" "&GJ43&" "&GK43&" "&GM43&" "&GN43&" " -> عربي جبر تفاضل أحياء كيمياء ميكانيكا فيزياء مجموع | EG43: =IF(AND(P43>=$P$11,N43>=$N$11),0,1) -> 1 | EH43: =IF(P42>=$P$11,0,1) -> 1 | EI43: =IF(EH43=0,0,EG43) -> 1 | EJ43: =IF(AND(W43>=$W$11,U43>=$U$11),0,1) -> 0 | EK43: =IF(W42>=$W$11,0,1) -> 1 | EL43: =IF(EK43=0,0,EJ43) -> 0 | EM43: =IF(AND(AD43>=$AD$11,AB43>=$AB$11),0,1) -> 0 | EN43: =IF(AD42>=$AD$11,0,1) -> 1 | EO43: =IF(EN43=0,0,EM43) -> 0 | EP43: =IF(AND(AK43>=$AK$11,AI43>=$AI$11),0,1) -> 1 | EQ43: =IF(AK42>=$AK$11,0,1) -> 1 | ER43: =IF(EQ43=0,0,EP43) -> 1 | ES43: =IF(AND(AR43>=$AR$11,AP43>=$AP$11),0,1) -> 1 | ET43: =IF(AR42>=$AR$11,0,1) -> 1 | EU43: =IF(ET43=0,0,ES43) -> 1 | EV43: =IF(AND(BA43>=$BA$11,AW43>=$AW$11),0,1) -> 1 | EW43: =IF(BA42>=$BA$11,0,1) -> 1 | EX43: =IF(EW43=0,0,EV43) -> 1 | EY43: =IF(AND(BK43>=$BK$11,BG43>=$BG$11),0,1) -> 1 | EZ43: =IF(BK42>=$BK$11,0,1) -> 1 | FA43: =IF(EZ43=0,0,EY43) -> 1 | FB43: =IF(AND(BS43>=$BS$11,BP43>=$BP$11),0,1) -> 1 | FC43: =IF(BS42>=$BS$11,0,1) -> 1 | FD43: =IF(FC43=0,0,FB43) -> 1 | FE43: =IF(AND(CB43>=$CB$11,BX43>=$BX$11),0,1) -> 1 | FF43: =IF(CB42>=$CB$11,0,1) -> 1 | FG43: =IF(FF43=0,0,FE43) -> 1 | FH43: =IF(OR(CG43>=$CG$11,CG42>=$CG$11),0,1) -> 1 | FI43: =IF(AND(CO43>=$CO$11,CM43>=$CM$11),0,1) -> 1 | FJ43: =IF(CO42>=$CO$11,0,1) -> 1 | FK43: =IF(FJ43=0,0,FI43) -> 1 | FL43: =IF(AND(CT43>=$CT$11,CV43>=$CV$11),0,1) -> 0 | FM43: =IF(CV42>=$CV$11,0,1) -> 1 | FN43: =IF(FM43=0,0,FL43) -> 0 | FO43: =IF(AND(DC43>=$DC$11,DA43>=$DA$11),0,1) -> 0 | FP43: =IF(DC42>=$DC$11,0,1) -> 1 | FQ43: =IF(FP43=0,0,FO43) -> 0 | FR43: =IF(AND(DJ43>=$DJ$11,DH43>=$DH$11),0,1) -> 1 | FS43: =IF(DJ42>=$DJ$11,0,1) -> 1 | FT43: =IF(FS43=0,0,FR43) -> 1 | FU43: =IF(AND(DP43>=$DP$11,DN43>=$DN$11),0,1) -> 1 | FV43: =IF(DP42>=$DP$11,0,1) -> 1 | FW43: =IF(FV43=0,0,FU43) -> 1 | FX43: =IF(AND(DX43>=$DX$11,DV43>=$DV$11),0,1) -> 1 | FY43: =IF(DX42>=$DX$11,0,1) -> 1 | FZ43: =IF(FY43=0,0,FX43) -> 1 | GA43: =SUM(EI43+EL43+EO43+ER43+EU43+EX43+FA43+FD43+FG43+FH43+FN43+FQ43) -> 8 | GB43: =IF(EI43=1,"عربي","") -> عربي | GC43: =IF(EL43=1,"انجليزي","") ->  | GD43: =IF(EO43=1,"فرنساوي","") ->  | GE43: =IF(ER43=1,"جبر","") -> جبر | GF43: =IF(EU43=1,"تفاضل","") -> تفاضل | GG43: =IF(EX43=1,"أحياء","") -> أحياء | GH43: =IF(FA43=1,"كيمياء","") -> كيمياء | GI43: =IF(FD43=1,"ميكانيكا","") -> ميكانيكا | GJ43: =IF(FG43=1,"فيزياء","") -> فيزياء | GK43: =IF(FH43=1,"مجموع","") -> مجموع | GL43: =IF(FK43=1,"حاسب","") -> حاسب | GM43: =IF(FN43=1,"دين","") ->  | GN43: =IF(FQ43=1,"وطنية","") ->  | GO43: =IF(FT43=1,"نشاط","") -> نشاط | GP43: =IF(FW43=1,"العاب","") -> العاب | GQ43: =IF(FX43=1,"تربية مهنية","") -> تربية مهنية | GS43: =IF(P42<P43,0,P42-P43) -> 0 | GT43: =IF(W42<W43,0,W42-W43) -> 0 | GU43: =IF(AD42<AD43,0,AD42-AD43) -> 0 | GV43: =IF(AK42<AK43,0,AK42-AK43) -> 0 | GW43: =IF(AR42<AR43,0,AR42-AR43) -> 0 | GX43: =IF(BA42<BA43,0,BA42-BA43) -> 0 | GY43: =IF(BK42<BK43,0,BK42-BK43) -> 0 | GZ43: =IF(BS42<BS43,0,BS42-BS43) -> 0 | HA43: =IF(CB42<CB43,0,CB42-CB43) -> 0 | HB43: =IF(CO42<CO43,0,CO42-CO43) -> 0 | HC43: =IF(CV42<CV43,0,CV42-CV43) -> 0 | HD43: =IF(DC42<DC43,0,DC42-DC43) -> 0 | HE43: =IF(DJ42<DJ43,0,DJ42-DJ43) -> 0 | HF43: =IF(DP42<DP43,0,DP42-DP43) -> 0 | HG43: =IF(DX42<DX43,0,DX42-DX43) -> 0 | HH43: =SUM(GS43:HA43) -> 0 | HI43: =HH43+CG43 -> 79
CG44: =IF(HI45>=130,130,HI45) -> 27.5
A45: 17 | B45: 2618 | C45: 2018-10-30 | H45: صالح عبد الناصر حسين | I45: منازل | J45: F | M45: 10.6 | N45: 0 | O45: 10.6 | P45: 11 | Q45: 1 | R45: 1 | T45: 1.5 | U45: 0 | V45: 1.5 | W45: 1.5 | X45: 1 | Y45: 1 | AA45: 9 | AB45: 0 | AC45: 9 | AD45: 9 | AE45: 1 | AF45: 1 | AH45: 1.3 | AI45: 0 | AJ45: 1.3 | AK45: 1 | AL45: 1 | AM45: 1 | AO45: 0.8 | AP45: 0 | AQ45: 0.8 | AR45: 1 | AS45: 1 | AT45: 1 | AW45: 0.8 | AY45: 0 | AZ45: 0.8 | BA45: 1 | BB45: 0 | BC45: 1 | BD45: 1 | BG45: 0.8 | BI45: 0 | BJ45: 0.8 | BK45: 1 | BL45: 0 | BM45: 1 | BN45: 1 | BP45: 0 | BQ45: 0 | BR45: 0 | BS45: 0 | BT45: 1 | BU45: 1 | BX45: 1.7 | BZ45: 0 | CA45: 1.7 | CB45: 2 | CC45: 0 | CD45: 1 | CE45: 1 | CG45: 27.5 | CH45: 1 | CN45: 0 | CO45: 0 | CP45: 0 | CQ45: 0 | CS45: 6 | CT45: 0 | CU45: 6 | CV45: 6 | CW45: 1 | CX45: 1 | CZ45: 5 | DA45: 0 | DB45: 5 | DC45: 5 | DD45: 1 | DE45: 1 | DI45: 0 | DJ45: 0 | DK45: 0 | DO45: 0 | DP45: 0 | DQ45: 0 | DW45: 0 | DX45: 0 | DY45: =COUNTIF(DV45,"<1.3") -> 0 | DZ45: =COUNTIF(DX45,"<8") -> 1 | EA45: =COUNTIF(DT45,"<1.3") -> 0 | EB45: =IF(GA45=0,"ناجح و منقول للصف الثالث","راسب وله حق الإعادة") -> راسب وله حق الإعادة | EC45: =GB45&" "&GC45&" "&GD45&" "&GE45&" "&GF45&" "&GG45&" "&GH45&" "&GI45&" "&GJ45&" "&GK45&" "&GM45&" "&GN45&" " -> عربي انجليزي فرنساوي جبر تفاضل أحياء كيمياء ميكانيكا فيزياء مجموع دين وطنية | EG45: =IF(AND(P45>=$P$11,N45>=$N$11),0,1) -> 1 | EH45: =IF(P44>=$P$11,0,1) -> 1 | EI45: =IF(EH45=0,0,EG45) -> 1 | EJ45: =IF(AND(W45>=$W$11,U45>=$U$11),0,1) -> 1 | EK45: =IF(W44>=$W$11,0,1) -> 1 | EL45: =IF(EK45=0,0,EJ45) -> 1 | EM45: =IF(AND(AD45>=$AD$11,AB45>=$AB$11),0,1) -> 1 | EN45: =IF(AD44>=$AD$11,0,1) -> 1 | EO45: =IF(EN45=0,0,EM45) -> 1 | EP45: =IF(AND(AK45>=$AK$11,AI45>=$AI$11),0,1) -> 1 | EQ45: =IF(AK44>=$AK$11,0,1) -> 1 | ER45: =IF(EQ45=0,0,EP45) -> 1 | ES45: =IF(AND(AR45>=$AR$11,AP45>=$AP$11),0,1) -> 1 | ET45: =IF(AR44>=$AR$11,0,1) -> 1 | EU45: =IF(ET45=0,0,ES45) -> 1 | EV45: =IF(AND(BA45>=$BA$11,AW45>=$AW$11),0,1) -> 1 | EW45: =IF(BA44>=$BA$11,0,1) -> 1 | EX45: =IF(EW45=0,0,EV45) -> 1 | EY45: =IF(AND(BK45>=$BK$11,BG45>=$BG$11),0,1) -> 1 | EZ45: =IF(BK44>=$BK$11,0,1) -> 1 | FA45: =IF(EZ45=0,0,EY45) -> 1 | FB45: =IF(AND(BS45>=$BS$11,BP45>=$BP$11),0,1) -> 1 | FC45: =IF(BS44>=$BS$11,0,1) -> 1 | FD45: =IF(FC45=0,0,FB45) -> 1 | FE45: =IF(AND(CB45>=$CB$11,BX45>=$BX$11),0,1) -> 1 | FF45: =IF(CB44>=$CB$11,0,1) -> 1 | FG45: =IF(FF45=0,0,FE45) -> 1 | FH45: =IF(OR(CG45>=$CG$11,CG44>=$CG$11),0,1) -> 1 | FI45: =IF(AND(CO45>=$CO$11,CM45>=$CM$11),0,1) -> 1 | FJ45: =IF(CO44>=$CO$11,0,1) -> 1 | FK45: =IF(FJ45=0,0,FI45) -> 1 | FL45: =IF(AND(CT45>=$CT$11,CV45>=$CV$11),0,1) -> 1 | FM45: =IF(CV44>=$CV$11,0,1) -> 1 | FN45: =IF(FM45=0,0,FL45) -> 1 | FO45: =IF(AND(DC45>=$DC$11,DA45>=$DA$11),0,1) -> 1 | FP45: =IF(DC44>=$DC$11,0,1) -> 1 | FQ45: =IF(FP45=0,0,FO45) -> 1 | FR45: =IF(AND(DJ45>=$DJ$11,DH45>=$DH$11),0,1) -> 1 | FS45: =IF(DJ44>=$DJ$11,0,1) -> 1 | FT45: =IF(FS45=0,0,FR45) -> 1 | FU45: =IF(AND(DP45>=$DP$11,DN45>=$DN$11),0,1) -> 1 | FV45: =IF(DP44>=$DP$11,0,1) -> 1 | FW45: =IF(FV45=0,0,FU45) -> 1 | FX45: =IF(AND(DX45>=$DX$11,DV45>=$DV$11),0,1) -> 1 | FY45: =IF(DX44>=$DX$11,0,1) -> 1 | FZ45: =IF(FY45=0,0,FX45) -> 1 | GA45: =SUM(EI45+EL45+EO45+ER45+EU45+EX45+FA45+FD45+FG45+FH45+FN45+FQ45) -> 12 | GB45: =IF(EI45=1,"عربي","") -> عربي | GC45: =IF(EL45=1,"انجليزي","") -> انجليزي | GD45: =IF(EO45=1,"فرنساوي","") -> فرنساوي | GE45: =IF(ER45=1,"جبر","") -> جبر | GF45: =IF(EU45=1,"تفاضل","") -> تفاضل | GG45: =IF(EX45=1,"أحياء","") -> أحياء | GH45: =IF(FA45=1,"كيمياء","") -> كيمياء | GI45: =IF(FD45=1,"ميكانيكا","") -> ميكانيكا | GJ45: =IF(FG45=1,"فيزياء","") -> فيزياء | GK45: =IF(FH45=1,"مجموع","") -> مجموع | GL45: =IF(FK45=1,"حاسب","") -> حاسب | GM45: =IF(FN45=1,"دين","") -> دين | GN45: =IF(FQ45=1,"وطنية","") -> وطنية | GO45: =IF(FT45=1,"نشاط","") -> نشاط | GP45: =IF(FW45=1,"العاب","") -> العاب | GQ45: =IF(FX45=1,"تربية مهنية","") -> تربية مهنية | GS45: =IF(P44<P45,0,P44-P45) -> 0 | GT45: =IF(W44<W45,0,W44-W45) -> 0 | GU45: =IF(AD44<AD45,0,AD44-AD45) -> 0 | GV45: =IF(AK44<AK45,0,AK44-AK45) -> 0 | GW45: =IF(AR44<AR45,0,AR44-AR45) -> 0 | GX45: =IF(BA44<BA45,0,BA44-BA45) -> 0 | GY45: =IF(BK44<BK45,0,BK44-BK45) -> 0 | GZ45: =IF(BS44<BS45,0,BS44-BS45) -> 0 | HA45: =IF(CB44<CB45,0,CB44-CB45) -> 0 | HB45: =IF(CO44<CO45,0,CO44-CO45) -> 0 | HC45: =IF(CV44<CV45,0,CV44-CV45) -> 0 | HD45: =IF(DC44<DC45,0,DC44-DC45) -> 0 | HE45: =IF(DJ44<DJ45,0,DJ44-DJ45) -> 0 | HF45: =IF(DP44<DP45,0,DP44-DP45) -> 0 | HG45: =IF(DX44<DX45,0,DX44-DX45) -> 0 | HH45: =SUM(GS45:HA45) -> 0 | HI45: =HH45+CG45 -> 27.5
CG46: =IF(HI47>=130,130,HI47) -> 78
A47: 18 | B47: 2619 | C47: 2018-10-30 | H47: طارق السيد عبد المعطى السيد | I47: منازل | J47: F | M47: 10 | N47: 9.8 | O47: 19.8 | P47: 20 | Q47: 0 | R47: 1 | T47: 5.3 | U47: 0.5 | V47: 5.8 | W47: 6 | X47: 1 | Y47: 1 | AA47: 13 | AB47: 12 | AC47: 25 | AD47: 25 | AE47: 0 | AF47: 0 | AH47: 2.5 | AI47: 3 | AJ47: 5.5 | AK47: 5.5 | AL47: 0 | AM47: 1 | AO47: 3.8 | AP47: 1 | AQ47: 4.8 | AR47: 5 | AS47: 1 | AT47: 1 | AW47: 1.3 | AY47: 0.8 | AZ47: 2.1 | BA47: 2 | BB47: 0 | BC47: 1 | BD47: 1 | BG47: 3.5 | BI47: 0.7 | BJ47: 4.2 | BK47: 4 | BL47: 0 | BM47: 1 | BN47: 1 | BP47: 4 | BQ47: 4.5 | BR47: 8.5 | BS47: 8.5 | BT47: 0 | BU47: 0 | BX47: 2.3 | BZ47: 0 | CA47: 2.3 | CB47: 2 | CC47: 0 | CD47: 1 | CE47: 1 | CG47: 78 | CH47: 1 | CN47: 0 | CO47: 0 | CP47: 0 | CQ47: 0 | CS47: 8.1 | CT47: 6.3 | CU47: 14.4 | CV47: 14 | CW47: 0 | CX47: 0 | CZ47: 5.6 | DA47: 8.8 | DB47: 14.4 | DC47: 14 | DD47: 0 | DE47: 0 | DI47: 0 | DJ47: 0 | DK47: 0 | DO47: 0 | DP47: 0 | DQ47: 0 | DW47: 0 | DX47: 0 | DY47: =COUNTIF(DV47,"<1.3") -> 0 | DZ47: =COUNTIF(DX47,"<8") -> 1 | EA47: =COUNTIF(DT47,"<1.3") -> 0 | EB47: =IF(GA47=0,"ناجح و منقول للصف الثالث","راسب وله حق الإعادة") -> راسب وله حق الإعادة | EC47: =GB47&" "&GC47&" "&GD47&" "&GE47&" "&GF47&" "&GG47&" "&GH47&" "&GI47&" "&GJ47&" "&GK47&" "&GM47&" "&GN47&" " -> عربي انجليزي جبر تفاضل أحياء كيمياء ميكانيكا فيزياء مجموع | EG47: =IF(AND(P47>=$P$11,N47>=$N$11),0,1) -> 1 | EH47: =IF(P46>=$P$11,0,1) -> 1 | EI47: =IF(EH47=0,0,EG47) -> 1 | EJ47: =IF(AND(W47>=$W$11,U47>=$U$11),0,1) -> 1 | EK47: =IF(W46>=$W$11,0,1) -> 1 | EL47: =IF(EK47=0,0,EJ47) -> 1 | EM47: =IF(AND(AD47>=$AD$11,AB47>=$AB$11),0,1) -> 0 | EN47: =IF(AD46>=$AD$11,0,1) -> 1 | EO47: =IF(EN47=0,0,EM47) -> 0 | EP47: =IF(AND(AK47>=$AK$11,AI47>=$AI$11),0,1) -> 1 | EQ47: =IF(AK46>=$AK$11,0,1) -> 1 | ER47: =IF(EQ47=0,0,EP47) -> 1 | ES47: =IF(AND(AR47>=$AR$11,AP47>=$AP$11),0,1) -> 1 | ET47: =IF(AR46>=$AR$11,0,1) -> 1 | EU47: =IF(ET47=0,0,ES47) -> 1 | EV47: =IF(AND(BA47>=$BA$11,AW47>=$AW$11),0,1) -> 1 | EW47: =IF(BA46>=$BA$11,0,1) -> 1 | EX47: =IF(EW47=0,0,EV47) -> 1 | EY47: =IF(AND(BK47>=$BK$11,BG47>=$BG$11),0,1) -> 1 | EZ47: =IF(BK46>=$BK$11,0,1) -> 1 | FA47: =IF(EZ47=0,0,EY47) -> 1 | FB47: =IF(AND(BS47>=$BS$11,BP47>=$BP$11),0,1) -> 1 | FC47: =IF(BS46>=$BS$11,0,1) -> 1 | FD47: =IF(FC47=0,0,FB47) -> 1 | FE47: =IF(AND(CB47>=$CB$11,BX47>=$BX$11),0,1) -> 1 | FF47: =IF(CB46>=$CB$11,0,1) -> 1 | FG47: =IF(FF47=0,0,FE47) -> 1 | FH47: =IF(OR(CG47>=$CG$11,CG46>=$CG$11),0,1) -> 1 | FI47: =IF(AND(CO47>=$CO$11,CM47>=$CM$11),0,1) -> 1 | FJ47: =IF(CO46>=$CO$11,0,1) -> 1 | FK47: =IF(FJ47=0,0,FI47) -> 1 | FL47: =IF(AND(CT47>=$CT$11,CV47>=$CV$11),0,1) -> 0 | FM47: =IF(CV46>=$CV$11,0,1) -> 1 | FN47: =IF(FM47=0,0,FL47) -> 0 | FO47: =IF(AND(DC47>=$DC$11,DA47>=$DA$11),0,1) -> 0 | FP47: =IF(DC46>=$DC$11,0,1) -> 1 | FQ47: =IF(FP47=0,0,FO47) -> 0 | FR47: =IF(AND(DJ47>=$DJ$11,DH47>=$DH$11),0,1) -> 1 | FS47: =IF(DJ46>=$DJ$11,0,1) -> 1 | FT47: =IF(FS47=0,0,FR47) -> 1 | FU47: =IF(AND(DP47>=$DP$11,DN47>=$DN$11),0,1) -> 1 | FV47: =IF(DP46>=$DP$11,0,1) -> 1 | FW47: =IF(FV47=0,0,FU47) -> 1 | FX47: =IF(AND(DX47>=$DX$11,DV47>=$DV$11),0,1) -> 1 | FY47: =IF(DX46>=$DX$11,0,1) -> 1 | FZ47: =IF(FY47=0,0,FX47) -> 1 | GA47: =SUM(EI47+EL47+EO47+ER47+EU47+EX47+FA47+FD47+FG47+FH47+FN47+FQ47) -> 9 | GB47: =IF(EI47=1,"عربي","") -> عربي | GC47: =IF(EL47=1,"انجليزي","") -> انجليزي | GD47: =IF(EO47=1,"فرنساوي","") ->  | GE47: =IF(ER47=1,"جبر","") -> جبر | GF47: =IF(EU47=1,"تفاضل","") -> تفاضل | GG47: =IF(EX47=1,"أحياء","") -> أحياء | GH47: =IF(FA47=1,"كيمياء","") -> كيمياء | GI47: =IF(FD47=1,"ميكانيكا","") -> ميكانيكا | GJ47: =IF(FG47=1,"فيزياء","") -> فيزياء | GK47: =IF(FH47=1,"مجموع","") -> مجموع | GL47: =IF(FK47=1,"حاسب","") -> حاسب | GM47: =IF(FN47=1,"دين","") ->  | GN47: =IF(FQ47=1,"وطنية","") ->  | GO47: =IF(FT47=1,"نشاط","") -> نشاط | GP47: =IF(FW47=1,"العاب","") -> العاب | GQ47: =IF(FX47=1,"تربية مهنية","") -> تربية مهنية | GS47: =IF(P46<P47,0,P46-P47) -> 0 | GT47: =IF(W46<W47,0,W46-W47) -> 0 | GU47: =IF(AD46<AD47,0,AD46-AD47) -> 0 | GV47: =IF(AK46<AK47,0,AK46-AK47) -> 0 | GW47: =IF(AR46<AR47,0,AR46-AR47) -> 0 | GX47: =IF(BA46<BA47,0,BA46-BA47) -> 0 | GY47: =IF(BK46<BK47,0,BK46-BK47) -> 0 | GZ47: =IF(BS46<BS47,0,BS46-BS47) -> 0 | HA47: =IF(CB46<CB47,0,CB46-CB47) -> 0 | HB47: =IF(CO46<CO47,0,CO46-CO47) -> 0 | HC47: =IF(CV46<CV47,0,CV46-CV47) -> 0 | HD47: =IF(DC46<DC47,0,DC46-DC47) -> 0 | HE47: =IF(DJ46<DJ47,0,DJ46-DJ47) -> 0 | HF47: =IF(DP46<DP47,0,DP46-DP47) -> 0 | HG47: =IF(DX46<DX47,0,DX46-DX47) -> 0 | HH47: =SUM(GS47:HA47) -> 0 | HI47: =HH47+CG47 -> 78
CG48: =IF(HI49>=130,130,HI49) -> 17
A49: 19 | B49: 2620 | C49: 2018-10-30 | H49: باسم احمد محمد إبراهيم | I49: منازل | J49: F | M49: 0 | N49: 13.8 | O49: 13.8 | P49: 14 | Q49: 0 | R49: 1 | T49: 0 | U49: 1.5 | V49: 1.5 | W49: 1.5 | X49: 1 | Y49: 1 | AA49: 0 | AB49: 0 | AC49: 0 | AD49: 0 | AE49: 1 | AF49: 1 | AH49: 0 | AI49: 0 | AJ49: 0 | AK49: 0 | AL49: 1 | AM49: 1 | AO49: 0 | AP49: 0 | AQ49: 0 | AR49: 0 | AS49: 1 | AT49: 1 | AW49: 0 | AY49: 0 | AZ49: 0 | BA49: 0 | BB49: 0 | BC49: 1 | BD49: 1 | BG49: 1.5 | BI49: 0 | BJ49: 1.5 | BK49: 1.5 | BL49: 0 | BM49: 1 | BN49: 1 | BP49: 0 | BQ49: 0 | BR49: 0 | BS49: 0 | BT49: 1 | BU49: 1 | BX49: 0 | BZ49: 0 | CA49: 0 | CB49: 0 | CC49: 0 | CD49: 1 | CE49: 1 | CG49: 17 | CH49: 1 | CN49: 0 | CO49: 0 | CP49: 0 | CQ49: 0 | CS49: 0 | CT49: 0 | CU49: 0 | CV49: 0 | CW49: 1 | CX49: 1 | CZ49: 0 | DA49: 0 | DB49: 0 | DC49: 0 | DD49: 1 | DE49: 1 | DI49: 0 | DJ49: 0 | DK49: 0 | DO49: 0 | DP49: 0 | DQ49: 0 | DW49: 0 | DX49: 0 | DY49: =COUNTIF(DV49,"<1.3") -> 0 | DZ49: =COUNTIF(DX49,"<8") -> 1 | EA49: =COUNTIF(DT49,"<1.3") -> 0 | EB49: =IF(GA49=0,"ناجح و منقول للصف الثالث","راسب وله حق الإعادة") -> راسب وله حق الإعادة | EC49: =GB49&" "&GC49&" "&GD49&" "&GE49&" "&GF49&" "&GG49&" "&GH49&" "&GI49&" "&GJ49&" "&GK49&" "&GM49&" "&GN49&" " -> عربي انجليزي فرنساوي جبر تفاضل أحياء كيمياء ميكانيكا فيزياء مجموع دين وطنية | EG49: =IF(AND(P49>=$P$11,N49>=$N$11),0,1) -> 1 | EH49: =IF(P48>=$P$11,0,1) -> 1 | EI49: =IF(EH49=0,0,EG49) -> 1 | EJ49: =IF(AND(W49>=$W$11,U49>=$U$11),0,1) -> 1 | EK49: =IF(W48>=$W$11,0,1) -> 1 | EL49: =IF(EK49=0,0,EJ49) -> 1 | EM49: =IF(AND(AD49>=$AD$11,AB49>=$AB$11),0,1) -> 1 | EN49: =IF(AD48>=$AD$11,0,1) -> 1 | EO49: =IF(EN49=0,0,EM49) -> 1 | EP49: =IF(AND(AK49>=$AK$11,AI49>=$AI$11),0,1) -> 1 | EQ49: =IF(AK48>=$AK$11,0,1) -> 1 | ER49: =IF(EQ49=0,0,EP49) -> 1 | ES49: =IF(AND(AR49>=$AR$11,AP49>=$AP$11),0,1) -> 1 | ET49: =IF(AR48>=$AR$11,0,1) -> 1 | EU49: =IF(ET49=0,0,ES49) -> 1 | EV49: =IF(AND(BA49>=$BA$11,AW49>=$AW$11),0,1) -> 1 | EW49: =IF(BA48>=$BA$11,0,1) -> 1 | EX49: =IF(EW49=0,0,EV49) -> 1 | EY49: =IF(AND(BK49>=$BK$11,BG49>=$BG$11),0,1) -> 1 | EZ49: =IF(BK48>=$BK$11,0,1) -> 1 | FA49: =IF(EZ49=0,0,EY49) -> 1 | FB49: =IF(AND(BS49>=$BS$11,BP49>=$BP$11),0,1) -> 1 | FC49: =IF(BS48>=$BS$11,0,1) -> 1 | FD49: =IF(FC49=0,0,FB49) -> 1 | FE49: =IF(AND(CB49>=$CB$11,BX49>=$BX$11),0,1) -> 1 | FF49: =IF(CB48>=$CB$11,0,1) -> 1 | FG49: =IF(FF49=0,0,FE49) -> 1 | FH49: =IF(OR(CG49>=$CG$11,CG48>=$CG$11),0,1) -> 1 | FI49: =IF(AND(CO49>=$CO$11,CM49>=$CM$11),0,1) -> 1 | FJ49: =IF(CO48>=$CO$11,0,1) -> 1 | FK49: =IF(FJ49=0,0,FI49) -> 1 | FL49: =IF(AND(CT49>=$CT$11,CV49>=$CV$11),0,1) -> 1 | FM49: =IF(CV48>=$CV$11,0,1) -> 1 | FN49: =IF(FM49=0,0,FL49) -> 1 | FO49: =IF(AND(DC49>=$DC$11,DA49>=$DA$11),0,1) -> 1 | FP49: =IF(DC48>=$DC$11,0,1) -> 1 | FQ49: =IF(FP49=0,0,FO49) -> 1 | FR49: =IF(AND(DJ49>=$DJ$11,DH49>=$DH$11),0,1) -> 1 | FS49: =IF(DJ48>=$DJ$11,0,1) -> 1 | FT49: =IF(FS49=0,0,FR49) -> 1 | FU49: =IF(AND(DP49>=$DP$11,DN49>=$DN$11),0,1) -> 1 | FV49: =IF(DP48>=$DP$11,0,1) -> 1 | FW49: =IF(FV49=0,0,FU49) -> 1 | FX49: =IF(AND(DX49>=$DX$11,DV49>=$DV$11),0,1) -> 1 | FY49: =IF(DX48>=$DX$11,0,1) -> 1 | FZ49: =IF(FY49=0,0,FX49) -> 1 | GA49: =SUM(EI49+EL49+EO49+ER49+EU49+EX49+FA49+FD49+FG49+FH49+FN49+FQ49) -> 12 | GB49: =IF(EI49=1,"عربي","") -> عربي | GC49: =IF(EL49=1,"انجليزي","") -> انجليزي | GD49: =IF(EO49=1,"فرنساوي","") -> فرنساوي | GE49: =IF(ER49=1,"جبر","") -> جبر | GF49: =IF(EU49=1,"تفاضل","") -> تفاضل | GG49: =IF(EX49=1,"أحياء","") -> أحياء | GH49: =IF(FA49=1,"كيمياء","") -> كيمياء | GI49: =IF(FD49=1,"ميكانيكا","") -> ميكانيكا | GJ49: =IF(FG49=1,"فيزياء","") -> فيزياء | GK49: =IF(FH49=1,"مجموع","") -> مجموع | GL49: =IF(FK49=1,"حاسب","") -> حاسب | GM49: =IF(FN49=1,"دين","") -> دين | GN49: =IF(FQ49=1,"وطنية","") -> وطنية | GO49: =IF(FT49=1,"نشاط","") -> نشاط | GP49: =IF(FW49=1,"العاب","") -> العاب | GQ49: =IF(FX49=1,"تربية مهنية","") -> تربية مهنية | GS49: =IF(P48<P49,0,P48-P49) -> 0 | GT49: =IF(W48<W49,0,W48-W49) -> 0 | GU49: =IF(AD48<AD49,0,AD48-AD49) -> 0 | GV49: =IF(AK48<AK49,0,AK48-AK49) -> 0 | GW49: =IF(AR48<AR49,0,AR48-AR49) -> 0 | GX49: =IF(BA48<BA49,0,BA48-BA49) -> 0 | GY49: =IF(BK48<BK49,0,BK48-BK49) -> 0 | GZ49: =IF(BS48<BS49,0,BS48-BS49) -> 0 | HA49: =IF(CB48<CB49,0,CB48-CB49) -> 0 | HB49: =IF(CO48<CO49,0,CO48-CO49) -> 0 | HC49: =IF(CV48<CV49,0,CV48-CV49) -> 0 | HD49: =IF(DC48<DC49,0,DC48-DC49) -> 0 | HE49: =IF(DJ48<DJ49,0,DJ48-DJ49) -> 0 | HF49: =IF(DP48<DP49,0,DP48-DP49) -> 0 | HG49: =IF(DX48<DX49,0,DX48-DX49) -> 0 | HH49: =SUM(GS49:HA49) -> 0 | HI49: =HH49+CG49 -> 17
CG50: =IF(HI51>=130,130,HI51) -> 94.5
A51: 20 | B51: 2621 | C51: 2018-10-30 | H51: عماد الدين محمد محمود | I51: منازل | J51: F | M51: 18.1 | N51: 20.4 | O51: 38.5 | P51: 38.5 | Q51: 0 | R51: 0 | T51: 13.8 | U51: 14 | V51: 27.8 | W51: 28 | X51: 0 | Y51: 0 | AA51: 10.5 | AB51: 10.5 | AC51: 21 | AD51: 21 | AE51: 0 | AF51: 0 | AH51: 0 | AI51: 0 | AJ51: 0 | AK51: 0 | AL51: 1 | AM51: 1 | AO51: 0 | AP51: 0 | AQ51: 0 | AR51: 0 | AS51: 1 | AT51: 1 | AW51: 3.3 | AY51: 0 | AZ51: 3.3 | BA51: 3 | BB51: 0 | BC51: 1 | BD51: 1 | BG51: 2.7 | BI51: 0 | BJ51: 2.7 | BK51: 3 | BL51: 0 | BM51: 1 | BN51: 1 | BP51: 0 | BQ51: 0 | BR51: 0 | BS51: 0 | BT51: 1 | BU51: 1 | BX51: 1.3 | BZ51: 0 | CA51: 1.3 | CB51: 1 | CC51: 0 | CD51: 1 | CE51: 1 | CG51: 94.5 | CH51: 1 | CN51: 0 | CO51: 0 | CP51: 0 | CQ51: 0 | CS51: 0 | CT51: 0 | CU51: 0 | CV51: 0 | CW51: 1 | CX51: 1 | CZ51: 8 | DA51: 0 | DB51: 8 | DC51: 8 | DD51: 1 | DE51: 0 | DI51: 0 | DJ51: 0 | DK51: 0 | DO51: 0 | DP51: 0 | DQ51: 0 | DW51: 0 | DX51: 0 | DY51: =COUNTIF(DV51,"<1.3") -> 0 | DZ51: =COUNTIF(DX51,"<8") -> 1 | EA51: =COUNTIF(DT51,"<1.3") -> 0 | EB51: =IF(GA51=0,"ناجح و منقول للصف الثالث","راسب وله حق الإعادة") -> راسب وله حق الإعادة | EC51: =GB51&" "&GC51&" "&GD51&" "&GE51&" "&GF51&" "&GG51&" "&GH51&" "&GI51&" "&GJ51&" "&GK51&" "&GM51&" "&GN51&" " -> جبر تفاضل أحياء كيمياء ميكانيكا فيزياء مجموع دين وطنية | EG51: =IF(AND(P51>=$P$11,N51>=$N$11),0,1) -> 0 | EH51: =IF(P50>=$P$11,0,1) -> 1 | EI51: =IF(EH51=0,0,EG51) -> 0 | EJ51: =IF(AND(W51>=$W$11,U51>=$U$11),0,1) -> 0 | EK51: =IF(W50>=$W$11,0,1) -> 1 | EL51: =IF(EK51=0,0,EJ51) -> 0 | EM51: =IF(AND(AD51>=$AD$11,AB51>=$AB$11),0,1) -> 0 | EN51: =IF(AD50>=$AD$11,0,1) -> 1 | EO51: =IF(EN51=0,0,EM51) -> 0 | EP51: =IF(AND(AK51>=$AK$11,AI51>=$AI$11),0,1) -> 1 | EQ51: =IF(AK50>=$AK$11,0,1) -> 1 | ER51: =IF(EQ51=0,0,EP51) -> 1 | ES51: =IF(AND(AR51>=$AR$11,AP51>=$AP$11),0,1) -> 1 | ET51: =IF(AR50>=$AR$11,0,1) -> 1 | EU51: =IF(ET51=0,0,ES51) -> 1 | EV51: =IF(AND(BA51>=$BA$11,AW51>=$AW$11),0,1) -> 1 | EW51: =IF(BA50>=$BA$11,0,1) -> 1 | EX51: =IF(EW51=0,0,EV51) -> 1 | EY51: =IF(AND(BK51>=$BK$11,BG51>=$BG$11),0,1) -> 1 | EZ51: =IF(BK50>=$BK$11,0,1) -> 1 | FA51: =IF(EZ51=0,0,EY51) -> 1 | FB51: =IF(AND(BS51>=$BS$11,BP51>=$BP$11),0,1) -> 1 | FC51: =IF(BS50>=$BS$11,0,1) -> 1 | FD51: =IF(FC51=0,0,FB51) -> 1 | FE51: =IF(AND(CB51>=$CB$11,BX51>=$BX$11),0,1) -> 1 | FF51: =IF(CB50>=$CB$11,0,1) -> 1 | FG51: =IF(FF51=0,0,FE51) -> 1 | FH51: =IF(OR(CG51>=$CG$11,CG50>=$CG$11),0,1) -> 1 | FI51: =IF(AND(CO51>=$CO$11,CM51>=$CM$11),0,1) -> 1 | FJ51: =IF(CO50>=$CO$11,0,1) -> 1 | FK51: =IF(FJ51=0,0,FI51) -> 1 | FL51: =IF(AND(CT51>=$CT$11,CV51>=$CV$11),0,1) -> 1 | FM51: =IF(CV50>=$CV$11,0,1) -> 1 | FN51: =IF(FM51=0,0,FL51) -> 1 | FO51: =IF(AND(DC51>=$DC$11,DA51>=$DA$11),0,1) -> 1 | FP51: =IF(DC50>=$DC$11,0,1) -> 1 | FQ51: =IF(FP51=0,0,FO51) -> 1 | FR51: =IF(AND(DJ51>=$DJ$11,DH51>=$DH$11),0,1) -> 1 | FS51: =IF(DJ50>=$DJ$11,0,1) -> 1 | FT51: =IF(FS51=0,0,FR51) -> 1 | FU51: =IF(AND(DP51>=$DP$11,DN51>=$DN$11),0,1) -> 1 | FV51: =IF(DP50>=$DP$11,0,1) -> 1 | FW51: =IF(FV51=0,0,FU51) -> 1 | FX51: =IF(AND(DX51>=$DX$11,DV51>=$DV$11),0,1) -> 1 | FY51: =IF(DX50>=$DX$11,0,1) -> 1 | FZ51: =IF(FY51=0,0,FX51) -> 1 | GA51: =SUM(EI51+EL51+EO51+ER51+EU51+EX51+FA51+FD51+FG51+FH51+FN51+FQ51) -> 9 | GB51: =IF(EI51=1,"عربي","") ->  | GC51: =IF(EL51=1,"انجليزي","") ->  | GD51: =IF(EO51=1,"فرنساوي","") ->  | GE51: =IF(ER51=1,"جبر","") -> جبر | GF51: =IF(EU51=1,"تفاضل","") -> تفاضل | GG51: =IF(EX51=1,"أحياء","") -> أحياء | GH51: =IF(FA51=1,"كيمياء","") -> كيمياء | GI51: =IF(FD51=1,"ميكانيكا","") -> ميكانيكا | GJ51: =IF(FG51=1,"فيزياء","") -> فيزياء | GK51: =IF(FH51=1,"مجموع","") -> مجموع | GL51: =IF(FK51=1,"حاسب","") -> حاسب | GM51: =IF(FN51=1,"دين","") -> دين | GN51: =IF(FQ51=1,"وطنية","") -> وطنية | GO51: =IF(FT51=1,"نشاط","") -> نشاط | GP51: =IF(FW51=1,"العاب","") -> العاب | GQ51: =IF(FX51=1,"تربية مهنية","") -> تربية مهنية | GS51: =IF(P50<P51,0,P50-P51) -> 0 | GT51: =IF(W50<W51,0,W50-W51) -> 0 | GU51: =IF(AD50<AD51,0,AD50-AD51) -> 0 | GV51: =IF(AK50<AK51,0,AK50-AK51) -> 0 | GW51: =IF(AR50<AR51,0,AR50-AR51) -> 0 | GX51: =IF(BA50<BA51,0,BA50-BA51) -> 0 | GY51: =IF(BK50<BK51,0,BK50-BK51) -> 0 | GZ51: =IF(BS50<BS51,0,BS50-BS51) -> 0 | HA51: =IF(CB50<CB51,0,CB50-CB51) -> 0 | HB51: =IF(CO50<CO51,0,CO50-CO51) -> 0 | HC51: =IF(CV50<CV51,0,CV50-CV51) -> 0 | HD51: =IF(DC50<DC51,0,DC50-DC51) -> 0 | HE51: =IF(DJ50<DJ51,0,DJ50-DJ51) -> 0 | HF51: =IF(DP50<DP51,0,DP50-DP51) -> 0 | HG51: =IF(DX50<DX51,0,DX50-DX51) -> 0 | HH51: =SUM(GS51:HA51) -> 0 | HI51: =HH51+CG51 -> 94.5
E52: لجنة البيانات الإدارية | AH52: خاتم الدولة | AP52: يعتمد ،، مدير المدرسة | AW52: رئيس لجنة النظام والمراقبة | BG52: روجع،، الموظف المختص | BS52: رئيس قسم شئون الطلبة والامتحانات
E53: أمــــــــــــلاه | H53: أحمد نصيف أحمد | AP53: مظهر عاشور حسن | AW53: ياسر فتحى احمد | BG53: ---------------------------------- | BV53: ------------------------------
E54: كتبـــــــــــــــه | H54: عماد تقى درويش
E55: راجع الإملاء | H55: عبير عاطف
E56: راجع الكتابة | H56: امانى جودة شحاته
E57: رئيس اللجنة | H57: محمد محمود

Sheet شهادة
F1: 1
A2: إدارة غرب شبرا الخيمة التعليمية
A3: مدرسة شبرا الخيمة الثانوية بنون
A4: نتيجة امتحان الدور الثانى 2012/ 2013م الصف الثانى الثانوى
A5: السيد ولى أمر الطالب / | D5: =LOOKUP(F1,راسب!A13:A340,راسب!H13:H340) -> احمد حسين علام حسين | I5: جلوس رقم / | K5: =LOOKUP(F1,راسب!A13:A340,راسب!B13:B340) -> 2183
B6: تخطركم المدرسة بأن نجلكم / | F6: =LOOKUP(F1,راسب!A13:A340,راسب!EB13:EB340) -> راسب وله حق الإعادة
A7: كتبه / عابدين عبد الفتاح أملاه / عبد الوهاب متولى راجع الكتابة / محمد على راجع الإملاء / فيصل محمد
A8: رئيس لجنة النظام والمراقبة مدير المدرسة ،،،
B9: أشرف فوزى فهمى فتح الله عبد الله خالد
F10: =F1+1 -> 2
A11: إدارة غرب شبرا الخيمة التعليمية
A12: مدرسة شبرا الخيمة الثانوية بنون
A13: نتيجة امتحان الدور الثانى 2012/ 2013م الصف الثانى الثانوى
A14: السيد ولى أمر الطالب / | D14: =LOOKUP(F1,راسب!A13:A340,راسب!H15:H340) -> بيومي محمد بيومي متولي | I14: جلوس رقم / | K14: =LOOKUP(F1,راسب!A13:A340,راسب!B15:B340) -> 2201
B15: تخطركم المدرسة بأن نجلكم / | F15: =LOOKUP(F1,راسب!A13:A340,راسب!EB15:EB340) -> راسب وله حق الإعادة
A16: كتبه / عابدين عبد الفتاح أملاه / عبد الوهاب متولى راجع الكتابة / محمد على راجع الإملاء / فيصل محمد
A17: رئيس لجنة النظام والمراقبة مدير المدرسة ،،،
B18: أشرف فوزى فهمى فتح الله عبد الله خالد
F19: =F1+2 -> 3
A20: إدارة غرب شبرا الخيمة التعليمية
A21: مدرسة شبرا الخيمة الثانوية بنون
A22: نتيجة امتحان الدور الثانى 2012/ 2013م الصف الثانى الثانوى
A23: السيد ولى أمر الطالب / | D23: =LOOKUP(F1,راسب!A13:A340,راسب!H17:H340) -> عبد الله رضا الشبراوى ابراهيم | I23: جلوس رقم / | K23: =LOOKUP(F1,راسب!A13:A340,راسب!B17:B340) -> 2220
B24: تخطركم المدرسة بأن نجلكم / | F24: =LOOKUP(F1,راسب!A13:A340,راسب!EB17:EB340) -> راسب وله حق الإعادة
A25: كتبه / عابدين عبد الفتاح أملاه / عبد الوهاب متولى راجع الكتابة / محمد على راجع الإملاء / فيصل محمد
A26: رئيس لجنة النظام والمراقبة مدير المدرسة ،،،
B27: أشرف فوزى فهمى فتح الله عبد الله خالد
F28: =F1+3 -> 4
A29: إدارة غرب شبرا الخيمة التعليمية
A30: مدرسة شبرا الخيمة الثانوية بنون
A31: نتيجة امتحان الدور الثانى 2012/ 2013م الصف الثانى الثانوى
A32: السيد ولى أمر الطالب / | D32: =LOOKUP(F1,راسب!A13:A340,راسب!H19:H340) -> كريم عباس فاروق ابراهيم | I32: جلوس رقم / | K32: =LOOKUP(F1,راسب!A13:A340,راسب!B19:B340) -> 2233
B33: تخطركم المدرسة بأن نجلكم / | F33: =LOOKUP(F1,راسب!A13:A340,راسب!EB19:EB340) -> راسب وله حق الإعادة
A34: كتبه / عابدين عبد الفتاح أملاه / عبد الوهاب متولى راجع الكتابة / محمد على راجع الإملاء / فيصل محمد
A35: رئيس لجنة النظام والمراقبة مدير المدرسة ،،،
B36: أشرف فوزى فهمى فتح الله عبد الله خالد
